Body,Body Name,Date,TransNo,Amount � (Excl VAT),Supplier name,Supplier ID,Expense Area,Expense Type,Expense Code,,
http://opendatacommunities.org/id/london-borough-council/sutton,London Borough of Sutton,15/03/2018,6927453,"3,290.00",247 Healthcare,99815,"Environment, Housing & Regeneration Directorate",Grants -Made,Y610,,
http://opendatacommunities.org/id/london-borough-council/sutton,London Borough of Sutton,28/02/2018,6927120,"2,225.00",3C Environmental Technology Ltd,14611,Resources Directorate,FM - Planned Maintenance Contract - Mitie,G613,,
http://opendatacommunities.org/id/london-borough-council/sutton,London Borough of Sutton,09/03/2018,6926930,"1,310.00",A T Sound Hire,10306,"Environment, Housing & Regeneration Directorate",Other Equipment-Hire,F070,,
http://opendatacommunities.org/id/london-borough-council/sutton,London Borough of Sutton,01/02/2018,6926931,"1,397.20",A To Z Property Management Ltd,26729,"Environment, Housing & Regeneration Directorate",Bed and Breakfast Accommodation,G400,,
http://opendatacommunities.org/id/london-borough-council/sutton,London Borough of Sutton,01/03/2018,6928256,"1,519.00",A To Z Property Management Ltd,26729,"Environment, Housing & Regeneration Directorate",Bed and Breakfast Accommodation,G400,,
http://opendatacommunities.org/id/london-borough-council/sutton,London Borough of Sutton,01/03/2018,6928259,702,A To Z Property Management Ltd,26729,"Environment, Housing & Regeneration Directorate",Bed and Breakfast Accommodation,G400,,
http://opendatacommunities.org/id/london-borough-council/sutton,London Borough of Sutton,13/02/2018,6927085,648.44,A W Champion Ltd,10897,"Environment, Housing & Regeneration Directorate",Furniture & Fittings,Y500,,
http://opendatacommunities.org/id/london-borough-council/sutton,London Borough of Sutton,09/02/2018,6925319,868,AA Guesthouses Ltd,29292,Peoples Services Directorate,C.C.A Rent & Utilities,H211,,
http://opendatacommunities.org/id/london-borough-council/sutton,London Borough of Sutton,09/03/2018,6926958,784,AA Guesthouses Ltd,29292,Peoples Services Directorate,C.C.A Rent & Utilities,H211,,
http://opendatacommunities.org/id/london-borough-council/sutton,London Borough of Sutton,13/02/2018,6925870,"4,000.00",Abbey Primary School,10011,"Environment, Housing & Regeneration Directorate",Earmarked Reserves - General,X680,,
http://opendatacommunities.org/id/london-borough-council/sutton,London Borough of Sutton,22/03/2018,40176419,"2,280.00",Abbeyfield Kent Society,28532,Peoples Services Directorate,Residential Care - Ext Provider,G310,,
http://opendatacommunities.org/id/london-borough-council/sutton,London Borough of Sutton,15/01/2018,6923452,"5,070.19",Absolute Care Services Ltd,10021,Peoples Services Directorate,Homecare Core Services,G336,,
http://opendatacommunities.org/id/london-borough-council/sutton,London Borough of Sutton,15/01/2018,6923453,"4,851.00",Absolute Care Services Ltd,10021,Peoples Services Directorate,Homecare Core Services,G336,,
http://opendatacommunities.org/id/london-borough-council/sutton,London Borough of Sutton,22/01/2018,6923843,"4,851.00",Absolute Care Services Ltd,10021,Peoples Services Directorate,Homecare Core Services,G336,,
http://opendatacommunities.org/id/london-borough-council/sutton,London Borough of Sutton,29/01/2018,6924258,"4,851.00",Absolute Care Services Ltd,10021,Peoples Services Directorate,Homecare Core Services,G336,,
http://opendatacommunities.org/id/london-borough-council/sutton,London Borough of Sutton,05/02/2018,6924764,"4,851.00",Absolute Care Services Ltd,10021,Peoples Services Directorate,Homecare Core Services,G336,,
http://opendatacommunities.org/id/london-borough-council/sutton,London Borough of Sutton,12/02/2018,6925287,"4,851.00",Absolute Care Services Ltd,10021,Peoples Services Directorate,Homecare Core Services,G336,,
http://opendatacommunities.org/id/london-borough-council/sutton,London Borough of Sutton,19/02/2018,6925742,"4,851.00",Absolute Care Services Ltd,10021,Peoples Services Directorate,Homecare Core Services,G336,,
http://opendatacommunities.org/id/london-borough-council/sutton,London Borough of Sutton,20/02/2018,6925793,"5,766.81",Absolute Care Services Ltd,10021,Peoples Services Directorate,Homecare Core Services,G336,,
http://opendatacommunities.org/id/london-borough-council/sutton,London Borough of Sutton,26/02/2018,6926121,"4,851.00",Absolute Care Services Ltd,10021,Peoples Services Directorate,Homecare Core Services,G336,,
http://opendatacommunities.org/id/london-borough-council/sutton,London Borough of Sutton,05/03/2018,6926699,"5,070.19",Absolute Care Services Ltd,10021,Peoples Services Directorate,Homecare Core Services,G336,,
http://opendatacommunities.org/id/london-borough-council/sutton,London Borough of Sutton,05/03/2018,6926700,"4,851.00",Absolute Care Services Ltd,10021,Peoples Services Directorate,Homecare Core Services,G336,,
http://opendatacommunities.org/id/london-borough-council/sutton,London Borough of Sutton,05/03/2018,6926701,921.69,Absolute Care Services Ltd,10021,Peoples Services Directorate,Homecare Core Services,G336,,
http://opendatacommunities.org/id/london-borough-council/sutton,London Borough of Sutton,05/03/2018,6926702,"5,766.81",Absolute Care Services Ltd,10021,Peoples Services Directorate,Homecare Core Services,G336,,
http://opendatacommunities.org/id/london-borough-council/sutton,London Borough of Sutton,12/03/2018,6927000,"5,766.81",Absolute Care Services Ltd,10021,Peoples Services Directorate,Homecare Core Services,G336,,
http://opendatacommunities.org/id/london-borough-council/sutton,London Borough of Sutton,12/03/2018,6927001,"4,851.00",Absolute Care Services Ltd,10021,Peoples Services Directorate,Homecare Core Services,G336,,
http://opendatacommunities.org/id/london-borough-council/sutton,London Borough of Sutton,12/03/2018,6927002,921.69,Absolute Care Services Ltd,10021,Peoples Services Directorate,Homecare Core Services,G336,,
http://opendatacommunities.org/id/london-borough-council/sutton,London Borough of Sutton,12/03/2018,6927004,"5,070.19",Absolute Care Services Ltd,10021,Peoples Services Directorate,Homecare Core Services,G336,,
http://opendatacommunities.org/id/london-borough-council/sutton,London Borough of Sutton,19/03/2018,6927544,921.69,Absolute Care Services Ltd,10021,Peoples Services Directorate,Homecare Core Services,G336,,
http://opendatacommunities.org/id/london-borough-council/sutton,London Borough of Sutton,19/03/2018,6927546,"5,070.19",Absolute Care Services Ltd,10021,Peoples Services Directorate,Homecare Core Services,G336,,
http://opendatacommunities.org/id/london-borough-council/sutton,London Borough of Sutton,19/03/2018,6927547,"5,766.81",Absolute Care Services Ltd,10021,Peoples Services Directorate,Homecare Core Services,G336,,
http://opendatacommunities.org/id/london-borough-council/sutton,London Borough of Sutton,19/03/2018,6927548,"4,851.00",Absolute Care Services Ltd,10021,Peoples Services Directorate,Homecare Core Services,G336,,
http://opendatacommunities.org/id/london-borough-council/sutton,London Borough of Sutton,26/03/2018,6928240,921.69,Absolute Care Services Ltd,10021,Peoples Services Directorate,Homecare Core Services,G336,,
http://opendatacommunities.org/id/london-borough-council/sutton,London Borough of Sutton,26/03/2018,6928241,"5,766.81",Absolute Care Services Ltd,10021,Peoples Services Directorate,Homecare Core Services,G336,,
http://opendatacommunities.org/id/london-borough-council/sutton,London Borough of Sutton,26/03/2018,6928244,"4,851.00",Absolute Care Services Ltd,10021,Peoples Services Directorate,Homecare Core Services,G336,,
http://opendatacommunities.org/id/london-borough-council/sutton,London Borough of Sutton,18/02/2018,40168233,589.72,Absolute Care Services Ltd,10021,Peoples Services Directorate,Home Care,G334,,
http://opendatacommunities.org/id/london-borough-council/sutton,London Borough of Sutton,18/02/2018,40168234,596.82,Absolute Care Services Ltd,10021,Peoples Services Directorate,Home Care,G334,,
http://opendatacommunities.org/id/london-borough-council/sutton,London Borough of Sutton,18/02/2018,40168331,596.82,Absolute Care Services Ltd,10021,Peoples Services Directorate,Home Care,G334,,
http://opendatacommunities.org/id/london-borough-council/sutton,London Borough of Sutton,14/01/2018,40168379,447.62,Absolute Care Services Ltd,10021,Peoples Services Directorate,Home Care,G334,,
http://opendatacommunities.org/id/london-borough-council/sutton,London Borough of Sutton,21/01/2018,40168380,447.62,Absolute Care Services Ltd,10021,Peoples Services Directorate,Home Care,G334,,
http://opendatacommunities.org/id/london-borough-council/sutton,London Borough of Sutton,18/02/2018,40168381,447.62,Absolute Care Services Ltd,10021,Peoples Services Directorate,Home Care,G334,,
http://opendatacommunities.org/id/london-borough-council/sutton,London Borough of Sutton,14/01/2018,40168396,447.62,Absolute Care Services Ltd,10021,Peoples Services Directorate,Home Care,G334,,
http://opendatacommunities.org/id/london-borough-council/sutton,London Borough of Sutton,21/01/2018,40168397,447.62,Absolute Care Services Ltd,10021,Peoples Services Directorate,Home Care,G334,,
http://opendatacommunities.org/id/london-borough-council/sutton,London Borough of Sutton,18/02/2018,40168424,433.37,Absolute Care Services Ltd,10021,Peoples Services Directorate,Home Care,G334,,
http://opendatacommunities.org/id/london-borough-council/sutton,London Borough of Sutton,14/01/2018,40168456,447.62,Absolute Care Services Ltd,10021,Peoples Services Directorate,Home Care,G334,,
http://opendatacommunities.org/id/london-borough-council/sutton,London Borough of Sutton,21/01/2018,40168457,447.62,Absolute Care Services Ltd,10021,Peoples Services Directorate,Home Care,G334,,
http://opendatacommunities.org/id/london-borough-council/sutton,London Borough of Sutton,18/02/2018,40168458,447.62,Absolute Care Services Ltd,10021,Peoples Services Directorate,Home Care,G334,,
http://opendatacommunities.org/id/london-borough-council/sutton,London Borough of Sutton,14/01/2018,40168465,497.35,Absolute Care Services Ltd,10021,Peoples Services Directorate,Home Care,G334,,
http://opendatacommunities.org/id/london-borough-council/sutton,London Borough of Sutton,21/01/2018,40168466,497.35,Absolute Care Services Ltd,10021,Peoples Services Directorate,Home Care,G334,,
http://opendatacommunities.org/id/london-borough-council/sutton,London Borough of Sutton,18/02/2018,40168467,497.35,Absolute Care Services Ltd,10021,Peoples Services Directorate,Home Care,G334,,
http://opendatacommunities.org/id/london-borough-council/sutton,London Borough of Sutton,14/01/2018,40168488,483.15,Absolute Care Services Ltd,10021,Peoples Services Directorate,Home Care,G334,,
http://opendatacommunities.org/id/london-borough-council/sutton,London Borough of Sutton,21/01/2018,40168489,483.15,Absolute Care Services Ltd,10021,Peoples Services Directorate,Home Care,G334,,
http://opendatacommunities.org/id/london-borough-council/sutton,London Borough of Sutton,18/02/2018,40168490,483.15,Absolute Care Services Ltd,10021,Peoples Services Directorate,Home Care,G334,,
http://opendatacommunities.org/id/london-borough-council/sutton,London Borough of Sutton,14/01/2018,40168507,596.82,Absolute Care Services Ltd,10021,Peoples Services Directorate,Home Care,G334,,
http://opendatacommunities.org/id/london-borough-council/sutton,London Borough of Sutton,21/01/2018,40168508,586.3,Absolute Care Services Ltd,10021,Peoples Services Directorate,Home Care,G334,,
http://opendatacommunities.org/id/london-borough-council/sutton,London Borough of Sutton,18/02/2018,40168509,596.82,Absolute Care Services Ltd,10021,Peoples Services Directorate,Home Care,G334,,
http://opendatacommunities.org/id/london-borough-council/sutton,London Borough of Sutton,14/01/2018,40168554,447.62,Absolute Care Services Ltd,10021,Peoples Services Directorate,Home Care,G334,,
http://opendatacommunities.org/id/london-borough-council/sutton,London Borough of Sutton,21/01/2018,40168555,447.62,Absolute Care Services Ltd,10021,Peoples Services Directorate,Home Care,G334,,
http://opendatacommunities.org/id/london-borough-council/sutton,London Borough of Sutton,18/02/2018,40168556,447.62,Absolute Care Services Ltd,10021,Peoples Services Directorate,Home Care,G334,,
http://opendatacommunities.org/id/london-borough-council/sutton,London Borough of Sutton,14/01/2018,40168557,696.29,Absolute Care Services Ltd,10021,Peoples Services Directorate,Home Care,G334,,
http://opendatacommunities.org/id/london-borough-council/sutton,London Borough of Sutton,21/01/2018,40168558,696.29,Absolute Care Services Ltd,10021,Peoples Services Directorate,Home Care,G334,,
http://opendatacommunities.org/id/london-borough-council/sutton,London Borough of Sutton,18/02/2018,40168626,471.28,Absolute Care Services Ltd,10021,Peoples Services Directorate,Home Care,G334,,
http://opendatacommunities.org/id/london-borough-council/sutton,London Borough of Sutton,14/01/2018,40168627,471.28,Absolute Care Services Ltd,10021,Peoples Services Directorate,Home Care,G334,,
http://opendatacommunities.org/id/london-borough-council/sutton,London Borough of Sutton,18/02/2018,40168814,426.56,Absolute Care Services Ltd,10021,Peoples Services Directorate,Home Care,G334,,
http://opendatacommunities.org/id/london-borough-council/sutton,London Borough of Sutton,14/01/2018,40168815,426.56,Absolute Care Services Ltd,10021,Peoples Services Directorate,Home Care,G334,,
http://opendatacommunities.org/id/london-borough-council/sutton,London Borough of Sutton,18/02/2018,40168816,433.44,Absolute Care Services Ltd,10021,Peoples Services Directorate,Home Care,G334,,
http://opendatacommunities.org/id/london-borough-council/sutton,London Borough of Sutton,14/01/2018,40168817,433.44,Absolute Care Services Ltd,10021,Peoples Services Directorate,Home Care,G334,,
http://opendatacommunities.org/id/london-borough-council/sutton,London Borough of Sutton,18/02/2018,40168827,601.27,Absolute Care Services Ltd,10021,Peoples Services Directorate,Home Care,G334,,
http://opendatacommunities.org/id/london-borough-council/sutton,London Borough of Sutton,18/02/2018,40168858,500.84,Absolute Care Services Ltd,10021,Peoples Services Directorate,Home Care,G334,,
http://opendatacommunities.org/id/london-borough-council/sutton,London Borough of Sutton,31/12/2017,40170631,455.56,Absolute Care Services Ltd,10021,Peoples Services Directorate,Home Care,G334,,
http://opendatacommunities.org/id/london-borough-council/sutton,London Borough of Sutton,25/02/2018,40170720,601.27,Absolute Care Services Ltd,10021,Peoples Services Directorate,Home Care,G334,,
http://opendatacommunities.org/id/london-borough-council/sutton,London Borough of Sutton,25/02/2018,40170743,500.84,Absolute Care Services Ltd,10021,Peoples Services Directorate,Home Care,G334,,
http://opendatacommunities.org/id/london-borough-council/sutton,London Borough of Sutton,08/03/2018,40170829,547.09,Absolute Care Services Ltd,10021,Peoples Services Directorate,Home Care,G334,,
http://opendatacommunities.org/id/london-borough-council/sutton,London Borough of Sutton,04/03/2018,40171295,589.72,Absolute Care Services Ltd,10021,Peoples Services Directorate,Home Care,G334,,
http://opendatacommunities.org/id/london-borough-council/sutton,London Borough of Sutton,04/03/2018,40171296,596.82,Absolute Care Services Ltd,10021,Peoples Services Directorate,Home Care,G334,,
http://opendatacommunities.org/id/london-borough-council/sutton,London Borough of Sutton,04/03/2018,40171314,426.3,Absolute Care Services Ltd,10021,Peoples Services Directorate,Home Care,G334,,
http://opendatacommunities.org/id/london-borough-council/sutton,London Borough of Sutton,25/02/2018,40171322,447.62,Absolute Care Services Ltd,10021,Peoples Services Directorate,Home Care,G334,,
http://opendatacommunities.org/id/london-borough-council/sutton,London Borough of Sutton,04/03/2018,40171323,447.62,Absolute Care Services Ltd,10021,Peoples Services Directorate,Home Care,G334,,
http://opendatacommunities.org/id/london-borough-council/sutton,London Borough of Sutton,25/02/2018,40171358,596.82,Absolute Care Services Ltd,10021,Peoples Services Directorate,Home Care,G334,,
http://opendatacommunities.org/id/london-borough-council/sutton,London Borough of Sutton,04/03/2018,40171359,596.82,Absolute Care Services Ltd,10021,Peoples Services Directorate,Home Care,G334,,
http://opendatacommunities.org/id/london-borough-council/sutton,London Borough of Sutton,25/02/2018,40171415,483.15,Absolute Care Services Ltd,10021,Peoples Services Directorate,Home Care,G334,,
http://opendatacommunities.org/id/london-borough-council/sutton,London Borough of Sutton,04/03/2018,40171416,483.15,Absolute Care Services Ltd,10021,Peoples Services Directorate,Home Care,G334,,
http://opendatacommunities.org/id/london-borough-council/sutton,London Borough of Sutton,25/02/2018,40171426,447.62,Absolute Care Services Ltd,10021,Peoples Services Directorate,Home Care,G334,,
http://opendatacommunities.org/id/london-borough-council/sutton,London Borough of Sutton,04/03/2018,40171427,447.62,Absolute Care Services Ltd,10021,Peoples Services Directorate,Home Care,G334,,
http://opendatacommunities.org/id/london-borough-council/sutton,London Borough of Sutton,25/02/2018,40171430,497.35,Absolute Care Services Ltd,10021,Peoples Services Directorate,Home Care,G334,,
http://opendatacommunities.org/id/london-borough-council/sutton,London Borough of Sutton,04/03/2018,40171431,497.35,Absolute Care Services Ltd,10021,Peoples Services Directorate,Home Care,G334,,
http://opendatacommunities.org/id/london-borough-council/sutton,London Borough of Sutton,25/02/2018,40171478,447.62,Absolute Care Services Ltd,10021,Peoples Services Directorate,Home Care,G334,,
http://opendatacommunities.org/id/london-borough-council/sutton,London Borough of Sutton,04/03/2018,40171479,447.62,Absolute Care Services Ltd,10021,Peoples Services Directorate,Home Care,G334,,
http://opendatacommunities.org/id/london-borough-council/sutton,London Borough of Sutton,25/02/2018,40171484,497.35,Absolute Care Services Ltd,10021,Peoples Services Directorate,Home Care,G334,,
http://opendatacommunities.org/id/london-borough-council/sutton,London Borough of Sutton,04/03/2018,40171485,497.35,Absolute Care Services Ltd,10021,Peoples Services Directorate,Home Care,G334,,
http://opendatacommunities.org/id/london-borough-council/sutton,London Borough of Sutton,04/03/2018,40171491,450.95,Absolute Care Services Ltd,10021,Peoples Services Directorate,Home Care,G334,,
http://opendatacommunities.org/id/london-borough-council/sutton,London Borough of Sutton,04/03/2018,40171502,500.84,Absolute Care Services Ltd,10021,Peoples Services Directorate,Home Care,G334,,
http://opendatacommunities.org/id/london-borough-council/sutton,London Borough of Sutton,25/02/2018,40172705,589.72,Absolute Care Services Ltd,10021,Peoples Services Directorate,Home Care,G334,,
http://opendatacommunities.org/id/london-borough-council/sutton,London Borough of Sutton,25/02/2018,40172706,596.82,Absolute Care Services Ltd,10021,Peoples Services Directorate,Home Care,G334,,
http://opendatacommunities.org/id/london-borough-council/sutton,London Borough of Sutton,25/02/2018,40172724,426.3,Absolute Care Services Ltd,10021,Peoples Services Directorate,Home Care,G334,,
http://opendatacommunities.org/id/london-borough-council/sutton,London Borough of Sutton,25/02/2018,40172777,471.28,Absolute Care Services Ltd,10021,Peoples Services Directorate,Home Care,G334,,
http://opendatacommunities.org/id/london-borough-council/sutton,London Borough of Sutton,25/02/2018,40172882,426.56,Absolute Care Services Ltd,10021,Peoples Services Directorate,Home Care,G334,,
http://opendatacommunities.org/id/london-borough-council/sutton,London Borough of Sutton,25/02/2018,40172883,433.44,Absolute Care Services Ltd,10021,Peoples Services Directorate,Home Care,G334,,
http://opendatacommunities.org/id/london-borough-council/sutton,London Borough of Sutton,22/02/2018,40173195,481.6,Absolute Care Services Ltd,10021,Peoples Services Directorate,Home Care,G334,,
http://opendatacommunities.org/id/london-borough-council/sutton,London Borough of Sutton,28/02/2018,40173204,547.09,Absolute Care Services Ltd,10021,Peoples Services Directorate,Home Care,G334,,
http://opendatacommunities.org/id/london-borough-council/sutton,London Borough of Sutton,22/02/2018,40173205,547.09,Absolute Care Services Ltd,10021,Peoples Services Directorate,Home Care,G334,,
http://opendatacommunities.org/id/london-borough-council/sutton,London Borough of Sutton,11/03/2018,40175740,596.82,Absolute Care Services Ltd,10021,Peoples Services Directorate,Home Care,G334,,
http://opendatacommunities.org/id/london-borough-council/sutton,London Borough of Sutton,04/03/2018,40175757,471.28,Absolute Care Services Ltd,10021,Peoples Services Directorate,Home Care,G334,,
http://opendatacommunities.org/id/london-borough-council/sutton,London Borough of Sutton,11/03/2018,40175758,471.28,Absolute Care Services Ltd,10021,Peoples Services Directorate,Home Care,G334,,
http://opendatacommunities.org/id/london-borough-council/sutton,London Borough of Sutton,11/03/2018,40175775,589.72,Absolute Care Services Ltd,10021,Peoples Services Directorate,Home Care,G334,,
http://opendatacommunities.org/id/london-borough-council/sutton,London Borough of Sutton,11/03/2018,40175776,603.93,Absolute Care Services Ltd,10021,Peoples Services Directorate,Home Care,G334,,
http://opendatacommunities.org/id/london-borough-council/sutton,London Borough of Sutton,11/03/2018,40175802,447.62,Absolute Care Services Ltd,10021,Peoples Services Directorate,Home Care,G334,,
http://opendatacommunities.org/id/london-borough-council/sutton,London Borough of Sutton,11/03/2018,40175840,490.25,Absolute Care Services Ltd,10021,Peoples Services Directorate,Home Care,G334,,
http://opendatacommunities.org/id/london-borough-council/sutton,London Borough of Sutton,11/03/2018,40175855,447.62,Absolute Care Services Ltd,10021,Peoples Services Directorate,Home Care,G334,,
http://opendatacommunities.org/id/london-borough-council/sutton,London Borough of Sutton,11/03/2018,40175857,497.35,Absolute Care Services Ltd,10021,Peoples Services Directorate,Home Care,G334,,
http://opendatacommunities.org/id/london-borough-council/sutton,London Borough of Sutton,11/03/2018,40175889,547.09,Absolute Care Services Ltd,10021,Peoples Services Directorate,Home Care,G334,,
http://opendatacommunities.org/id/london-borough-council/sutton,London Borough of Sutton,11/03/2018,40175900,447.62,Absolute Care Services Ltd,10021,Peoples Services Directorate,Home Care,G334,,
http://opendatacommunities.org/id/london-borough-council/sutton,London Borough of Sutton,11/03/2018,40175903,497.35,Absolute Care Services Ltd,10021,Peoples Services Directorate,Home Care,G334,,
http://opendatacommunities.org/id/london-borough-council/sutton,London Borough of Sutton,04/03/2018,40175916,426.56,Absolute Care Services Ltd,10021,Peoples Services Directorate,Home Care,G334,,
http://opendatacommunities.org/id/london-borough-council/sutton,London Borough of Sutton,11/03/2018,40175917,426.56,Absolute Care Services Ltd,10021,Peoples Services Directorate,Home Care,G334,,
http://opendatacommunities.org/id/london-borough-council/sutton,London Borough of Sutton,04/03/2018,40175918,433.44,Absolute Care Services Ltd,10021,Peoples Services Directorate,Home Care,G334,,
http://opendatacommunities.org/id/london-borough-council/sutton,London Borough of Sutton,11/03/2018,40175919,433.44,Absolute Care Services Ltd,10021,Peoples Services Directorate,Home Care,G334,,
http://opendatacommunities.org/id/london-borough-council/sutton,London Borough of Sutton,11/03/2018,40175929,543.46,Absolute Care Services Ltd,10021,Peoples Services Directorate,Home Care,G334,,
http://opendatacommunities.org/id/london-borough-council/sutton,London Borough of Sutton,11/03/2018,40175955,500.84,Absolute Care Services Ltd,10021,Peoples Services Directorate,Home Care,G334,,
http://opendatacommunities.org/id/london-borough-council/sutton,London Borough of Sutton,18/03/2018,40178665,426.56,Absolute Care Services Ltd,10021,Peoples Services Directorate,Home Care,G334,,
http://opendatacommunities.org/id/london-borough-council/sutton,London Borough of Sutton,18/03/2018,40178666,433.44,Absolute Care Services Ltd,10021,Peoples Services Directorate,Home Care,G334,,
http://opendatacommunities.org/id/london-borough-council/sutton,London Borough of Sutton,18/03/2018,40178673,601.27,Absolute Care Services Ltd,10021,Peoples Services Directorate,Home Care,G334,,
http://opendatacommunities.org/id/london-borough-council/sutton,London Borough of Sutton,18/03/2018,40178689,500.84,Absolute Care Services Ltd,10021,Peoples Services Directorate,Home Care,G334,,
http://opendatacommunities.org/id/london-borough-council/sutton,London Borough of Sutton,18/03/2018,40178703,589.72,Absolute Care Services Ltd,10021,Peoples Services Directorate,Home Care,G334,,
http://opendatacommunities.org/id/london-borough-council/sutton,London Borough of Sutton,18/03/2018,40178704,596.82,Absolute Care Services Ltd,10021,Peoples Services Directorate,Home Care,G334,,
http://opendatacommunities.org/id/london-borough-council/sutton,London Borough of Sutton,18/03/2018,40178761,471.28,Absolute Care Services Ltd,10021,Peoples Services Directorate,Home Care,G334,,
http://opendatacommunities.org/id/london-borough-council/sutton,London Borough of Sutton,18/03/2018,40178895,447.62,Absolute Care Services Ltd,10021,Peoples Services Directorate,Home Care,G334,,
http://opendatacommunities.org/id/london-borough-council/sutton,London Borough of Sutton,18/03/2018,40178943,596.82,Absolute Care Services Ltd,10021,Peoples Services Directorate,Home Care,G334,,
http://opendatacommunities.org/id/london-borough-council/sutton,London Borough of Sutton,18/03/2018,40178968,447.62,Absolute Care Services Ltd,10021,Peoples Services Directorate,Home Care,G334,,
http://opendatacommunities.org/id/london-borough-council/sutton,London Borough of Sutton,18/03/2018,40178990,483.15,Absolute Care Services Ltd,10021,Peoples Services Directorate,Home Care,G334,,
http://opendatacommunities.org/id/london-borough-council/sutton,London Borough of Sutton,18/03/2018,40179017,447.62,Absolute Care Services Ltd,10021,Peoples Services Directorate,Home Care,G334,,
http://opendatacommunities.org/id/london-borough-council/sutton,London Borough of Sutton,18/03/2018,40179020,497.35,Absolute Care Services Ltd,10021,Peoples Services Directorate,Home Care,G334,,
http://opendatacommunities.org/id/london-borough-council/sutton,London Borough of Sutton,18/03/2018,40179099,547.09,Absolute Care Services Ltd,10021,Peoples Services Directorate,Home Care,G334,,
http://opendatacommunities.org/id/london-borough-council/sutton,London Borough of Sutton,18/03/2018,40179135,447.62,Absolute Care Services Ltd,10021,Peoples Services Directorate,Home Care,G334,,
http://opendatacommunities.org/id/london-borough-council/sutton,London Borough of Sutton,18/03/2018,40179138,497.35,Absolute Care Services Ltd,10021,Peoples Services Directorate,Home Care,G334,,
http://opendatacommunities.org/id/london-borough-council/sutton,London Borough of Sutton,28/02/2018,1250832,"1,064.00",Access Mobility Transport Ltd,27456,Peoples Services Directorate,Hired Peoples Transport (Children),E072,,
http://opendatacommunities.org/id/london-borough-council/sutton,London Borough of Sutton,28/02/2018,1250833,"2,960.00",Access Mobility Transport Ltd,27456,Peoples Services Directorate,Hired Peoples Transport (Children),E072,,
http://opendatacommunities.org/id/london-borough-council/sutton,London Borough of Sutton,28/02/2018,6927451,"6,080.00",Accessible Solutions,99815,"Environment, Housing & Regeneration Directorate",Grants -Made,Y610,,
http://opendatacommunities.org/id/london-borough-council/sutton,London Borough of Sutton,07/03/2018,1251542,"4,900.00",Achieving For Children Limited,28009,Peoples Services Directorate,Special Educational Needs,G331,,
http://opendatacommunities.org/id/london-borough-council/sutton,London Borough of Sutton,01/02/2018,40170166,"1,461.30",Acorn Homes UK Ltd,25726,Peoples Services Directorate,Approved Lodgings,H323,,
http://opendatacommunities.org/id/london-borough-council/sutton,London Borough of Sutton,01/02/2018,40170167,"9,399.88",Acorn Homes UK Ltd,25726,Peoples Services Directorate,Residential Care-Children,G330,,
http://opendatacommunities.org/id/london-borough-council/sutton,London Borough of Sutton,01/02/2018,40170184,"4,550.00",Acorn Homes UK Ltd,25726,Peoples Services Directorate,Residential Care-Children,G330,,
http://opendatacommunities.org/id/london-borough-council/sutton,London Borough of Sutton,01/03/2018,40177109,"10,407.01",Acorn Homes UK Ltd,25726,Peoples Services Directorate,Residential Care-Children,G330,,
http://opendatacommunities.org/id/london-borough-council/sutton,London Borough of Sutton,22/03/2018,40176311,"2,903.20",Acorn Lodge,15804,Peoples Services Directorate,Residential Care - Ext Provider,G310,,
http://opendatacommunities.org/id/london-borough-council/sutton,London Borough of Sutton,22/03/2018,40176497,"3,042.36",Acorn Residential Home,15828,Peoples Services Directorate,Residential Care - Ext Provider,G310,,
http://opendatacommunities.org/id/london-borough-council/sutton,London Borough of Sutton,22/03/2018,40176342,630,Addiction Recovery Centres Ltd,23357,Peoples Services Directorate,Interim Placements - Ext Provider,G317,,
http://opendatacommunities.org/id/london-borough-council/sutton,London Borough of Sutton,07/03/2018,1250891,"189,412.47",Adecco Uk Ltd,10059,Resources Directorate,Suspense/Holding Accounts,X550,,
http://opendatacommunities.org/id/london-borough-council/sutton,London Borough of Sutton,16/03/2018,1251440,"136,728.44",Adecco Uk Ltd,10059,Resources Directorate,Suspense/Holding Accounts,X550,,
http://opendatacommunities.org/id/london-borough-council/sutton,London Borough of Sutton,21/03/2018,1251593,"169,017.12",Adecco Uk Ltd,10059,Resources Directorate,Suspense/Holding Accounts,X550,,
http://opendatacommunities.org/id/london-borough-council/sutton,London Borough of Sutton,29/03/2018,1252050,"170,447.49",Adecco Uk Ltd,10059,Resources Directorate,Suspense/Holding Accounts,X550,,
http://opendatacommunities.org/id/london-borough-council/sutton,London Borough of Sutton,01/02/2018,6926295,"1,250.00",Adoption Uk,10077,Peoples Services Directorate,Subscriptions - General,F450,,
http://opendatacommunities.org/id/london-borough-council/sutton,London Borough of Sutton,28/02/2018,6928327,"6,034.24",Advanced Demand Side Management Ltd,26989,Resources Directorate,Water - Metered,D690,,
http://opendatacommunities.org/id/london-borough-council/sutton,London Borough of Sutton,20/02/2018,6926532,848.61,Advanced Health & Care,23939,Peoples Services Directorate,Telephones - Other Expenses,F373,,
http://opendatacommunities.org/id/london-borough-council/sutton,London Borough of Sutton,27/02/2017,6926263,"6,750.00",Advocacy For All,24795,Peoples Services Directorate,Provider Contract Payments,F470,,
http://opendatacommunities.org/id/london-borough-council/sutton,London Borough of Sutton,02/03/2018,6926537,"15,833.33",Advocacy For All,24795,Peoples Services Directorate,Provider Contract Payments,F470,,
http://opendatacommunities.org/id/london-borough-council/sutton,London Borough of Sutton,02/03/2018,6926538,"4,166.66",Advocacy For All,24795,Peoples Services Directorate,Provider Contract Payments,F470,,
http://opendatacommunities.org/id/london-borough-council/sutton,London Borough of Sutton,01/03/2018,6927031,550,Advocacy For All,24795,Peoples Services Directorate,General Office Expenses,F235,,
http://opendatacommunities.org/id/london-borough-council/sutton,London Borough of Sutton,28/02/2018,40170113,"2,739.36",Affinity Fostering Services Ltd,26535,Peoples Services Directorate,Foster Parents,G326,,
http://opendatacommunities.org/id/london-borough-council/sutton,London Borough of Sutton,27/02/2018,6926505,"1,000.00",Age UK Sutton,10092,"Environment, Housing & Regeneration Directorate",Other Equipment - Purchase,F015,,
http://opendatacommunities.org/id/london-borough-council/sutton,London Borough of Sutton,22/03/2018,40176510,"7,511.00",Aims Care Partnership (Leighton House Ltd),12628,Peoples Services Directorate,Residential Care - Ext Provider,G310,,
http://opendatacommunities.org/id/london-borough-council/sutton,London Borough of Sutton,22/03/2018,40176521,"5,278.00",Aitch Care Homes,20446,Peoples Services Directorate,Residential Care - Ext Provider,G310,,
http://opendatacommunities.org/id/london-borough-council/sutton,London Borough of Sutton,22/03/2018,40176659,"8,400.16",Aitch Care Homes,20446,Peoples Services Directorate,Residential Care - Ext Provider,G310,,
http://opendatacommunities.org/id/london-borough-council/sutton,London Borough of Sutton,27/02/2017,6925885,435,Alere Toxicology Plc,24389,Peoples Services Directorate,Children Assessments,G329,,
http://opendatacommunities.org/id/london-borough-council/sutton,London Borough of Sutton,27/02/2017,6925886,420,Alere Toxicology Plc,24389,Peoples Services Directorate,Children Assessments,G329,,
http://opendatacommunities.org/id/london-borough-council/sutton,London Borough of Sutton,27/02/2017,6925887,618,Alere Toxicology Plc,24389,Peoples Services Directorate,Children Assessments,G329,,
http://opendatacommunities.org/id/london-borough-council/sutton,London Borough of Sutton,30/03/2017,6925890,"1,179.00",Alere Toxicology Plc,24389,Peoples Services Directorate,Children Assessments,G329,,
http://opendatacommunities.org/id/london-borough-council/sutton,London Borough of Sutton,28/06/2017,6925891,562.6,Alere Toxicology Plc,24389,Peoples Services Directorate,Children Assessments,G329,,
http://opendatacommunities.org/id/london-borough-council/sutton,London Borough of Sutton,25/10/2017,6925898,567,Alere Toxicology Plc,24389,Peoples Services Directorate,Children Assessments,G329,,
http://opendatacommunities.org/id/london-borough-council/sutton,London Borough of Sutton,09/08/2017,6925899,505.4,Alere Toxicology Plc,24389,Peoples Services Directorate,Children Assessments,G329,,
http://opendatacommunities.org/id/london-borough-council/sutton,London Borough of Sutton,12/03/2018,6927077,500,Aligned Assets Ltd,30095,Resources Directorate,IT Licences,F385,,
http://opendatacommunities.org/id/london-borough-council/sutton,London Borough of Sutton,12/03/2018,6927078,500,Aligned Assets Ltd,30095,Resources Directorate,IT Licences,F385,,
http://opendatacommunities.org/id/london-borough-council/sutton,London Borough of Sutton,12/03/2018,6927080,"1,500.00",Aligned Assets Ltd,30095,Resources Directorate,Internal Fees - Project Management,Y180,,
http://opendatacommunities.org/id/london-borough-council/sutton,London Borough of Sutton,26/02/2018,1250380,"1,213.26",All Saints Benhilton C Of E,10115,Peoples Services Directorate,Payments to Schools,G065,,
http://opendatacommunities.org/id/london-borough-council/sutton,London Borough of Sutton,12/03/2018,1251172,"1,450.00",All Saints Benhilton C Of E,10115,Peoples Services Directorate,Top-up Funding,G064,,
http://opendatacommunities.org/id/london-borough-council/sutton,London Borough of Sutton,12/03/2018,1251136,"2,537.50",All Saints Carshalton Primary School,16772,Peoples Services Directorate,Top-up Funding,G064,,
http://opendatacommunities.org/id/london-borough-council/sutton,London Borough of Sutton,20/03/2018,1251727,695.33,All Saints Carshalton Primary School,16772,Peoples Services Directorate,Payments to Schools,G065,,
http://opendatacommunities.org/id/london-borough-council/sutton,London Borough of Sutton,20/03/2018,1251734,948.33,All Saints Carshalton Primary School,16772,Peoples Services Directorate,Payments to Schools,G065,,
http://opendatacommunities.org/id/london-borough-council/sutton,London Borough of Sutton,20/03/2018,1251735,524,All Saints Carshalton Primary School,16772,Peoples Services Directorate,Payments to Schools,G065,,
http://opendatacommunities.org/id/london-borough-council/sutton,London Borough of Sutton,20/03/2018,1251736,"1,034.00",All Saints Carshalton Primary School,16772,Peoples Services Directorate,Payments to Schools,G065,,
http://opendatacommunities.org/id/london-borough-council/sutton,London Borough of Sutton,01/03/2018,6926556,"1,268.00",All Security Ltd,97190,"Environment, Housing & Regeneration Directorate",Agency Services,G431,,
http://opendatacommunities.org/id/london-borough-council/sutton,London Borough of Sutton,28/02/2018,6927798,680,All Time Catering Mobile Ltd,24434,"Environment, Housing & Regeneration Directorate",Refreshments,F155,,
http://opendatacommunities.org/id/london-borough-council/sutton,London Borough of Sutton,09/03/2018,40177124,"1,288.00",All4U Fostering Ltd,30193,Peoples Services Directorate,Foster Parents,G326,,
http://opendatacommunities.org/id/london-borough-council/sutton,London Borough of Sutton,09/03/2018,40177127,552,All4U Fostering Ltd,30193,Peoples Services Directorate,Foster Parents,G326,,
http://opendatacommunities.org/id/london-borough-council/sutton,London Borough of Sutton,27/02/2018,6926276,"1,740.00",Allen Lane Ltd,18334,Resources Directorate,Agency Staff - Other,A301,,
http://opendatacommunities.org/id/london-borough-council/sutton,London Borough of Sutton,06/03/2018,6926715,"2,958.00",Allen Lane Ltd,18334,Resources Directorate,Agency Staff - Other,A301,,
http://opendatacommunities.org/id/london-borough-council/sutton,London Borough of Sutton,06/03/2018,6926717,"1,566.00",Allen Lane Ltd,18334,Resources Directorate,Agency Staff - Other,A301,,
http://opendatacommunities.org/id/london-borough-council/sutton,London Borough of Sutton,06/03/2018,6926718,"1,247.00",Allen Lane Ltd,18334,Resources Directorate,Agency Staff - Other,A301,,
http://opendatacommunities.org/id/london-borough-council/sutton,London Borough of Sutton,06/03/2018,6926720,"1,617.65",Allen Lane Ltd,18334,Resources Directorate,Agency Staff - Other,A301,,
http://opendatacommunities.org/id/london-borough-council/sutton,London Borough of Sutton,13/03/2018,6927164,"1,566.00",Allen Lane Ltd,18334,Resources Directorate,Agency Staff - Other,A301,,
http://opendatacommunities.org/id/london-borough-council/sutton,London Borough of Sutton,01/02/2018,6927289,"1,496.40",Allen Lane Ltd,18334,Resources Directorate,Agency Staff - Other,A301,,
http://opendatacommunities.org/id/london-borough-council/sutton,London Borough of Sutton,13/03/2018,6927304,"1,617.65",Allen Lane Ltd,18334,Resources Directorate,Agency Staff - Other,A301,,
http://opendatacommunities.org/id/london-borough-council/sutton,London Borough of Sutton,13/03/2018,6927305,"1,247.00",Allen Lane Ltd,18334,Resources Directorate,Agency Staff - Other,A301,,
http://opendatacommunities.org/id/london-borough-council/sutton,London Borough of Sutton,13/03/2018,6927306,"1,740.00",Allen Lane Ltd,18334,Resources Directorate,Agency Staff - Other,A301,,
http://opendatacommunities.org/id/london-borough-council/sutton,London Borough of Sutton,20/03/2018,6927711,"1,392.00",Allen Lane Ltd,18334,Resources Directorate,Agency Staff - Other,A301,,
http://opendatacommunities.org/id/london-borough-council/sutton,London Borough of Sutton,20/03/2018,6927762,"1,566.00",Allen Lane Ltd,18334,Resources Directorate,Agency Staff - Other,A301,,
http://opendatacommunities.org/id/london-borough-council/sutton,London Borough of Sutton,20/03/2018,6927763,"1,247.00",Allen Lane Ltd,18334,Resources Directorate,Agency Staff - Other,A301,,
http://opendatacommunities.org/id/london-borough-council/sutton,London Borough of Sutton,20/03/2018,6927764,"1,455.89",Allen Lane Ltd,18334,Resources Directorate,Agency Staff - Other,A301,,
http://opendatacommunities.org/id/london-borough-council/sutton,London Borough of Sutton,26/03/2018,6928154,"1,740.00",Allen Lane Ltd,18334,Resources Directorate,Agency Staff - Other,A301,,
http://opendatacommunities.org/id/london-borough-council/sutton,London Borough of Sutton,22/03/2018,40176344,"3,625.00",Alliance Care (Dale Homes) Ltd T/A Uplands Care Home,26835,Peoples Services Directorate,Nursing Care - Ext Provider,G311,,
http://opendatacommunities.org/id/london-borough-council/sutton,London Borough of Sutton,22/03/2018,40176454,"4,454.16",Allied Care (Mhs) Ltd,10145,Peoples Services Directorate,Residential Care - Ext Provider,G310,,
http://opendatacommunities.org/id/london-borough-council/sutton,London Borough of Sutton,01/03/2018,6926503,"1,401.64",Allstar Business Solutions,24482,"Environment, Housing & Regeneration Directorate",Fuel Etc,E030,,
http://opendatacommunities.org/id/london-borough-council/sutton,London Borough of Sutton,22/03/2018,40176463,"4,400.00",Allswell Care Services Ltd,20761,Peoples Services Directorate,Residential Care - Ext Provider,G310,,
http://opendatacommunities.org/id/london-borough-council/sutton,London Borough of Sutton,22/03/2018,40176513,"6,370.00",Allswell Care Services Ltd,20761,Peoples Services Directorate,Residential Care - Ext Provider,G310,,
http://opendatacommunities.org/id/london-borough-council/sutton,London Borough of Sutton,22/03/2018,40176554,"3,480.00",Allswell Care Services Ltd,20761,Peoples Services Directorate,Residential Care - Ext Provider,G310,,
http://opendatacommunities.org/id/london-borough-council/sutton,London Borough of Sutton,05/02/2018,40177132,"11,999.96",Amegreen Childrens Services,27145,Peoples Services Directorate,Residential Care-Children,G330,,
http://opendatacommunities.org/id/london-borough-council/sutton,London Borough of Sutton,28/02/2018,6927182,"23,665.40",Ameo Professional Services Ltd,27868,Resources Directorate,Internal Fees - Project Management,Y180,,
http://opendatacommunities.org/id/london-borough-council/sutton,London Borough of Sutton,28/02/2018,6927401,"18,311.00",Ameo Professional Services Ltd,27868,Chief Executive's Directorate,Fees - Consultants (Ad Hoc),F283,,
http://opendatacommunities.org/id/london-borough-council/sutton,London Borough of Sutton,12/02/2018,40170125,"6,688.00",Anderida Adolescent Care Ltd,26195,Peoples Services Directorate,Residential Care-Children,G330,,
http://opendatacommunities.org/id/london-borough-council/sutton,London Borough of Sutton,22/03/2018,6928271,"1,698.00",Andrews Charitable Trust,26409,Peoples Services Directorate,Grants -Made,Y610,,
http://opendatacommunities.org/id/london-borough-council/sutton,London Borough of Sutton,01/03/2018,6926857,"2,360.00",Angel Lettings,18658,"Environment, Housing & Regeneration Directorate",Bed and Breakfast Accommodation,G400,,
http://opendatacommunities.org/id/london-borough-council/sutton,London Borough of Sutton,07/03/2018,6926777,"1,000.00",Anna Healthcare Ltd,99898,"Environment, Housing & Regeneration Directorate",Depositors,X460,,
http://opendatacommunities.org/id/london-borough-council/sutton,London Borough of Sutton,12/03/2018,6927028,"9,380.00",Antonio D'agostino,28665,Chief Executive's Directorate,Other Services,F340,,
http://opendatacommunities.org/id/london-borough-council/sutton,London Borough of Sutton,01/11/2017,6926343,"1,680.00",Aon UK Limited,26323,Unknown Directorate,Insurance Premiums (Other),F330,,
http://opendatacommunities.org/id/london-borough-council/sutton,London Borough of Sutton,28/02/2018,6926539,"5,806.94",Apetito Ltd,10206,Peoples Services Directorate,Provisions - General,F150,,
http://opendatacommunities.org/id/london-borough-council/sutton,London Borough of Sutton,28/02/2018,6926595,"10,140.20",Apex Housing Solutions Ltd,29950,"Environment, Housing & Regeneration Directorate",Bed and Breakfast Accommodation,G400,,
http://opendatacommunities.org/id/london-borough-council/sutton,London Borough of Sutton,06/03/2018,6927706,"4,416.00",APL Properties,26226,"Environment, Housing & Regeneration Directorate",Bed and Breakfast Accommodation,G400,,
http://opendatacommunities.org/id/london-borough-council/sutton,London Borough of Sutton,01/12/2017,6928189,"1,556.25",APL Properties,26226,"Environment, Housing & Regeneration Directorate",Bed and Breakfast Accommodation,G400,,
http://opendatacommunities.org/id/london-borough-council/sutton,London Borough of Sutton,07/02/2018,6927521,"20,185.67",Aragon Primary School,19874,Peoples Services Directorate,Recharge-Teaching Staff,A150,,
http://opendatacommunities.org/id/london-borough-council/sutton,London Borough of Sutton,03/01/2018,6926679,"4,472.00",Architype Ltd,25419,Peoples Services Directorate,External Fees  - Architects,Y100,,
http://opendatacommunities.org/id/london-borough-council/sutton,London Borough of Sutton,01/03/2018,6926819,"5,000.00",Architype Ltd,25419,Peoples Services Directorate,External Fees  - Architects,Y100,,
http://opendatacommunities.org/id/london-borough-council/sutton,London Borough of Sutton,01/03/2018,6926820,"9,529.93",Architype Ltd,25419,Peoples Services Directorate,External Fees  - Architects,Y100,,
http://opendatacommunities.org/id/london-borough-council/sutton,London Borough of Sutton,01/03/2018,6926936,"4,473.00",Architype Ltd,25419,Peoples Services Directorate,External Fees  - Architects,Y100,,
http://opendatacommunities.org/id/london-borough-council/sutton,London Borough of Sutton,12/02/2018,6928071,590,Archway Building Consultancy,30049,Peoples Services Directorate,External Fees  - Other,Y130,,
http://opendatacommunities.org/id/london-borough-council/sutton,London Borough of Sutton,12/02/2018,6928072,490,Archway Building Consultancy,30049,Peoples Services Directorate,External Fees  - Other,Y130,,
http://opendatacommunities.org/id/london-borough-council/sutton,London Borough of Sutton,12/02/2018,6928073,"1,340.00",Archway Building Consultancy,30049,Peoples Services Directorate,External Fees  - Other,Y130,,
http://opendatacommunities.org/id/london-borough-council/sutton,London Borough of Sutton,12/02/2018,6928074,"1,160.00",Archway Building Consultancy,30049,Peoples Services Directorate,External Fees  - Other,Y130,,
http://opendatacommunities.org/id/london-borough-council/sutton,London Borough of Sutton,10/01/2018,6928075,"1,950.00",Archway Building Consultancy,30049,Peoples Services Directorate,External Fees  - Other,Y130,,
http://opendatacommunities.org/id/london-borough-council/sutton,London Borough of Sutton,12/02/2018,6928078,"2,430.00",Archway Building Consultancy,30049,Peoples Services Directorate,Building Works -Main Contractor,Y350,,
http://opendatacommunities.org/id/london-borough-council/sutton,London Borough of Sutton,07/02/2018,40170189,"16,600.00",Area Camden Ltd,29908,Peoples Services Directorate,Residential Care-Children,G330,,
http://opendatacommunities.org/id/london-borough-council/sutton,London Borough of Sutton,09/03/2018,40177053,"18,378.57",Area Camden Ltd,29908,Peoples Services Directorate,Residential Care-Children,G330,,
http://opendatacommunities.org/id/london-borough-council/sutton,London Borough of Sutton,13/03/2018,6927813,"7,132.24",Arnold & Self,16110,"Environment, Housing & Regeneration Directorate",Bed and Breakfast Accommodation,G400,,
http://opendatacommunities.org/id/london-borough-council/sutton,London Borough of Sutton,26/01/2018,6927240,"7,532.50",Ascendit Lifts Limited,99815,"Environment, Housing & Regeneration Directorate",Grants -Made,Y610,,
http://opendatacommunities.org/id/london-borough-council/sutton,London Borough of Sutton,01/02/2018,40178558,768.04,Ashbrook House Ltd,23499,Peoples Services Directorate,Supported Living - Ext Provider,G306,,
http://opendatacommunities.org/id/london-borough-council/sutton,London Borough of Sutton,01/02/2018,40169173,"1,264.80",Ashlong House Ltd,23101,Peoples Services Directorate,Supported Living - Ext Provider,G306,,
http://opendatacommunities.org/id/london-borough-council/sutton,London Borough of Sutton,01/03/2018,40169174,"1,264.80",Ashlong House Ltd,23101,Peoples Services Directorate,Supported Living - Ext Provider,G306,,
http://opendatacommunities.org/id/london-borough-council/sutton,London Borough of Sutton,01/03/2018,40178588,884.48,Ashlong House Ltd,23101,Peoples Services Directorate,Supported Living - Ext Provider,G306,,
http://opendatacommunities.org/id/london-borough-council/sutton,London Borough of Sutton,22/03/2018,40176565,"5,492.48",Aspens Charities,30002,Peoples Services Directorate,Residential Care - Ext Provider,G310,,
http://opendatacommunities.org/id/london-borough-council/sutton,London Borough of Sutton,01/03/2018,6927307,952,Assetgrove Lettings Ltd,28820,"Environment, Housing & Regeneration Directorate",Bed and Breakfast Accommodation,G400,,
http://opendatacommunities.org/id/london-borough-council/sutton,London Borough of Sutton,01/03/2018,6927308,"1,117.20",Assetgrove Lettings Ltd,28820,"Environment, Housing & Regeneration Directorate",Bed and Breakfast Accommodation,G400,,
http://opendatacommunities.org/id/london-borough-council/sutton,London Borough of Sutton,01/03/2018,6927309,868,Assetgrove Lettings Ltd,28820,"Environment, Housing & Regeneration Directorate",Bed and Breakfast Accommodation,G400,,
http://opendatacommunities.org/id/london-borough-council/sutton,London Borough of Sutton,01/03/2018,6927310,558,Assetgrove Lettings Ltd,28820,"Environment, Housing & Regeneration Directorate",Bed and Breakfast Accommodation,G400,,
http://opendatacommunities.org/id/london-borough-council/sutton,London Borough of Sutton,01/03/2018,6927311,980,Assetgrove Lettings Ltd,28820,"Environment, Housing & Regeneration Directorate",Bed and Breakfast Accommodation,G400,,
http://opendatacommunities.org/id/london-borough-council/sutton,London Borough of Sutton,01/03/2018,6927312,"1,120.00",Assetgrove Lettings Ltd,28820,"Environment, Housing & Regeneration Directorate",Bed and Breakfast Accommodation,G400,,
http://opendatacommunities.org/id/london-borough-council/sutton,London Borough of Sutton,01/03/2018,6927313,952,Assetgrove Lettings Ltd,28820,"Environment, Housing & Regeneration Directorate",Bed and Breakfast Accommodation,G400,,
http://opendatacommunities.org/id/london-borough-council/sutton,London Borough of Sutton,01/03/2018,6927314,"1,463.00",Assetgrove Lettings Ltd,28820,"Environment, Housing & Regeneration Directorate",Bed and Breakfast Accommodation,G400,,
http://opendatacommunities.org/id/london-borough-council/sutton,London Borough of Sutton,01/03/2018,6927315,868,Assetgrove Lettings Ltd,28820,"Environment, Housing & Regeneration Directorate",Bed and Breakfast Accommodation,G400,,
http://opendatacommunities.org/id/london-borough-council/sutton,London Borough of Sutton,01/03/2018,6927316,980,Assetgrove Lettings Ltd,28820,"Environment, Housing & Regeneration Directorate",Bed and Breakfast Accommodation,G400,,
http://opendatacommunities.org/id/london-borough-council/sutton,London Borough of Sutton,01/03/2018,6927326,952,Assetgrove Lettings Ltd,28820,"Environment, Housing & Regeneration Directorate",Bed and Breakfast Accommodation,G400,,
http://opendatacommunities.org/id/london-borough-council/sutton,London Borough of Sutton,01/03/2018,6927327,868,Assetgrove Lettings Ltd,28820,"Environment, Housing & Regeneration Directorate",Bed and Breakfast Accommodation,G400,,
http://opendatacommunities.org/id/london-borough-council/sutton,London Borough of Sutton,01/03/2018,6927328,558,Assetgrove Lettings Ltd,28820,"Environment, Housing & Regeneration Directorate",Bed and Breakfast Accommodation,G400,,
http://opendatacommunities.org/id/london-borough-council/sutton,London Borough of Sutton,01/03/2018,6927330,837,Assetgrove Lettings Ltd,28820,"Environment, Housing & Regeneration Directorate",Bed and Breakfast Accommodation,G400,,
http://opendatacommunities.org/id/london-borough-council/sutton,London Borough of Sutton,01/03/2018,6927331,868,Assetgrove Lettings Ltd,28820,"Environment, Housing & Regeneration Directorate",Bed and Breakfast Accommodation,G400,,
http://opendatacommunities.org/id/london-borough-council/sutton,London Borough of Sutton,01/03/2018,6927332,868,Assetgrove Lettings Ltd,28820,"Environment, Housing & Regeneration Directorate",Bed and Breakfast Accommodation,G400,,
http://opendatacommunities.org/id/london-borough-council/sutton,London Borough of Sutton,01/03/2018,6927333,"1,117.20",Assetgrove Lettings Ltd,28820,"Environment, Housing & Regeneration Directorate",Bed and Breakfast Accommodation,G400,,
http://opendatacommunities.org/id/london-borough-council/sutton,London Borough of Sutton,01/03/2018,6927334,"1,117.20",Assetgrove Lettings Ltd,28820,"Environment, Housing & Regeneration Directorate",Bed and Breakfast Accommodation,G400,,
http://opendatacommunities.org/id/london-borough-council/sutton,London Borough of Sutton,01/03/2018,6927335,"1,755.60",Assetgrove Lettings Ltd,28820,"Environment, Housing & Regeneration Directorate",Bed and Breakfast Accommodation,G400,,
http://opendatacommunities.org/id/london-borough-council/sutton,London Borough of Sutton,01/03/2018,6927537,868,Assetgrove Lettings Ltd,28820,"Environment, Housing & Regeneration Directorate",Bed and Breakfast Accommodation,G400,,
http://opendatacommunities.org/id/london-borough-council/sutton,London Borough of Sutton,01/03/2018,6927563,868,Assetgrove Lettings Ltd,28820,"Environment, Housing & Regeneration Directorate",Bed and Breakfast Accommodation,G400,,
http://opendatacommunities.org/id/london-borough-council/sutton,London Borough of Sutton,01/03/2018,6927564,868,Assetgrove Lettings Ltd,28820,"Environment, Housing & Regeneration Directorate",Bed and Breakfast Accommodation,G400,,
http://opendatacommunities.org/id/london-borough-council/sutton,London Borough of Sutton,01/03/2018,6927565,868,Assetgrove Lettings Ltd,28820,"Environment, Housing & Regeneration Directorate",Bed and Breakfast Accommodation,G400,,
http://opendatacommunities.org/id/london-borough-council/sutton,London Borough of Sutton,01/03/2018,6927566,952,Assetgrove Lettings Ltd,28820,"Environment, Housing & Regeneration Directorate",Bed and Breakfast Accommodation,G400,,
http://opendatacommunities.org/id/london-borough-council/sutton,London Borough of Sutton,01/03/2018,6927567,"1,117.20",Assetgrove Lettings Ltd,28820,"Environment, Housing & Regeneration Directorate",Bed and Breakfast Accommodation,G400,,
http://opendatacommunities.org/id/london-borough-council/sutton,London Borough of Sutton,01/03/2018,6927568,"1,025.00",Assetgrove Lettings Ltd,28820,"Environment, Housing & Regeneration Directorate",Bed and Breakfast Accommodation,G400,,
http://opendatacommunities.org/id/london-borough-council/sutton,London Borough of Sutton,01/03/2018,6927573,"1,117.20",Assetgrove Lettings Ltd,28820,"Environment, Housing & Regeneration Directorate",Bed and Breakfast Accommodation,G400,,
http://opendatacommunities.org/id/london-borough-council/sutton,London Borough of Sutton,01/03/2018,6927574,868,Assetgrove Lettings Ltd,28820,"Environment, Housing & Regeneration Directorate",Bed and Breakfast Accommodation,G400,,
http://opendatacommunities.org/id/london-borough-council/sutton,London Borough of Sutton,01/03/2018,6927575,868,Assetgrove Lettings Ltd,28820,"Environment, Housing & Regeneration Directorate",Bed and Breakfast Accommodation,G400,,
http://opendatacommunities.org/id/london-borough-council/sutton,London Borough of Sutton,01/03/2018,6927585,"1,117.20",Assetgrove Lettings Ltd,28820,"Environment, Housing & Regeneration Directorate",Bed and Breakfast Accommodation,G400,,
http://opendatacommunities.org/id/london-borough-council/sutton,London Borough of Sutton,01/03/2018,6927587,820,Assetgrove Lettings Ltd,28820,"Environment, Housing & Regeneration Directorate",Bed and Breakfast Accommodation,G400,,
http://opendatacommunities.org/id/london-borough-council/sutton,London Borough of Sutton,20/03/2018,6927592,638.4,Assetgrove Lettings Ltd,28820,"Environment, Housing & Regeneration Directorate",Bed and Breakfast Accommodation,G400,,
http://opendatacommunities.org/id/london-borough-council/sutton,London Borough of Sutton,01/03/2018,6927607,868,Assetgrove Lettings Ltd,28820,"Environment, Housing & Regeneration Directorate",Bed and Breakfast Accommodation,G400,,
http://opendatacommunities.org/id/london-borough-council/sutton,London Borough of Sutton,01/03/2018,6927608,868,Assetgrove Lettings Ltd,28820,"Environment, Housing & Regeneration Directorate",Bed and Breakfast Accommodation,G400,,
http://opendatacommunities.org/id/london-borough-council/sutton,London Borough of Sutton,01/03/2018,6927609,868,Assetgrove Lettings Ltd,28820,"Environment, Housing & Regeneration Directorate",Bed and Breakfast Accommodation,G400,,
http://opendatacommunities.org/id/london-borough-council/sutton,London Borough of Sutton,01/03/2018,6927610,868,Assetgrove Lettings Ltd,28820,"Environment, Housing & Regeneration Directorate",Bed and Breakfast Accommodation,G400,,
http://opendatacommunities.org/id/london-borough-council/sutton,London Borough of Sutton,01/03/2018,6927611,868,Assetgrove Lettings Ltd,28820,"Environment, Housing & Regeneration Directorate",Bed and Breakfast Accommodation,G400,,
http://opendatacommunities.org/id/london-borough-council/sutton,London Borough of Sutton,01/03/2018,6927612,868,Assetgrove Lettings Ltd,28820,"Environment, Housing & Regeneration Directorate",Bed and Breakfast Accommodation,G400,,
http://opendatacommunities.org/id/london-borough-council/sutton,London Borough of Sutton,01/03/2018,6927613,868,Assetgrove Lettings Ltd,28820,"Environment, Housing & Regeneration Directorate",Bed and Breakfast Accommodation,G400,,
http://opendatacommunities.org/id/london-borough-council/sutton,London Borough of Sutton,01/03/2018,6927614,868,Assetgrove Lettings Ltd,28820,"Environment, Housing & Regeneration Directorate",Bed and Breakfast Accommodation,G400,,
http://opendatacommunities.org/id/london-borough-council/sutton,London Borough of Sutton,01/03/2018,6927615,868,Assetgrove Lettings Ltd,28820,"Environment, Housing & Regeneration Directorate",Bed and Breakfast Accommodation,G400,,
http://opendatacommunities.org/id/london-borough-council/sutton,London Borough of Sutton,01/03/2018,6927616,"1,117.20",Assetgrove Lettings Ltd,28820,"Environment, Housing & Regeneration Directorate",Bed and Breakfast Accommodation,G400,,
http://opendatacommunities.org/id/london-borough-council/sutton,London Borough of Sutton,01/03/2018,6927617,868,Assetgrove Lettings Ltd,28820,"Environment, Housing & Regeneration Directorate",Bed and Breakfast Accommodation,G400,,
http://opendatacommunities.org/id/london-borough-council/sutton,London Borough of Sutton,01/03/2018,6927618,"1,117.20",Assetgrove Lettings Ltd,28820,"Environment, Housing & Regeneration Directorate",Bed and Breakfast Accommodation,G400,,
http://opendatacommunities.org/id/london-borough-council/sutton,London Borough of Sutton,01/03/2018,6927619,868,Assetgrove Lettings Ltd,28820,"Environment, Housing & Regeneration Directorate",Bed and Breakfast Accommodation,G400,,
http://opendatacommunities.org/id/london-borough-council/sutton,London Borough of Sutton,01/03/2018,6927620,"1,117.20",Assetgrove Lettings Ltd,28820,"Environment, Housing & Regeneration Directorate",Bed and Breakfast Accommodation,G400,,
http://opendatacommunities.org/id/london-borough-council/sutton,London Borough of Sutton,01/03/2018,6927621,640,Assetgrove Lettings Ltd,28820,"Environment, Housing & Regeneration Directorate",Bed and Breakfast Accommodation,G400,,
http://opendatacommunities.org/id/london-borough-council/sutton,London Borough of Sutton,22/03/2018,6928096,961,Assetgrove Lettings Ltd,28820,"Environment, Housing & Regeneration Directorate",Bed and Breakfast Accommodation,G400,,
http://opendatacommunities.org/id/london-borough-council/sutton,London Borough of Sutton,22/03/2018,6928097,961,Assetgrove Lettings Ltd,28820,"Environment, Housing & Regeneration Directorate",Bed and Breakfast Accommodation,G400,,
http://opendatacommunities.org/id/london-borough-council/sutton,London Borough of Sutton,22/03/2018,6928099,510,Assetgrove Lettings Ltd,28820,"Environment, Housing & Regeneration Directorate",Bed and Breakfast Accommodation,G400,,
http://opendatacommunities.org/id/london-borough-council/sutton,London Borough of Sutton,22/03/2018,6928100,"1,236.90",Assetgrove Lettings Ltd,28820,"Environment, Housing & Regeneration Directorate",Bed and Breakfast Accommodation,G400,,
http://opendatacommunities.org/id/london-borough-council/sutton,London Borough of Sutton,22/03/2018,6928101,961,Assetgrove Lettings Ltd,28820,"Environment, Housing & Regeneration Directorate",Bed and Breakfast Accommodation,G400,,
http://opendatacommunities.org/id/london-borough-council/sutton,London Borough of Sutton,22/03/2018,6928102,"1,236.90",Assetgrove Lettings Ltd,28820,"Environment, Housing & Regeneration Directorate",Bed and Breakfast Accommodation,G400,,
http://opendatacommunities.org/id/london-borough-council/sutton,London Borough of Sutton,22/03/2018,6928103,961,Assetgrove Lettings Ltd,28820,"Environment, Housing & Regeneration Directorate",Bed and Breakfast Accommodation,G400,,
http://opendatacommunities.org/id/london-borough-council/sutton,London Borough of Sutton,22/03/2018,6928104,434,Assetgrove Lettings Ltd,28820,"Environment, Housing & Regeneration Directorate",Bed and Breakfast Accommodation,G400,,
http://opendatacommunities.org/id/london-borough-council/sutton,London Borough of Sutton,22/03/2018,6928105,434,Assetgrove Lettings Ltd,28820,"Environment, Housing & Regeneration Directorate",Bed and Breakfast Accommodation,G400,,
http://opendatacommunities.org/id/london-borough-council/sutton,London Borough of Sutton,22/03/2018,6928106,961,Assetgrove Lettings Ltd,28820,"Environment, Housing & Regeneration Directorate",Bed and Breakfast Accommodation,G400,,
http://opendatacommunities.org/id/london-borough-council/sutton,London Borough of Sutton,23/03/2018,6928107,682,Assetgrove Lettings Ltd,28820,"Environment, Housing & Regeneration Directorate",Bed and Breakfast Accommodation,G400,,
http://opendatacommunities.org/id/london-borough-council/sutton,London Borough of Sutton,23/03/2018,6928108,775,Assetgrove Lettings Ltd,28820,"Environment, Housing & Regeneration Directorate",Bed and Breakfast Accommodation,G400,,
http://opendatacommunities.org/id/london-borough-council/sutton,London Borough of Sutton,22/03/2018,6928109,"1,236.90",Assetgrove Lettings Ltd,28820,"Environment, Housing & Regeneration Directorate",Bed and Breakfast Accommodation,G400,,
http://opendatacommunities.org/id/london-borough-council/sutton,London Borough of Sutton,22/03/2018,6928110,"1,619.75",Assetgrove Lettings Ltd,28820,"Environment, Housing & Regeneration Directorate",Bed and Breakfast Accommodation,G400,,
http://opendatacommunities.org/id/london-borough-council/sutton,London Borough of Sutton,22/03/2018,6928111,"1,240.00",Assetgrove Lettings Ltd,28820,"Environment, Housing & Regeneration Directorate",Bed and Breakfast Accommodation,G400,,
http://opendatacommunities.org/id/london-borough-council/sutton,London Borough of Sutton,22/03/2018,6928112,"1,054.00",Assetgrove Lettings Ltd,28820,"Environment, Housing & Regeneration Directorate",Bed and Breakfast Accommodation,G400,,
http://opendatacommunities.org/id/london-borough-council/sutton,London Borough of Sutton,22/03/2018,6928113,961,Assetgrove Lettings Ltd,28820,"Environment, Housing & Regeneration Directorate",Bed and Breakfast Accommodation,G400,,
http://opendatacommunities.org/id/london-borough-council/sutton,London Borough of Sutton,22/03/2018,6928114,"1,085.00",Assetgrove Lettings Ltd,28820,"Environment, Housing & Regeneration Directorate",Bed and Breakfast Accommodation,G400,,
http://opendatacommunities.org/id/london-borough-council/sutton,London Borough of Sutton,22/03/2018,6928115,"1,085.00",Assetgrove Lettings Ltd,28820,"Environment, Housing & Regeneration Directorate",Bed and Breakfast Accommodation,G400,,
http://opendatacommunities.org/id/london-borough-council/sutton,London Borough of Sutton,22/03/2018,6928116,434,Assetgrove Lettings Ltd,28820,"Environment, Housing & Regeneration Directorate",Bed and Breakfast Accommodation,G400,,
http://opendatacommunities.org/id/london-borough-council/sutton,London Borough of Sutton,22/03/2018,6928117,"1,054.00",Assetgrove Lettings Ltd,28820,"Environment, Housing & Regeneration Directorate",Bed and Breakfast Accommodation,G400,,
http://opendatacommunities.org/id/london-borough-council/sutton,London Borough of Sutton,22/03/2018,6928118,"1,054.00",Assetgrove Lettings Ltd,28820,"Environment, Housing & Regeneration Directorate",Bed and Breakfast Accommodation,G400,,
http://opendatacommunities.org/id/london-borough-council/sutton,London Borough of Sutton,22/03/2018,6928119,961,Assetgrove Lettings Ltd,28820,"Environment, Housing & Regeneration Directorate",Bed and Breakfast Accommodation,G400,,
http://opendatacommunities.org/id/london-borough-council/sutton,London Borough of Sutton,22/03/2018,6928120,"1,236.90",Assetgrove Lettings Ltd,28820,"Environment, Housing & Regeneration Directorate",Bed and Breakfast Accommodation,G400,,
http://opendatacommunities.org/id/london-borough-council/sutton,London Borough of Sutton,22/03/2018,6928121,434,Assetgrove Lettings Ltd,28820,"Environment, Housing & Regeneration Directorate",Bed and Breakfast Accommodation,G400,,
http://opendatacommunities.org/id/london-borough-council/sutton,London Borough of Sutton,22/03/2018,6928122,"1,943.70",Assetgrove Lettings Ltd,28820,"Environment, Housing & Regeneration Directorate",Bed and Breakfast Accommodation,G400,,
http://opendatacommunities.org/id/london-borough-council/sutton,London Borough of Sutton,22/03/2018,6928123,"1,236.90",Assetgrove Lettings Ltd,28820,"Environment, Housing & Regeneration Directorate",Bed and Breakfast Accommodation,G400,,
http://opendatacommunities.org/id/london-borough-council/sutton,London Borough of Sutton,22/03/2018,6928124,434,Assetgrove Lettings Ltd,28820,"Environment, Housing & Regeneration Directorate",Bed and Breakfast Accommodation,G400,,
http://opendatacommunities.org/id/london-borough-council/sutton,London Borough of Sutton,22/03/2018,6928126,961,Assetgrove Lettings Ltd,28820,"Environment, Housing & Regeneration Directorate",Bed and Breakfast Accommodation,G400,,
http://opendatacommunities.org/id/london-borough-council/sutton,London Borough of Sutton,22/03/2018,40176525,"3,639.72",Assurance Care Services Ltd T/A Christ the King Residential Care Homes,27458,Peoples Services Directorate,Residential Care - Ext Provider,G310,,
http://opendatacommunities.org/id/london-borough-council/sutton,London Borough of Sutton,22/03/2018,40176320,"4,580.72",Autism & Aspergers Care Services,10327,Peoples Services Directorate,Residential Care - Ext Provider,G310,,
http://opendatacommunities.org/id/london-borough-council/sutton,London Borough of Sutton,22/03/2018,40176421,"2,805.00",Avante Ltd (Weybourne),24009,Peoples Services Directorate,Residential Care - Ext Provider,G310,,
http://opendatacommunities.org/id/london-borough-council/sutton,London Borough of Sutton,26/02/2018,1250385,420,Avenue Primary Acadamy,26025,Peoples Services Directorate,Payments to Schools,G065,,
http://opendatacommunities.org/id/london-borough-council/sutton,London Borough of Sutton,12/03/2018,1251138,"-2,360.00",Avenue Primary Acadamy,26025,Peoples Services Directorate,Place Funding,G063,,
http://opendatacommunities.org/id/london-borough-council/sutton,London Borough of Sutton,12/03/2018,1251139,"1,125.00",Avenue Primary Acadamy,26025,Peoples Services Directorate,Top-up Funding,G064,,
http://opendatacommunities.org/id/london-borough-council/sutton,London Borough of Sutton,28/02/2018,6928318,"76,185.00",Avenue Primary Acadamy,26025,Peoples Services Directorate,External Fees  - Architects,Y100,,
http://opendatacommunities.org/id/london-borough-council/sutton,London Borough of Sutton,27/02/2018,6927733,"4,550.00",Axiell Ltd,25933,Peoples Services Directorate,IT Equipment - Repair and Maintenance,F382,,
http://opendatacommunities.org/id/london-borough-council/sutton,London Borough of Sutton,21/02/2018,6928375,"1,741.32",Baily Garner LLP,21501,Peoples Services Directorate,External Fees  - Other,Y130,,
http://opendatacommunities.org/id/london-borough-council/sutton,London Borough of Sutton,22/03/2018,40176308,"3,200.00",Balcombe Care Homes Ltd,10367,Peoples Services Directorate,Nursing Care - Ext Provider,G311,,
http://opendatacommunities.org/id/london-borough-council/sutton,London Borough of Sutton,15/02/2018,6925602,"149,454.75",Bandon Hill Cemetery,16655,"Environment, Housing & Regeneration Directorate",Idverde - Contract Payment,G250,,
http://opendatacommunities.org/id/london-borough-council/sutton,London Borough of Sutton,12/03/2018,1251140,675,Bandon Hill Primary,10372,Peoples Services Directorate,Top-up Funding,G064,,
http://opendatacommunities.org/id/london-borough-council/sutton,London Borough of Sutton,12/03/2018,1251140,"6,283.00",Bandon Hill Primary,10372,Peoples Services Directorate,Top-up Funding,G064,,
http://opendatacommunities.org/id/london-borough-council/sutton,London Borough of Sutton,20/12/2017,6927121,"1,000.00",Banksearch Information Consultancy Ltd,24740,"Environment, Housing & Regeneration Directorate",Materials - General,F100,,
http://opendatacommunities.org/id/london-borough-council/sutton,London Borough of Sutton,28/02/2018,40170214,"3,258.36",Banya,10375,Peoples Services Directorate,Foster Parents,G326,,
http://opendatacommunities.org/id/london-borough-council/sutton,London Borough of Sutton,28/02/2018,40170215,"3,258.36",Banya,10375,Peoples Services Directorate,Foster Parents,G326,,
http://opendatacommunities.org/id/london-borough-council/sutton,London Borough of Sutton,06/03/2018,6926780,850,Barbara Woodman,99898,"Environment, Housing & Regeneration Directorate",Depositors,X460,,
http://opendatacommunities.org/id/london-borough-council/sutton,London Borough of Sutton,22/03/2018,40176677,"4,000.00",Barchester Healthcare - Atfield House,27028,Peoples Services Directorate,Nursing Care - Ext Provider,G311,,
http://opendatacommunities.org/id/london-borough-council/sutton,London Borough of Sutton,22/02/2018,40168591,786.5,Barnardo's,10370,Peoples Services Directorate,Provider Contract Payments,F470,,
http://opendatacommunities.org/id/london-borough-council/sutton,London Borough of Sutton,22/02/2018,40168599,598.5,Barnardo's,10370,Peoples Services Directorate,Provider Contract Payments,F470,,
http://opendatacommunities.org/id/london-borough-council/sutton,London Borough of Sutton,22/02/2018,40168600,672,Barnardo's,10370,Peoples Services Directorate,Provider Contract Payments,F470,,
http://opendatacommunities.org/id/london-borough-council/sutton,London Borough of Sutton,22/02/2018,40168601,567,Barnardo's,10370,Peoples Services Directorate,Provider Contract Payments,F470,,
http://opendatacommunities.org/id/london-borough-council/sutton,London Borough of Sutton,22/02/2018,40168608,736,Barnardo's,10370,Peoples Services Directorate,Provider Contract Payments,F470,,
http://opendatacommunities.org/id/london-borough-council/sutton,London Borough of Sutton,22/02/2018,40168609,714,Barnardo's,10370,Peoples Services Directorate,Provider Contract Payments,F470,,
http://opendatacommunities.org/id/london-borough-council/sutton,London Borough of Sutton,22/02/2018,40168612,440,Barnardo's,10370,Peoples Services Directorate,Provider Contract Payments,F470,,
http://opendatacommunities.org/id/london-borough-council/sutton,London Borough of Sutton,22/02/2018,40168613,440,Barnardo's,10370,Peoples Services Directorate,Provider Contract Payments,F470,,
http://opendatacommunities.org/id/london-borough-council/sutton,London Borough of Sutton,22/02/2018,40168619,"1,759.50",Barnardo's,10370,Peoples Services Directorate,Provider Contract Payments,F470,,
http://opendatacommunities.org/id/london-borough-council/sutton,London Borough of Sutton,06/02/2018,40170142,"3,214.68",Barnardo's,10370,Peoples Services Directorate,Foster Parents,G326,,
http://opendatacommunities.org/id/london-borough-council/sutton,London Borough of Sutton,09/03/2018,40173304,690,Barnardo's,10370,Peoples Services Directorate,Provider Contract Payments,F470,,
http://opendatacommunities.org/id/london-borough-council/sutton,London Borough of Sutton,09/03/2018,40173311,"1,627.25",Barnardo's,10370,Peoples Services Directorate,Provider Contract Payments,F470,,
http://opendatacommunities.org/id/london-borough-council/sutton,London Borough of Sutton,09/03/2018,40173314,550,Barnardo's,10370,Peoples Services Directorate,Provider Contract Payments,F470,,
http://opendatacommunities.org/id/london-borough-council/sutton,London Borough of Sutton,09/03/2018,40173316,672,Barnardo's,10370,Peoples Services Directorate,Provider Contract Payments,F470,,
http://opendatacommunities.org/id/london-borough-council/sutton,London Borough of Sutton,09/03/2018,40173317,504,Barnardo's,10370,Peoples Services Directorate,Provider Contract Payments,F470,,
http://opendatacommunities.org/id/london-borough-council/sutton,London Borough of Sutton,09/03/2018,40173318,654.5,Barnardo's,10370,Peoples Services Directorate,Provider Contract Payments,F470,,
http://opendatacommunities.org/id/london-borough-council/sutton,London Borough of Sutton,09/03/2018,40173320,621,Barnardo's,10370,Peoples Services Directorate,Provider Contract Payments,F470,,
http://opendatacommunities.org/id/london-borough-council/sutton,London Borough of Sutton,09/03/2018,40173321,594,Barnardo's,10370,Peoples Services Directorate,Provider Contract Payments,F470,,
http://opendatacommunities.org/id/london-borough-council/sutton,London Borough of Sutton,09/03/2018,40173326,546,Barnardo's,10370,Peoples Services Directorate,Provider Contract Payments,F470,,
http://opendatacommunities.org/id/london-borough-council/sutton,London Borough of Sutton,09/03/2018,40173327,525,Barnardo's,10370,Peoples Services Directorate,Provider Contract Payments,F470,,
http://opendatacommunities.org/id/london-borough-council/sutton,London Borough of Sutton,09/03/2018,40173328,440,Barnardo's,10370,Peoples Services Directorate,Provider Contract Payments,F470,,
http://opendatacommunities.org/id/london-borough-council/sutton,London Borough of Sutton,09/03/2018,40173332,619.5,Barnardo's,10370,Peoples Services Directorate,Provider Contract Payments,F470,,
http://opendatacommunities.org/id/london-borough-council/sutton,London Borough of Sutton,09/03/2018,40173333,782,Barnardo's,10370,Peoples Services Directorate,Provider Contract Payments,F470,,
http://opendatacommunities.org/id/london-borough-council/sutton,London Borough of Sutton,09/03/2018,40173334,440,Barnardo's,10370,Peoples Services Directorate,Provider Contract Payments,F470,,
http://opendatacommunities.org/id/london-borough-council/sutton,London Borough of Sutton,09/03/2018,40177112,"3,559.11",Barnardo's,10370,Peoples Services Directorate,Foster Parents,G326,,
http://opendatacommunities.org/id/london-borough-council/sutton,London Borough of Sutton,07/03/2018,6926818,"17,863.75",Barnett Waddingham LLP,28449,Unknown Directorate,Investment Expenses,A931,,
http://opendatacommunities.org/id/london-borough-council/sutton,London Borough of Sutton,16/02/2018,6926371,"10,200.00",Barrow Hedges Primary School,10383,Peoples Services Directorate,Building Works -Main Contractor,Y350,,
http://opendatacommunities.org/id/london-borough-council/sutton,London Borough of Sutton,16/02/2018,6926371,"1,510.00",Barrow Hedges Primary School,10383,Peoples Services Directorate,"Surveys, Trial Holes Etc",Y200,,
http://opendatacommunities.org/id/london-borough-council/sutton,London Borough of Sutton,01/03/2018,6927102,"30,370.78",Barrow Hedges Primary School,10383,Peoples Services Directorate,NNDR & Council Tax,D680,,
http://opendatacommunities.org/id/london-borough-council/sutton,London Borough of Sutton,28/02/2018,6928228,"3,218.00",Barrow Hedges Primary School,10383,Peoples Services Directorate,Equipment It,Y523,,
http://opendatacommunities.org/id/london-borough-council/sutton,London Borough of Sutton,09/03/2018,6927343,"1,465.67",Barts Health Nhs Trust,28991,Chief Executive's Directorate,Provider Contract Payments,F470,,
http://opendatacommunities.org/id/london-borough-council/sutton,London Borough of Sutton,09/03/2018,6927344,"1,465.67",Barts Health Nhs Trust,28991,Chief Executive's Directorate,Provider Contract Payments,F470,,
http://opendatacommunities.org/id/london-borough-council/sutton,London Borough of Sutton,01/02/2018,40170185,"3,580.08",Be My Family Fostering Agency,25179,Peoples Services Directorate,Foster Parents,G326,,
http://opendatacommunities.org/id/london-borough-council/sutton,London Borough of Sutton,01/02/2018,40170186,"3,244.08",Be My Family Fostering Agency,25179,Peoples Services Directorate,Foster Parents,G326,,
http://opendatacommunities.org/id/london-borough-council/sutton,London Borough of Sutton,05/03/2018,40177143,"3,963.66",Be My Family Fostering Agency,25179,Peoples Services Directorate,Foster Parents,G326,,
http://opendatacommunities.org/id/london-borough-council/sutton,London Borough of Sutton,15/03/2018,40177144,"3,591.66",Be My Family Fostering Agency,25179,Peoples Services Directorate,Foster Parents,G326,,
http://opendatacommunities.org/id/london-borough-council/sutton,London Borough of Sutton,12/03/2018,1251141,725,Beddington Infants School,10445,Peoples Services Directorate,Top-up Funding,G064,,
http://opendatacommunities.org/id/london-borough-council/sutton,London Borough of Sutton,13/02/2018,6925869,"4,000.00",Beddington Infants School,10445,"Environment, Housing & Regeneration Directorate",Earmarked Reserves - General,X680,,
http://opendatacommunities.org/id/london-borough-council/sutton,London Borough of Sutton,15/03/2018,6927407,"1,024.83",Bellville-Homes Ltd,26490,"Environment, Housing & Regeneration Directorate",General Office Expenses,F235,,
http://opendatacommunities.org/id/london-borough-council/sutton,London Borough of Sutton,20/01/2018,40170175,"13,819.96",Benjamin UK Ltd,23244,Peoples Services Directorate,Residential Care-Children,G330,,
http://opendatacommunities.org/id/london-borough-council/sutton,London Borough of Sutton,20/02/2018,40177072,"15,300.67",Benjamin UK Ltd,23244,Peoples Services Directorate,Residential Care-Children,G330,,
http://opendatacommunities.org/id/london-borough-council/sutton,London Borough of Sutton,22/03/2018,40176721,"2,332.00",Bertinaley Care Ltd T/A Angel Lodge,27109,Peoples Services Directorate,Interim Placements - Ext Provider,G317,,
http://opendatacommunities.org/id/london-borough-council/sutton,London Borough of Sutton,28/02/2018,6927299,700,Bestcourt UK Ltd,10441,"Environment, Housing & Regeneration Directorate",Bed and Breakfast Accommodation,G400,,
http://opendatacommunities.org/id/london-borough-council/sutton,London Borough of Sutton,22/03/2018,40176431,"2,800.00",Beverley Lodge Nursing Home,10434,Peoples Services Directorate,Nursing Care - Ext Provider,G311,,
http://opendatacommunities.org/id/london-borough-council/sutton,London Borough of Sutton,22/03/2018,40176541,"3,400.00",Beverley Lodge Nursing Home,10434,Peoples Services Directorate,Nursing Care - Ext Provider,G311,,
http://opendatacommunities.org/id/london-borough-council/sutton,London Borough of Sutton,22/03/2018,40176579,"2,226.40",Beverley Lodge Nursing Home,10434,Peoples Services Directorate,Nursing Care - Ext Provider,G311,,
http://opendatacommunities.org/id/london-borough-council/sutton,London Borough of Sutton,22/03/2018,40176732,"3,380.00",Beverley Lodge Nursing Home,10434,Peoples Services Directorate,Nursing Care - Ext Provider,G311,,
http://opendatacommunities.org/id/london-borough-council/sutton,London Borough of Sutton,22/02/2018,6928227,467.5,Beyond Autism,17692,Peoples Services Directorate,Payments to Schools,G065,,
http://opendatacommunities.org/id/london-borough-council/sutton,London Borough of Sutton,26/03/2018,40178627,490,Beyond Community Care Services Ltd,29933,Peoples Services Directorate,Home Care,G334,,
http://opendatacommunities.org/id/london-borough-council/sutton,London Borough of Sutton,08/03/2018,6927236,420.98,BFS Group T/A Bidfood,14589,Peoples Services Directorate,Refreshments,F155,,
http://opendatacommunities.org/id/london-borough-council/sutton,London Borough of Sutton,26/02/2018,6926161,"3,000.00",Bibliotheca Ltd,28968,"Environment, Housing & Regeneration Directorate",Equipment It,Y523,,
http://opendatacommunities.org/id/london-borough-council/sutton,London Borough of Sutton,06/03/2018,6926677,"3,000.00",Bibliotheca Ltd,28968,"Environment, Housing & Regeneration Directorate",Equipment It,Y523,,
http://opendatacommunities.org/id/london-borough-council/sutton,London Borough of Sutton,07/03/2018,6926843,"4,949.00",Bibliotheca Ltd,28968,Peoples Services Directorate,IT Equipment - Repair and Maintenance,F382,,
http://opendatacommunities.org/id/london-borough-council/sutton,London Borough of Sutton,06/03/2018,6926763,"8,878.16",Bloom Procurement Services Ltd,29692,Peoples Services Directorate,Contractual Consultant Fees,G430,,
http://opendatacommunities.org/id/london-borough-council/sutton,London Borough of Sutton,01/12/2017,1251524,"13,758.33",Blossom House Lower School,10507,Peoples Services Directorate,Independent Schools,G325,,
http://opendatacommunities.org/id/london-borough-council/sutton,London Borough of Sutton,22/02/2018,6928226,467.5,Blossom House Secondary School,18672,Peoples Services Directorate,Payments to Schools,G065,,
http://opendatacommunities.org/id/london-borough-council/sutton,London Borough of Sutton,26/03/2018,6928247,"2,968.63",Book Trust,10530,Peoples Services Directorate,LAC - Education,F269,,
http://opendatacommunities.org/id/london-borough-council/sutton,London Borough of Sutton,26/03/2018,6928247,"10,207.64",Book Trust,10530,Peoples Services Directorate,LAC - Education,F269,,
http://opendatacommunities.org/id/london-borough-council/sutton,London Borough of Sutton,29/03/2018,1252024,"2,153.90",Bournemouth University,10556,Peoples Services Directorate,Approved Lodgings,H323,,
http://opendatacommunities.org/id/london-borough-council/sutton,London Borough of Sutton,22/03/2018,40176351,"3,000.00",Bridge House Care Centre,10620,Peoples Services Directorate,Nursing Care - Ext Provider,G311,,
http://opendatacommunities.org/id/london-borough-council/sutton,London Borough of Sutton,22/03/2018,40176399,"2,034.96",Bridge House Care Centre,10620,Peoples Services Directorate,Nursing Care - Ext Provider,G311,,
http://opendatacommunities.org/id/london-borough-council/sutton,London Borough of Sutton,22/03/2018,40176455,"12,342.86",Bridge House Care Centre,10620,Peoples Services Directorate,Nursing Care - Ext Provider,G311,,
http://opendatacommunities.org/id/london-borough-council/sutton,London Borough of Sutton,22/03/2018,40176456,"3,360.00",Bridge House Care Centre,10620,Peoples Services Directorate,Nursing Care - Ext Provider,G311,,
http://opendatacommunities.org/id/london-borough-council/sutton,London Borough of Sutton,22/03/2018,40176457,"2,033.92",Bridge House Care Centre,10620,Peoples Services Directorate,Nursing Care - Ext Provider,G311,,
http://opendatacommunities.org/id/london-borough-council/sutton,London Borough of Sutton,22/03/2018,40176474,"3,400.00",Bridge House Care Centre,10620,Peoples Services Directorate,Nursing Care - Short Term Placements,G328,,
http://opendatacommunities.org/id/london-borough-council/sutton,London Borough of Sutton,22/03/2018,40176503,"3,380.00",Bridge House Care Centre,10620,Peoples Services Directorate,Nursing Care - Ext Provider,G311,,
http://opendatacommunities.org/id/london-borough-council/sutton,London Borough of Sutton,22/03/2018,40176504,"1,996.00",Bridge House Care Centre,10620,Peoples Services Directorate,Nursing Care - Ext Provider,G311,,
http://opendatacommunities.org/id/london-borough-council/sutton,London Borough of Sutton,22/03/2018,40176553,"3,200.00",Bridge House Care Centre,10620,Peoples Services Directorate,Nursing Care - Ext Provider,G311,,
http://opendatacommunities.org/id/london-borough-council/sutton,London Borough of Sutton,22/03/2018,40176700,"1,942.48",Bridge House Care Centre,10620,Peoples Services Directorate,Nursing Care - Ext Provider,G311,,
http://opendatacommunities.org/id/london-borough-council/sutton,London Borough of Sutton,01/02/2018,40170133,"2,780.00",Brighter Futures Foster Care Ltd,27648,Peoples Services Directorate,Foster Parents,G326,,
http://opendatacommunities.org/id/london-borough-council/sutton,London Borough of Sutton,01/02/2018,40170134,"2,780.00",Brighter Futures Foster Care Ltd,27648,Peoples Services Directorate,Foster Parents,G326,,
http://opendatacommunities.org/id/london-borough-council/sutton,London Borough of Sutton,01/02/2018,40170135,"3,440.00",Brighter Futures Foster Care Ltd,27648,Peoples Services Directorate,Foster Parents,G326,,
http://opendatacommunities.org/id/london-borough-council/sutton,London Borough of Sutton,01/02/2018,40170136,"2,584.00",Brighter Futures Foster Care Ltd,27648,Peoples Services Directorate,Foster Parents,G326,,
http://opendatacommunities.org/id/london-borough-council/sutton,London Borough of Sutton,01/03/2018,40177081,"3,077.86",Brighter Futures Foster Care Ltd,27648,Peoples Services Directorate,Foster Parents,G326,,
http://opendatacommunities.org/id/london-borough-council/sutton,London Borough of Sutton,01/03/2018,40177082,"3,077.86",Brighter Futures Foster Care Ltd,27648,Peoples Services Directorate,Foster Parents,G326,,
http://opendatacommunities.org/id/london-borough-council/sutton,London Borough of Sutton,01/03/2018,40177098,"3,808.57",Brighter Futures Foster Care Ltd,27648,Peoples Services Directorate,Foster Parents,G326,,
http://opendatacommunities.org/id/london-borough-council/sutton,London Borough of Sutton,01/03/2018,40177099,"2,860.86",Brighter Futures Foster Care Ltd,27648,Peoples Services Directorate,Foster Parents,G326,,
http://opendatacommunities.org/id/london-borough-council/sutton,London Borough of Sutton,10/03/2018,6927070,425,Britaniacrest Recycling Ltd,25243,Resources Directorate,Equipment It,Y523,,
http://opendatacommunities.org/id/london-borough-council/sutton,London Borough of Sutton,05/02/2018,6924779,"2,002.31",British Gas Plc,10577,Peoples Services Directorate,Electricity - General,D620,,
http://opendatacommunities.org/id/london-borough-council/sutton,London Borough of Sutton,22/03/2018,40176432,"2,710.40",British Home & Hospital For Incurables,10589,Peoples Services Directorate,Nursing Care - Ext Provider,G311,,
http://opendatacommunities.org/id/london-borough-council/sutton,London Borough of Sutton,22/03/2018,40176580,"2,439.36",British Home & Hospital For Incurables,10589,Peoples Services Directorate,Nursing Care - Ext Provider,G311,,
http://opendatacommunities.org/id/london-borough-council/sutton,London Borough of Sutton,13/02/2018,6926079,"1,430.00",British Telecommunications Plc,10574,Resources Directorate,"Telephones - Mobile, Pagers etc.",F374,,
http://opendatacommunities.org/id/london-borough-council/sutton,London Borough of Sutton,27/02/2018,6926783,"16,178.39",British Telecommunications Plc,10574,Resources Directorate,"Telephones - Mobile, Pagers etc.",F374,,
http://opendatacommunities.org/id/london-borough-council/sutton,London Borough of Sutton,22/03/2018,40176433,"3,500.71",Broadlands Nursing Home,10586,Peoples Services Directorate,Nursing Care - Ext Provider,G311,,
http://opendatacommunities.org/id/london-borough-council/sutton,London Borough of Sutton,22/03/2018,40176434,"3,380.00",Broadlands Nursing Home,10586,Peoples Services Directorate,Nursing Care - Ext Provider,G311,,
http://opendatacommunities.org/id/london-borough-council/sutton,London Borough of Sutton,22/03/2018,40176542,"2,945.00",Broadlands Nursing Home,10586,Peoples Services Directorate,Nursing Care - Ext Provider,G311,,
http://opendatacommunities.org/id/london-borough-council/sutton,London Borough of Sutton,22/03/2018,40176543,"1,835.60",Broadlands Nursing Home,10586,Peoples Services Directorate,Nursing Care - Ext Provider,G311,,
http://opendatacommunities.org/id/london-borough-council/sutton,London Borough of Sutton,22/03/2018,40176581,"1,457.14",Broadlands Nursing Home,10586,Peoples Services Directorate,Nursing Care - Ext Provider,G311,,
http://opendatacommunities.org/id/london-borough-council/sutton,London Borough of Sutton,22/03/2018,40176669,"2,064.28",Broadlands Nursing Home,10586,Peoples Services Directorate,Nursing Care - Short Term Placements,G328,,
http://opendatacommunities.org/id/london-borough-council/sutton,London Borough of Sutton,22/03/2018,40176733,"3,277.16",Broadlands Nursing Home,10586,Peoples Services Directorate,Nursing Care - Ext Provider,G311,,
http://opendatacommunities.org/id/london-borough-council/sutton,London Borough of Sutton,22/03/2018,40176720,681.43,Broadreach House Charity,28699,Peoples Services Directorate,Interim Placements - Ext Provider,G317,,
http://opendatacommunities.org/id/london-borough-council/sutton,London Borough of Sutton,12/03/2018,6927087,"1,680.00",Bromley & Croydon Women's Aid,26394,Peoples Services Directorate,C.C.A Rent & Utilities,H211,,
http://opendatacommunities.org/id/london-borough-council/sutton,London Borough of Sutton,20/03/2018,6927808,"41,890.00",Brompton Bike Hire Ltd,32117,"Environment, Housing & Regeneration Directorate",Surveys & Analysis,Y685,,
http://opendatacommunities.org/id/london-borough-council/sutton,London Borough of Sutton,31/01/2018,1250763,"3,423.00",Brunswick Cars 9761/1961276/Loc09,10611,Peoples Services Directorate,Hired Peoples Transport (Children),E072,,
http://opendatacommunities.org/id/london-borough-council/sutton,London Borough of Sutton,31/01/2018,1250764,"8,288.00",Brunswick Cars 9761/1961276/Loc09,10611,Peoples Services Directorate,Hired Peoples Transport (Children),E072,,
http://opendatacommunities.org/id/london-borough-council/sutton,London Borough of Sutton,31/01/2018,1250765,"5,932.50",Brunswick Cars 9761/1961276/Loc09,10611,Peoples Services Directorate,Hired Peoples Transport (Children),E072,,
http://opendatacommunities.org/id/london-borough-council/sutton,London Borough of Sutton,31/01/2018,1250766,"3,500.00",Brunswick Cars 9761/1961276/Loc09,10611,Peoples Services Directorate,Hired Peoples Transport (Children),E072,,
http://opendatacommunities.org/id/london-borough-council/sutton,London Borough of Sutton,31/01/2018,1250767,"7,129.50",Brunswick Cars 9761/1961276/Loc09,10611,Peoples Services Directorate,Hired Peoples Transport (Children),E072,,
http://opendatacommunities.org/id/london-borough-council/sutton,London Borough of Sutton,31/01/2018,1250769,"6,195.00",Brunswick Cars 9761/1961276/Loc09,10611,Peoples Services Directorate,Hired Peoples Transport (Children),E072,,
http://opendatacommunities.org/id/london-borough-council/sutton,London Borough of Sutton,31/01/2018,1250770,"5,607.00",Brunswick Cars 9761/1961276/Loc09,10611,Peoples Services Directorate,Hired Peoples Transport (Children),E072,,
http://opendatacommunities.org/id/london-borough-council/sutton,London Borough of Sutton,31/01/2018,1250771,"4,572.00",Brunswick Cars 9761/1961276/Loc09,10611,Peoples Services Directorate,Hired Peoples Transport (Children),E072,,
http://opendatacommunities.org/id/london-borough-council/sutton,London Borough of Sutton,31/01/2018,1250772,"4,360.00",Brunswick Cars 9761/1961276/Loc09,10611,Peoples Services Directorate,Hired Peoples Transport (Children),E072,,
http://opendatacommunities.org/id/london-borough-council/sutton,London Borough of Sutton,31/01/2018,1250773,"7,423.50",Brunswick Cars 9761/1961276/Loc09,10611,Peoples Services Directorate,Hired Peoples Transport (Children),E072,,
http://opendatacommunities.org/id/london-borough-council/sutton,London Borough of Sutton,31/01/2018,1250774,"7,070.00",Brunswick Cars 9761/1961276/Loc09,10611,Peoples Services Directorate,Hired Peoples Transport (Children),E072,,
http://opendatacommunities.org/id/london-borough-council/sutton,London Borough of Sutton,31/01/2018,1250775,"5,306.00",Brunswick Cars 9761/1961276/Loc09,10611,Peoples Services Directorate,Hired Peoples Transport (Children),E072,,
http://opendatacommunities.org/id/london-borough-council/sutton,London Borough of Sutton,31/01/2018,1250776,"1,872.00",Brunswick Cars 9761/1961276/Loc09,10611,Peoples Services Directorate,Hired Peoples Transport (Children),E072,,
http://opendatacommunities.org/id/london-borough-council/sutton,London Borough of Sutton,31/01/2018,1250777,"4,137.00",Brunswick Cars 9761/1961276/Loc09,10611,Peoples Services Directorate,Hired Peoples Transport (Children),E072,,
http://opendatacommunities.org/id/london-borough-council/sutton,London Borough of Sutton,31/01/2018,1250778,"3,130.00",Brunswick Cars 9761/1961276/Loc09,10611,Peoples Services Directorate,Hired Peoples Transport (Children),E072,,
http://opendatacommunities.org/id/london-borough-council/sutton,London Borough of Sutton,31/01/2018,1250779,"4,506.00",Brunswick Cars 9761/1961276/Loc09,10611,Peoples Services Directorate,Hired Peoples Transport (Children),E072,,
http://opendatacommunities.org/id/london-borough-council/sutton,London Borough of Sutton,31/01/2018,1250780,"3,822.00",Brunswick Cars 9761/1961276/Loc09,10611,Peoples Services Directorate,Hired Peoples Transport (Children),E072,,
http://opendatacommunities.org/id/london-borough-council/sutton,London Borough of Sutton,31/01/2018,1250781,"2,052.00",Brunswick Cars 9761/1961276/Loc09,10611,Peoples Services Directorate,Hired Peoples Transport (Children),E072,,
http://opendatacommunities.org/id/london-borough-council/sutton,London Borough of Sutton,31/01/2018,1250782,"5,122.00",Brunswick Cars 9761/1961276/Loc09,10611,Peoples Services Directorate,Hired Peoples Transport (Children),E072,,
http://opendatacommunities.org/id/london-borough-council/sutton,London Borough of Sutton,31/01/2018,1250783,"4,245.00",Brunswick Cars 9761/1961276/Loc09,10611,Peoples Services Directorate,Hired Peoples Transport (Children),E072,,
http://opendatacommunities.org/id/london-borough-council/sutton,London Borough of Sutton,31/01/2018,1250784,"2,504.00",Brunswick Cars 9761/1961276/Loc09,10611,Peoples Services Directorate,Hired Peoples Transport (Children),E072,,
http://opendatacommunities.org/id/london-borough-council/sutton,London Borough of Sutton,31/01/2018,1250785,"2,373.00",Brunswick Cars 9761/1961276/Loc09,10611,Peoples Services Directorate,Hired Peoples Transport (Children),E072,,
http://opendatacommunities.org/id/london-borough-council/sutton,London Borough of Sutton,31/01/2018,1250786,"3,300.00",Brunswick Cars 9761/1961276/Loc09,10611,Peoples Services Directorate,Hired Peoples Transport (Children),E072,,
http://opendatacommunities.org/id/london-borough-council/sutton,London Borough of Sutton,31/01/2018,1250787,"4,480.00",Brunswick Cars 9761/1961276/Loc09,10611,Peoples Services Directorate,Hired Peoples Transport (Children),E072,,
http://opendatacommunities.org/id/london-borough-council/sutton,London Borough of Sutton,31/01/2018,1250788,"4,392.00",Brunswick Cars 9761/1961276/Loc09,10611,Peoples Services Directorate,Hired Peoples Transport (Children),E072,,
http://opendatacommunities.org/id/london-borough-council/sutton,London Borough of Sutton,31/01/2018,1250789,"7,110.00",Brunswick Cars 9761/1961276/Loc09,10611,Peoples Services Directorate,Hired Peoples Transport (Children),E072,,
http://opendatacommunities.org/id/london-borough-council/sutton,London Borough of Sutton,31/01/2018,1250790,"2,980.00",Brunswick Cars 9761/1961276/Loc09,10611,Peoples Services Directorate,Hired Peoples Transport (Children),E072,,
http://opendatacommunities.org/id/london-borough-council/sutton,London Borough of Sutton,31/01/2018,1250791,"1,872.00",Brunswick Cars 9761/1961276/Loc09,10611,Peoples Services Directorate,Hired Peoples Transport (Children),E072,,
http://opendatacommunities.org/id/london-borough-council/sutton,London Borough of Sutton,31/01/2018,1250792,"4,740.00",Brunswick Cars 9761/1961276/Loc09,10611,Peoples Services Directorate,Hired Peoples Transport (Children),E072,,
http://opendatacommunities.org/id/london-borough-council/sutton,London Borough of Sutton,31/01/2018,1250793,"3,570.00",Brunswick Cars 9761/1961276/Loc09,10611,Peoples Services Directorate,Hired Peoples Transport (Children),E072,,
http://opendatacommunities.org/id/london-borough-council/sutton,London Borough of Sutton,31/01/2018,1250794,"2,380.00",Brunswick Cars 9761/1961276/Loc09,10611,Peoples Services Directorate,Hired Peoples Transport (Children),E072,,
http://opendatacommunities.org/id/london-borough-council/sutton,London Borough of Sutton,31/01/2018,1250795,"5,900.00",Brunswick Cars 9761/1961276/Loc09,10611,Peoples Services Directorate,Hired Peoples Transport (Children),E072,,
http://opendatacommunities.org/id/london-borough-council/sutton,London Borough of Sutton,31/01/2018,1250796,"3,813.00",Brunswick Cars 9761/1961276/Loc09,10611,Peoples Services Directorate,Hired Peoples Transport (Children),E072,,
http://opendatacommunities.org/id/london-borough-council/sutton,London Borough of Sutton,31/01/2018,1250797,"3,990.00",Brunswick Cars 9761/1961276/Loc09,10611,Peoples Services Directorate,Hired Peoples Transport (Children),E072,,
http://opendatacommunities.org/id/london-borough-council/sutton,London Borough of Sutton,31/01/2018,1250798,"3,874.00",Brunswick Cars 9761/1961276/Loc09,10611,Peoples Services Directorate,Hired Peoples Transport (Children),E072,,
http://opendatacommunities.org/id/london-borough-council/sutton,London Borough of Sutton,31/01/2018,1250799,"2,064.00",Brunswick Cars 9761/1961276/Loc09,10611,Peoples Services Directorate,Hired Peoples Transport (Children),E072,,
http://opendatacommunities.org/id/london-borough-council/sutton,London Borough of Sutton,31/01/2018,1250800,"4,985.00",Brunswick Cars 9761/1961276/Loc09,10611,Peoples Services Directorate,Hired Peoples Transport (Children),E072,,
http://opendatacommunities.org/id/london-borough-council/sutton,London Borough of Sutton,31/01/2018,1250801,"5,418.00",Brunswick Cars 9761/1961276/Loc09,10611,Peoples Services Directorate,Hired Peoples Transport (Children),E072,,
http://opendatacommunities.org/id/london-borough-council/sutton,London Borough of Sutton,31/01/2018,1250802,"1,720.00",Brunswick Cars 9761/1961276/Loc09,10611,Peoples Services Directorate,Hired Peoples Transport (Children),E072,,
http://opendatacommunities.org/id/london-borough-council/sutton,London Borough of Sutton,31/01/2018,1250803,"1,880.00",Brunswick Cars 9761/1961276/Loc09,10611,Peoples Services Directorate,Hired Peoples Transport (Children),E072,,
http://opendatacommunities.org/id/london-borough-council/sutton,London Borough of Sutton,31/01/2018,1250804,"2,058.00",Brunswick Cars 9761/1961276/Loc09,10611,Peoples Services Directorate,Hired Peoples Transport (Children),E072,,
http://opendatacommunities.org/id/london-borough-council/sutton,London Borough of Sutton,31/01/2018,1250805,"3,230.00",Brunswick Cars 9761/1961276/Loc09,10611,Peoples Services Directorate,Hired Peoples Transport (Children),E072,,
http://opendatacommunities.org/id/london-borough-council/sutton,London Borough of Sutton,31/01/2018,1250806,"4,221.00",Brunswick Cars 9761/1961276/Loc09,10611,Peoples Services Directorate,Hired Peoples Transport (Children),E072,,
http://opendatacommunities.org/id/london-borough-council/sutton,London Borough of Sutton,31/01/2018,1250807,"3,145.00",Brunswick Cars 9761/1961276/Loc09,10611,Peoples Services Directorate,Hired Peoples Transport (Children),E072,,
http://opendatacommunities.org/id/london-borough-council/sutton,London Borough of Sutton,31/01/2018,1250808,"2,360.00",Brunswick Cars 9761/1961276/Loc09,10611,Peoples Services Directorate,Hired Peoples Transport (Children),E072,,
http://opendatacommunities.org/id/london-borough-council/sutton,London Borough of Sutton,31/01/2018,1250809,"2,400.00",Brunswick Cars 9761/1961276/Loc09,10611,Peoples Services Directorate,Hired Peoples Transport (Children),E072,,
http://opendatacommunities.org/id/london-borough-council/sutton,London Borough of Sutton,31/01/2018,1250810,"2,247.00",Brunswick Cars 9761/1961276/Loc09,10611,Peoples Services Directorate,Hired Peoples Transport (Children),E072,,
http://opendatacommunities.org/id/london-borough-council/sutton,London Borough of Sutton,31/01/2018,1250811,"1,887.00",Brunswick Cars 9761/1961276/Loc09,10611,Peoples Services Directorate,Hired Peoples Transport (Children),E072,,
http://opendatacommunities.org/id/london-borough-council/sutton,London Borough of Sutton,31/01/2018,1250812,"1,701.00",Brunswick Cars 9761/1961276/Loc09,10611,Peoples Services Directorate,Hired Peoples Transport (Children),E072,,
http://opendatacommunities.org/id/london-borough-council/sutton,London Borough of Sutton,31/01/2018,1250813,"2,499.00",Brunswick Cars 9761/1961276/Loc09,10611,Peoples Services Directorate,Hired Peoples Transport (Children),E072,,
http://opendatacommunities.org/id/london-borough-council/sutton,London Borough of Sutton,31/01/2018,1250814,"2,478.00",Brunswick Cars 9761/1961276/Loc09,10611,Peoples Services Directorate,Hired Peoples Transport (Children),E072,,
http://opendatacommunities.org/id/london-borough-council/sutton,London Borough of Sutton,31/01/2018,1250815,"2,460.00",Brunswick Cars 9761/1961276/Loc09,10611,Peoples Services Directorate,Hired Peoples Transport (Children),E072,,
http://opendatacommunities.org/id/london-borough-council/sutton,London Borough of Sutton,31/01/2018,1250816,"4,500.00",Brunswick Cars 9761/1961276/Loc09,10611,Peoples Services Directorate,Hired Peoples Transport (Children),E072,,
http://opendatacommunities.org/id/london-borough-council/sutton,London Borough of Sutton,31/01/2018,1250817,"7,224.00",Brunswick Cars 9761/1961276/Loc09,10611,Peoples Services Directorate,Hired Peoples Transport (Children),E072,,
http://opendatacommunities.org/id/london-borough-council/sutton,London Borough of Sutton,31/01/2018,1250818,592,Brunswick Cars 9761/1961276/Loc09,10611,Peoples Services Directorate,Hired Peoples Transport (Children),E072,,
http://opendatacommunities.org/id/london-borough-council/sutton,London Borough of Sutton,31/01/2018,1250819,"1,568.00",Brunswick Cars 9761/1961276/Loc09,10611,Peoples Services Directorate,Hired Peoples Transport (Children),E072,,
http://opendatacommunities.org/id/london-borough-council/sutton,London Borough of Sutton,31/01/2018,1250820,935,Brunswick Cars 9761/1961276/Loc09,10611,Peoples Services Directorate,Hired Peoples Transport (Children),E072,,
http://opendatacommunities.org/id/london-borough-council/sutton,London Borough of Sutton,31/01/2018,1250821,"1,984.00",Brunswick Cars 9761/1961276/Loc09,10611,Peoples Services Directorate,Hired Peoples Transport (Children),E072,,
http://opendatacommunities.org/id/london-borough-council/sutton,London Borough of Sutton,31/01/2018,1250822,"2,688.00",Brunswick Cars 9761/1961276/Loc09,10611,Peoples Services Directorate,Hired Peoples Transport (Children),E072,,
http://opendatacommunities.org/id/london-borough-council/sutton,London Borough of Sutton,31/01/2018,1250823,"2,550.00",Brunswick Cars 9761/1961276/Loc09,10611,Peoples Services Directorate,Hired Peoples Transport (Children),E072,,
http://opendatacommunities.org/id/london-borough-council/sutton,London Borough of Sutton,31/01/2018,1250824,444,Brunswick Cars 9761/1961276/Loc09,10611,Peoples Services Directorate,Hired Peoples Transport (Children),E072,,
http://opendatacommunities.org/id/london-borough-council/sutton,London Borough of Sutton,31/01/2018,1250825,"4,428.00",Brunswick Cars 9761/1961276/Loc09,10611,Peoples Services Directorate,Hired Peoples Transport (Children),E072,,
http://opendatacommunities.org/id/london-borough-council/sutton,London Borough of Sutton,31/01/2018,1250826,"1,026.00",Brunswick Cars 9761/1961276/Loc09,10611,Peoples Services Directorate,Hired Peoples Transport (Children),E072,,
http://opendatacommunities.org/id/london-borough-council/sutton,London Borough of Sutton,31/12/2017,1250829,"2,613.00",Brunswick Cars 9761/1961276/Loc09,10611,Peoples Services Directorate,Hired Peoples Transport (Children),E072,,
http://opendatacommunities.org/id/london-borough-council/sutton,London Borough of Sutton,31/12/2017,1250830,"3,738.00",Brunswick Cars 9761/1961276/Loc09,10611,Peoples Services Directorate,Hired Peoples Transport (Children),E072,,
http://opendatacommunities.org/id/london-borough-council/sutton,London Borough of Sutton,31/12/2017,1250831,"2,166.00",Brunswick Cars 9761/1961276/Loc09,10611,Peoples Services Directorate,Hired Peoples Transport (Children),E072,,
http://opendatacommunities.org/id/london-borough-council/sutton,London Borough of Sutton,28/02/2018,1251071,"2,445.00",Brunswick Cars 9761/1961276/Loc09,10611,Peoples Services Directorate,Hired Peoples Transport (Children),E072,,
http://opendatacommunities.org/id/london-borough-council/sutton,London Borough of Sutton,28/02/2018,1251072,"4,464.00",Brunswick Cars 9761/1961276/Loc09,10611,Peoples Services Directorate,Hired Peoples Transport (Children),E072,,
http://opendatacommunities.org/id/london-borough-council/sutton,London Borough of Sutton,28/02/2018,1251073,"4,237.50",Brunswick Cars 9761/1961276/Loc09,10611,Peoples Services Directorate,Hired Peoples Transport (Children),E072,,
http://opendatacommunities.org/id/london-borough-council/sutton,London Borough of Sutton,28/02/2018,1251074,"2,625.00",Brunswick Cars 9761/1961276/Loc09,10611,Peoples Services Directorate,Hired Peoples Transport (Children),E072,,
http://opendatacommunities.org/id/london-borough-council/sutton,London Borough of Sutton,28/02/2018,1251075,"4,753.00",Brunswick Cars 9761/1961276/Loc09,10611,Peoples Services Directorate,Hired Peoples Transport (Children),E072,,
http://opendatacommunities.org/id/london-borough-council/sutton,London Borough of Sutton,28/02/2018,1251077,"4,425.00",Brunswick Cars 9761/1961276/Loc09,10611,Peoples Services Directorate,Hired Peoples Transport (Children),E072,,
http://opendatacommunities.org/id/london-borough-council/sutton,London Borough of Sutton,28/02/2018,1251078,"4,005.00",Brunswick Cars 9761/1961276/Loc09,10611,Peoples Services Directorate,Hired Peoples Transport (Children),E072,,
http://opendatacommunities.org/id/london-borough-council/sutton,London Borough of Sutton,28/02/2018,1251079,"3,418.00",Brunswick Cars 9761/1961276/Loc09,10611,Peoples Services Directorate,Hired Peoples Transport (Children),E072,,
http://opendatacommunities.org/id/london-borough-council/sutton,London Borough of Sutton,28/02/2018,1251080,"3,270.00",Brunswick Cars 9761/1961276/Loc09,10611,Peoples Services Directorate,Hired Peoples Transport (Children),E072,,
http://opendatacommunities.org/id/london-borough-council/sutton,London Borough of Sutton,28/02/2018,1251081,"6,479.00",Brunswick Cars 9761/1961276/Loc09,10611,Peoples Services Directorate,Hired Peoples Transport (Children),E072,,
http://opendatacommunities.org/id/london-borough-council/sutton,London Borough of Sutton,28/02/2018,1251082,"5,476.00",Brunswick Cars 9761/1961276/Loc09,10611,Peoples Services Directorate,Hired Peoples Transport (Children),E072,,
http://opendatacommunities.org/id/london-borough-council/sutton,London Borough of Sutton,28/02/2018,1251083,"3,849.50",Brunswick Cars 9761/1961276/Loc09,10611,Peoples Services Directorate,Hired Peoples Transport (Children),E072,,
http://opendatacommunities.org/id/london-borough-council/sutton,London Borough of Sutton,28/02/2018,1251084,"1,560.00",Brunswick Cars 9761/1961276/Loc09,10611,Peoples Services Directorate,Hired Peoples Transport (Children),E072,,
http://opendatacommunities.org/id/london-borough-council/sutton,London Borough of Sutton,28/02/2018,1251085,"2,955.00",Brunswick Cars 9761/1961276/Loc09,10611,Peoples Services Directorate,Hired Peoples Transport (Children),E072,,
http://opendatacommunities.org/id/london-borough-council/sutton,London Borough of Sutton,28/02/2018,1251086,"2,347.50",Brunswick Cars 9761/1961276/Loc09,10611,Peoples Services Directorate,Hired Peoples Transport (Children),E072,,
http://opendatacommunities.org/id/london-borough-council/sutton,London Borough of Sutton,28/02/2018,1251087,"3,705.00",Brunswick Cars 9761/1961276/Loc09,10611,Peoples Services Directorate,Hired Peoples Transport (Children),E072,,
http://opendatacommunities.org/id/london-borough-council/sutton,London Borough of Sutton,28/02/2018,1251088,"2,730.00",Brunswick Cars 9761/1961276/Loc09,10611,Peoples Services Directorate,Hired Peoples Transport (Children),E072,,
http://opendatacommunities.org/id/london-borough-council/sutton,London Borough of Sutton,28/02/2018,1251089,"1,710.00",Brunswick Cars 9761/1961276/Loc09,10611,Peoples Services Directorate,Hired Peoples Transport (Children),E072,,
http://opendatacommunities.org/id/london-borough-council/sutton,London Borough of Sutton,28/02/2018,1251090,"3,990.00",Brunswick Cars 9761/1961276/Loc09,10611,Peoples Services Directorate,Hired Peoples Transport (Children),E072,,
http://opendatacommunities.org/id/london-borough-council/sutton,London Borough of Sutton,28/02/2018,1251091,"3,135.00",Brunswick Cars 9761/1961276/Loc09,10611,Peoples Services Directorate,Hired Peoples Transport (Children),E072,,
http://opendatacommunities.org/id/london-borough-council/sutton,London Borough of Sutton,28/02/2018,1251092,"2,194.00",Brunswick Cars 9761/1961276/Loc09,10611,Peoples Services Directorate,Hired Peoples Transport (Children),E072,,
http://opendatacommunities.org/id/london-borough-council/sutton,London Borough of Sutton,28/02/2018,1251093,"1,582.00",Brunswick Cars 9761/1961276/Loc09,10611,Peoples Services Directorate,Hired Peoples Transport (Children),E072,,
http://opendatacommunities.org/id/london-borough-council/sutton,London Borough of Sutton,28/02/2018,1251094,"2,651.00",Brunswick Cars 9761/1961276/Loc09,10611,Peoples Services Directorate,Hired Peoples Transport (Children),E072,,
http://opendatacommunities.org/id/london-borough-council/sutton,London Borough of Sutton,28/02/2018,1251095,"3,360.00",Brunswick Cars 9761/1961276/Loc09,10611,Peoples Services Directorate,Hired Peoples Transport (Children),E072,,
http://opendatacommunities.org/id/london-borough-council/sutton,London Borough of Sutton,28/02/2018,1251096,"3,294.00",Brunswick Cars 9761/1961276/Loc09,10611,Peoples Services Directorate,Hired Peoples Transport (Children),E072,,
http://opendatacommunities.org/id/london-borough-council/sutton,London Borough of Sutton,28/02/2018,1251097,"5,332.50",Brunswick Cars 9761/1961276/Loc09,10611,Peoples Services Directorate,Hired Peoples Transport (Children),E072,,
http://opendatacommunities.org/id/london-borough-council/sutton,London Borough of Sutton,28/02/2018,1251098,"2,235.00",Brunswick Cars 9761/1961276/Loc09,10611,Peoples Services Directorate,Hired Peoples Transport (Children),E072,,
http://opendatacommunities.org/id/london-borough-council/sutton,London Borough of Sutton,28/02/2018,1251099,"1,560.00",Brunswick Cars 9761/1961276/Loc09,10611,Peoples Services Directorate,Hired Peoples Transport (Children),E072,,
http://opendatacommunities.org/id/london-borough-council/sutton,London Borough of Sutton,28/02/2018,1251100,"3,555.00",Brunswick Cars 9761/1961276/Loc09,10611,Peoples Services Directorate,Hired Peoples Transport (Children),E072,,
http://opendatacommunities.org/id/london-borough-council/sutton,London Borough of Sutton,28/02/2018,1251101,"1,890.00",Brunswick Cars 9761/1961276/Loc09,10611,Peoples Services Directorate,Hired Peoples Transport (Children),E072,,
http://opendatacommunities.org/id/london-borough-council/sutton,London Borough of Sutton,28/02/2018,1251102,"1,785.00",Brunswick Cars 9761/1961276/Loc09,10611,Peoples Services Directorate,Hired Peoples Transport (Children),E072,,
http://opendatacommunities.org/id/london-borough-council/sutton,London Borough of Sutton,28/02/2018,1251103,"4,380.00",Brunswick Cars 9761/1961276/Loc09,10611,Peoples Services Directorate,Hired Peoples Transport (Children),E072,,
http://opendatacommunities.org/id/london-borough-council/sutton,London Borough of Sutton,28/02/2018,1251104,"2,730.00",Brunswick Cars 9761/1961276/Loc09,10611,Peoples Services Directorate,Hired Peoples Transport (Children),E072,,
http://opendatacommunities.org/id/london-borough-council/sutton,London Borough of Sutton,28/02/2018,1251105,"2,870.00",Brunswick Cars 9761/1961276/Loc09,10611,Peoples Services Directorate,Hired Peoples Transport (Children),E072,,
http://opendatacommunities.org/id/london-borough-council/sutton,London Borough of Sutton,28/02/2018,1251106,"2,925.00",Brunswick Cars 9761/1961276/Loc09,10611,Peoples Services Directorate,Hired Peoples Transport (Children),E072,,
http://opendatacommunities.org/id/london-borough-council/sutton,London Borough of Sutton,28/02/2018,1251107,"1,419.00",Brunswick Cars 9761/1961276/Loc09,10611,Peoples Services Directorate,Hired Peoples Transport (Children),E072,,
http://opendatacommunities.org/id/london-borough-council/sutton,London Borough of Sutton,28/02/2018,1251108,"3,655.00",Brunswick Cars 9761/1961276/Loc09,10611,Peoples Services Directorate,Hired Peoples Transport (Children),E072,,
http://opendatacommunities.org/id/london-borough-council/sutton,London Borough of Sutton,28/02/2018,1251109,"3,870.00",Brunswick Cars 9761/1961276/Loc09,10611,Peoples Services Directorate,Hired Peoples Transport (Children),E072,,
http://opendatacommunities.org/id/london-borough-council/sutton,London Borough of Sutton,28/02/2018,1251110,"1,290.00",Brunswick Cars 9761/1961276/Loc09,10611,Peoples Services Directorate,Hired Peoples Transport (Children),E072,,
http://opendatacommunities.org/id/london-borough-council/sutton,London Borough of Sutton,28/02/2018,1251111,"1,410.00",Brunswick Cars 9761/1961276/Loc09,10611,Peoples Services Directorate,Hired Peoples Transport (Children),E072,,
http://opendatacommunities.org/id/london-borough-council/sutton,London Borough of Sutton,28/02/2018,1251112,"1,470.00",Brunswick Cars 9761/1961276/Loc09,10611,Peoples Services Directorate,Hired Peoples Transport (Children),E072,,
http://opendatacommunities.org/id/london-borough-council/sutton,London Borough of Sutton,28/02/2018,1251113,"2,280.00",Brunswick Cars 9761/1961276/Loc09,10611,Peoples Services Directorate,Hired Peoples Transport (Children),E072,,
http://opendatacommunities.org/id/london-borough-council/sutton,London Borough of Sutton,28/02/2018,1251114,"2,881.00",Brunswick Cars 9761/1961276/Loc09,10611,Peoples Services Directorate,Hired Peoples Transport (Children),E072,,
http://opendatacommunities.org/id/london-borough-council/sutton,London Borough of Sutton,28/02/2018,1251115,"1,665.00",Brunswick Cars 9761/1961276/Loc09,10611,Peoples Services Directorate,Hired Peoples Transport (Children),E072,,
http://opendatacommunities.org/id/london-borough-council/sutton,London Borough of Sutton,28/02/2018,1251116,"1,770.00",Brunswick Cars 9761/1961276/Loc09,10611,Peoples Services Directorate,Hired Peoples Transport (Children),E072,,
http://opendatacommunities.org/id/london-borough-council/sutton,London Borough of Sutton,28/02/2018,1251117,"1,800.00",Brunswick Cars 9761/1961276/Loc09,10611,Peoples Services Directorate,Hired Peoples Transport (Children),E072,,
http://opendatacommunities.org/id/london-borough-council/sutton,London Borough of Sutton,28/02/2018,1251118,"1,391.00",Brunswick Cars 9761/1961276/Loc09,10611,Peoples Services Directorate,Hired Peoples Transport (Children),E072,,
http://opendatacommunities.org/id/london-borough-council/sutton,London Borough of Sutton,28/02/2018,1251119,999,Brunswick Cars 9761/1961276/Loc09,10611,Peoples Services Directorate,Hired Peoples Transport (Children),E072,,
http://opendatacommunities.org/id/london-borough-council/sutton,London Borough of Sutton,28/02/2018,1251120,"1,215.00",Brunswick Cars 9761/1961276/Loc09,10611,Peoples Services Directorate,Hired Peoples Transport (Children),E072,,
http://opendatacommunities.org/id/london-borough-council/sutton,London Borough of Sutton,28/02/2018,1251121,"1,785.00",Brunswick Cars 9761/1961276/Loc09,10611,Peoples Services Directorate,Hired Peoples Transport (Children),E072,,
http://opendatacommunities.org/id/london-borough-council/sutton,London Borough of Sutton,28/02/2018,1251122,"1,770.00",Brunswick Cars 9761/1961276/Loc09,10611,Peoples Services Directorate,Hired Peoples Transport (Children),E072,,
http://opendatacommunities.org/id/london-borough-council/sutton,London Borough of Sutton,28/02/2018,1251123,"1,845.00",Brunswick Cars 9761/1961276/Loc09,10611,Peoples Services Directorate,Hired Peoples Transport (Children),E072,,
http://opendatacommunities.org/id/london-borough-council/sutton,London Borough of Sutton,28/02/2018,1251124,"3,375.00",Brunswick Cars 9761/1961276/Loc09,10611,Peoples Services Directorate,Hired Peoples Transport (Children),E072,,
http://opendatacommunities.org/id/london-borough-council/sutton,London Borough of Sutton,28/02/2018,1251125,"5,160.00",Brunswick Cars 9761/1961276/Loc09,10611,Peoples Services Directorate,Hired Peoples Transport (Children),E072,,
http://opendatacommunities.org/id/london-borough-council/sutton,London Borough of Sutton,28/02/2018,1251127,977.5,Brunswick Cars 9761/1961276/Loc09,10611,Peoples Services Directorate,Hired Peoples Transport (Children),E072,,
http://opendatacommunities.org/id/london-borough-council/sutton,London Borough of Sutton,28/02/2018,1251128,715,Brunswick Cars 9761/1961276/Loc09,10611,Peoples Services Directorate,Hired Peoples Transport (Children),E072,,
http://opendatacommunities.org/id/london-borough-council/sutton,London Borough of Sutton,28/02/2018,1251129,"1,736.00",Brunswick Cars 9761/1961276/Loc09,10611,Peoples Services Directorate,Hired Peoples Transport (Children),E072,,
http://opendatacommunities.org/id/london-borough-council/sutton,London Borough of Sutton,28/02/2018,1251130,"1,920.00",Brunswick Cars 9761/1961276/Loc09,10611,Peoples Services Directorate,Hired Peoples Transport (Children),E072,,
http://opendatacommunities.org/id/london-borough-council/sutton,London Borough of Sutton,28/02/2018,1251131,"1,350.00",Brunswick Cars 9761/1961276/Loc09,10611,Peoples Services Directorate,Hired Peoples Transport (Children),E072,,
http://opendatacommunities.org/id/london-borough-council/sutton,London Borough of Sutton,28/02/2018,1251133,"3,690.00",Brunswick Cars 9761/1961276/Loc09,10611,Peoples Services Directorate,Hired Peoples Transport (Children),E072,,
http://opendatacommunities.org/id/london-borough-council/sutton,London Borough of Sutton,28/02/2018,1251134,855,Brunswick Cars 9761/1961276/Loc09,10611,Peoples Services Directorate,Hired Peoples Transport (Children),E072,,
http://opendatacommunities.org/id/london-borough-council/sutton,London Borough of Sutton,31/12/2018,5015876,"-2,613.00",Brunswick Cars 9761/1961276/Loc09,10611,Peoples Services Directorate,Hired Peoples Transport (Children),E072,,
http://opendatacommunities.org/id/london-borough-council/sutton,London Borough of Sutton,31/12/2018,5015877,"-3,738.00",Brunswick Cars 9761/1961276/Loc09,10611,Peoples Services Directorate,Hired Peoples Transport (Children),E072,,
http://opendatacommunities.org/id/london-borough-council/sutton,London Borough of Sutton,31/12/2018,5015878,"-2,166.00",Brunswick Cars 9761/1961276/Loc09,10611,Peoples Services Directorate,Hired Peoples Transport (Children),E072,,
http://opendatacommunities.org/id/london-borough-council/sutton,London Borough of Sutton,06/02/2018,6926953,"1,225.00",Buller Hotel,23493,"Environment, Housing & Regeneration Directorate",Bed and Breakfast Accommodation,G400,,
http://opendatacommunities.org/id/london-borough-council/sutton,London Borough of Sutton,31/01/2018,6926954,"1,085.00",Buller Hotel,23493,"Environment, Housing & Regeneration Directorate",Bed and Breakfast Accommodation,G400,,
http://opendatacommunities.org/id/london-borough-council/sutton,London Borough of Sutton,09/03/2018,6927698,980,Buller Hotel,23493,"Environment, Housing & Regeneration Directorate",Bed and Breakfast Accommodation,G400,,
http://opendatacommunities.org/id/london-borough-council/sutton,London Borough of Sutton,09/03/2018,6927699,980,Buller Hotel,23493,"Environment, Housing & Regeneration Directorate",Bed and Breakfast Accommodation,G400,,
http://opendatacommunities.org/id/london-borough-council/sutton,London Borough of Sutton,09/03/2018,6927791,980,Buller Hotel,23493,"Environment, Housing & Regeneration Directorate",Bed and Breakfast Accommodation,G400,,
http://opendatacommunities.org/id/london-borough-council/sutton,London Borough of Sutton,09/03/2018,6927793,896,Buller Hotel,23493,"Environment, Housing & Regeneration Directorate",Bed and Breakfast Accommodation,G400,,
http://opendatacommunities.org/id/london-borough-council/sutton,London Borough of Sutton,09/03/2018,6927801,980,Buller Hotel,23493,"Environment, Housing & Regeneration Directorate",Bed and Breakfast Accommodation,G400,,
http://opendatacommunities.org/id/london-borough-council/sutton,London Borough of Sutton,22/03/2018,40176415,"3,436.00",Bupa Care Services,10175,Peoples Services Directorate,Nursing Care - Ext Provider,G311,,
http://opendatacommunities.org/id/london-borough-council/sutton,London Borough of Sutton,22/03/2018,40176718,"6,314.29",Bupa Care Services,10175,Peoples Services Directorate,Nursing Care - Ext Provider,G311,,
http://opendatacommunities.org/id/london-borough-council/sutton,London Borough of Sutton,22/03/2018,40176325,"2,439.56",Burlington Nursing Home Ltd,19236,Peoples Services Directorate,Nursing Care - Ext Provider,G311,,
http://opendatacommunities.org/id/london-borough-council/sutton,London Borough of Sutton,13/07/2017,6927245,650,Burnell & Lewis Residents Association Ltd,26838,"Environment, Housing & Regeneration Directorate",Assistance to Voluntary Organisations,F471,,
http://opendatacommunities.org/id/london-borough-council/sutton,London Borough of Sutton,13/07/2017,6927245,795,Burnell & Lewis Residents Association Ltd,26838,"Environment, Housing & Regeneration Directorate",Assistance to Voluntary Organisations,F471,,
http://opendatacommunities.org/id/london-borough-council/sutton,London Borough of Sutton,22/03/2018,40176615,"7,824.28",Butterfly's Care Homes Ltd,28860,Peoples Services Directorate,Residential Care - Ext Provider,G310,,
http://opendatacommunities.org/id/london-borough-council/sutton,London Borough of Sutton,01/03/2018,40170115,"4,255.44",By The Bridge Ltd,25655,Peoples Services Directorate,Foster Parents,G326,,
http://opendatacommunities.org/id/london-borough-council/sutton,London Borough of Sutton,01/03/2018,40170116,"3,534.20",By The Bridge Ltd,25655,Peoples Services Directorate,Foster Parents,G326,,
http://opendatacommunities.org/id/london-borough-council/sutton,London Borough of Sutton,01/03/2018,40170122,"3,534.20",By The Bridge Ltd,25655,Peoples Services Directorate,Foster Parents,G326,,
http://opendatacommunities.org/id/london-borough-council/sutton,London Borough of Sutton,01/03/2018,40170123,"3,963.40",By The Bridge Ltd,25655,Peoples Services Directorate,Foster Parents,G326,,
http://opendatacommunities.org/id/london-borough-council/sutton,London Borough of Sutton,01/03/2018,40170124,"4,289.80",By The Bridge Ltd,25655,Peoples Services Directorate,Foster Parents,G326,,
http://opendatacommunities.org/id/london-borough-council/sutton,London Borough of Sutton,05/03/2018,40177035,"4,711.38",By The Bridge Ltd,25655,Peoples Services Directorate,Foster Parents,G326,,
http://opendatacommunities.org/id/london-borough-council/sutton,London Borough of Sutton,05/03/2018,40177036,"3,912.86",By The Bridge Ltd,25655,Peoples Services Directorate,Foster Parents,G326,,
http://opendatacommunities.org/id/london-borough-council/sutton,London Borough of Sutton,05/03/2018,40177037,"3,912.86",By The Bridge Ltd,25655,Peoples Services Directorate,Foster Parents,G326,,
http://opendatacommunities.org/id/london-borough-council/sutton,London Borough of Sutton,05/03/2018,40177038,"4,388.05",By The Bridge Ltd,25655,Peoples Services Directorate,Foster Parents,G326,,
http://opendatacommunities.org/id/london-borough-council/sutton,London Borough of Sutton,05/03/2018,40177039,"4,749.42",By The Bridge Ltd,25655,Peoples Services Directorate,Foster Parents,G326,,
http://opendatacommunities.org/id/london-borough-council/sutton,London Borough of Sutton,20/03/2018,6927624,912,C.E.R Investments Ltd,26967,"Environment, Housing & Regeneration Directorate",Temporary Protection - Homeless Persons,H300,,
http://opendatacommunities.org/id/london-borough-council/sutton,London Borough of Sutton,01/02/2018,40170219,"4,000.08",Caldecott Fostering Ltd,26730,Peoples Services Directorate,Foster Parents,G326,,
http://opendatacommunities.org/id/london-borough-council/sutton,London Borough of Sutton,22/03/2018,40176478,"4,705.24",Cambian Asperger Syndrome Services Ltd,12082,Peoples Services Directorate,Residential Care - Ext Provider,G310,,
http://opendatacommunities.org/id/london-borough-council/sutton,London Borough of Sutton,22/02/2018,6928225,467.5,Cambian Autism Services Ltd,12064,Peoples Services Directorate,Payments to Schools,G065,,
http://opendatacommunities.org/id/london-borough-council/sutton,London Borough of Sutton,22/03/2018,6927968,"1,374.50",Campbell & Kennedy Ltd,97711,Resources Directorate,Equipment -General,Y520,,
http://opendatacommunities.org/id/london-borough-council/sutton,London Borough of Sutton,28/02/2018,6927099,661,Cansford Laboratories Ltd,29902,Peoples Services Directorate,Children Assessments,G329,,
http://opendatacommunities.org/id/london-borough-council/sutton,London Borough of Sutton,22/03/2018,40176621,"7,643.68",Canterbury Oast Trust,10755,Peoples Services Directorate,Residential Care - Ext Provider,G310,,
http://opendatacommunities.org/id/london-borough-council/sutton,London Borough of Sutton,22/03/2018,1251866,"2,753.36",Capel Manor College,20455,Peoples Services Directorate,Independent Schools,G325,,
http://opendatacommunities.org/id/london-borough-council/sutton,London Borough of Sutton,09/03/2018,6927666,"1,660.75",Capita Business Services Ltd,10780,Peoples Services Directorate,IT Equipment - Repair and Maintenance,F382,,
http://opendatacommunities.org/id/london-borough-council/sutton,London Borough of Sutton,21/02/2018,6926081,800,Capital Traffic Management Ltd,24034,"Environment, Housing & Regeneration Directorate",Surveys & Analysis,Y685,,
http://opendatacommunities.org/id/london-borough-council/sutton,London Borough of Sutton,05/02/2018,40170139,"5,183.92",Capstone Foster Care (South East) Ltd,16360,Peoples Services Directorate,Foster Parents,G326,,
http://opendatacommunities.org/id/london-borough-council/sutton,London Borough of Sutton,05/02/2018,40170140,"3,100.16",Capstone Foster Care (South East) Ltd,16360,Peoples Services Directorate,Foster Parents,G326,,
http://opendatacommunities.org/id/london-borough-council/sutton,London Borough of Sutton,01/03/2018,40177110,"5,739.34",Capstone Foster Care (South East) Ltd,16360,Peoples Services Directorate,Foster Parents,G326,,
http://opendatacommunities.org/id/london-borough-council/sutton,London Borough of Sutton,01/03/2018,40177111,"3,432.32",Capstone Foster Care (South East) Ltd,16360,Peoples Services Directorate,Foster Parents,G326,,
http://opendatacommunities.org/id/london-borough-council/sutton,London Borough of Sutton,31/08/2017,6926994,"3,697.38",Care & Independence Ltd,99815,"Environment, Housing & Regeneration Directorate",Grants -Made,Y610,,
http://opendatacommunities.org/id/london-borough-council/sutton,London Borough of Sutton,22/03/2018,40176686,"2,267.40",Care Base(Redhill)Ltd t/a Acorn Court Care Home,24206,Peoples Services Directorate,Residential Care - Ext Provider,G310,,
http://opendatacommunities.org/id/london-borough-council/sutton,London Borough of Sutton,01/03/2018,6926637,"5,585.08",Care Connections Ltd,10798,Peoples Services Directorate,Supported Living - Ext Provider,G306,,
http://opendatacommunities.org/id/london-borough-council/sutton,London Borough of Sutton,22/03/2018,40176435,"3,080.00",Care Direct Uk Ltd  (David House),27080,Peoples Services Directorate,Residential Care - Ext Provider,G310,,
http://opendatacommunities.org/id/london-borough-council/sutton,London Borough of Sutton,22/03/2018,40176583,"3,053.24",Care Direct Uk Ltd  (David House),27080,Peoples Services Directorate,Residential Care - Ext Provider,G310,,
http://opendatacommunities.org/id/london-borough-council/sutton,London Borough of Sutton,28/02/2018,6926517,"1,453.20",Care Monitoring 2000 Ltd,20716,Resources Directorate,Internal Fees - Project Management,Y180,,
http://opendatacommunities.org/id/london-borough-council/sutton,London Borough of Sutton,30/11/2017,6927634,"1,453.20",Care Monitoring 2000 Ltd,20716,Resources Directorate,Internal Fees - Project Management,Y180,,
http://opendatacommunities.org/id/london-borough-council/sutton,London Borough of Sutton,12/01/2018,6927341,"6,093.00",Care Quality Commission,22526,Peoples Services Directorate,Fees - Other,F299,,
http://opendatacommunities.org/id/london-borough-council/sutton,London Borough of Sutton,22/03/2018,40176407,"4,000.00",Care UK Homecare Ltd,10853,Peoples Services Directorate,Nursing Care - Ext Provider,G311,,
http://opendatacommunities.org/id/london-borough-council/sutton,London Borough of Sutton,22/03/2018,40176512,"3,800.00",Care UK Homecare Ltd,10853,Peoples Services Directorate,Nursing Care - Ext Provider,G311,,
http://opendatacommunities.org/id/london-borough-council/sutton,London Borough of Sutton,01/02/2018,40169168,"4,060.00",Care Unlimited Domcare Ltd,28906,Peoples Services Directorate,Supported Living - Ext Provider,G306,,
http://opendatacommunities.org/id/london-borough-council/sutton,London Borough of Sutton,01/02/2018,40169169,"4,060.00",Care Unlimited Domcare Ltd,28906,Peoples Services Directorate,Supported Living - Ext Provider,G306,,
http://opendatacommunities.org/id/london-borough-council/sutton,London Borough of Sutton,01/02/2018,40169170,"4,060.00",Care Unlimited Domcare Ltd,28906,Peoples Services Directorate,Supported Living - Ext Provider,G306,,
http://opendatacommunities.org/id/london-borough-council/sutton,London Borough of Sutton,01/02/2018,40169171,"4,060.00",Care Unlimited Domcare Ltd,28906,Peoples Services Directorate,Supported Living - Ext Provider,G306,,
http://opendatacommunities.org/id/london-borough-council/sutton,London Borough of Sutton,01/02/2018,40169172,"4,060.00",Care Unlimited Domcare Ltd,28906,Peoples Services Directorate,Supported Living - Ext Provider,G306,,
http://opendatacommunities.org/id/london-borough-council/sutton,London Borough of Sutton,01/01/2018,40169619,"4,732.00",Care Unlimited Domcare Ltd,28906,Peoples Services Directorate,Supported Living - Ext Provider,G306,,
http://opendatacommunities.org/id/london-borough-council/sutton,London Borough of Sutton,22/03/2018,40176476,437.14,Care Unlimited Group Ltd,10774,Peoples Services Directorate,Respite Care - Residential,G327,,
http://opendatacommunities.org/id/london-borough-council/sutton,London Borough of Sutton,22/03/2018,40176528,"1,692.00",Care Unlimited Group Ltd,10774,Peoples Services Directorate,Residential Care - Ext Provider,G310,,
http://opendatacommunities.org/id/london-borough-council/sutton,London Borough of Sutton,22/03/2018,40176614,"1,780.00",Care Unlimited Group Ltd,10774,Peoples Services Directorate,Residential Care - Ext Provider,G310,,
http://opendatacommunities.org/id/london-borough-council/sutton,London Borough of Sutton,18/02/2018,40168216,618.18,Caremark (Sutton),25541,Peoples Services Directorate,Home Care,G334,,
http://opendatacommunities.org/id/london-borough-council/sutton,London Borough of Sutton,18/02/2018,40168263,712.08,Caremark (Sutton),25541,Peoples Services Directorate,Home Care,G334,,
http://opendatacommunities.org/id/london-borough-council/sutton,London Borough of Sutton,18/02/2018,40168274,712.08,Caremark (Sutton),25541,Peoples Services Directorate,Home Care,G334,,
http://opendatacommunities.org/id/london-borough-council/sutton,London Borough of Sutton,18/02/2018,40168300,567.31,Caremark (Sutton),25541,Peoples Services Directorate,Home Care,G334,,
http://opendatacommunities.org/id/london-borough-council/sutton,London Borough of Sutton,04/03/2018,40172149,712.08,Caremark (Sutton),25541,Peoples Services Directorate,Home Care,G334,,
http://opendatacommunities.org/id/london-borough-council/sutton,London Borough of Sutton,04/03/2018,40172184,563.4,Caremark (Sutton),25541,Peoples Services Directorate,Home Care,G334,,
http://opendatacommunities.org/id/london-borough-council/sutton,London Borough of Sutton,04/03/2018,40172198,712.08,Caremark (Sutton),25541,Peoples Services Directorate,Home Care,G334,,
http://opendatacommunities.org/id/london-borough-council/sutton,London Borough of Sutton,04/03/2018,40172340,618.18,Caremark (Sutton),25541,Peoples Services Directorate,Home Care,G334,,
http://opendatacommunities.org/id/london-borough-council/sutton,London Borough of Sutton,11/03/2018,40175746,665.13,Caremark (Sutton),25541,Peoples Services Directorate,Home Care,G334,,
http://opendatacommunities.org/id/london-borough-council/sutton,London Borough of Sutton,11/03/2018,40175803,712.08,Caremark (Sutton),25541,Peoples Services Directorate,Home Care,G334,,
http://opendatacommunities.org/id/london-borough-council/sutton,London Borough of Sutton,11/03/2018,40175982,618.18,Caremark (Sutton),25541,Peoples Services Directorate,Home Care,G334,,
http://opendatacommunities.org/id/london-borough-council/sutton,London Borough of Sutton,11/03/2018,40175999,712.08,Caremark (Sutton),25541,Peoples Services Directorate,Home Care,G334,,
http://opendatacommunities.org/id/london-borough-council/sutton,London Borough of Sutton,18/03/2018,40178740,712.08,Caremark (Sutton),25541,Peoples Services Directorate,Home Care,G334,,
http://opendatacommunities.org/id/london-borough-council/sutton,London Borough of Sutton,18/03/2018,40178753,680.78,Caremark (Sutton),25541,Peoples Services Directorate,Home Care,G334,,
http://opendatacommunities.org/id/london-borough-council/sutton,London Borough of Sutton,18/03/2018,40178764,712.08,Caremark (Sutton),25541,Peoples Services Directorate,Home Care,G334,,
http://opendatacommunities.org/id/london-borough-council/sutton,London Borough of Sutton,18/03/2018,40178804,618.18,Caremark (Sutton),25541,Peoples Services Directorate,Home Care,G334,,
http://opendatacommunities.org/id/london-borough-council/sutton,London Borough of Sutton,01/02/2018,40170777,"1,890.00",Caretech Community Services Ltd,10791,Peoples Services Directorate,One to One Care,G335,,
http://opendatacommunities.org/id/london-borough-council/sutton,London Borough of Sutton,22/03/2018,40176361,"5,405.88",Caretech Community Services Ltd,10791,Peoples Services Directorate,Residential Care - Ext Provider,G310,,
http://opendatacommunities.org/id/london-borough-council/sutton,London Borough of Sutton,22/03/2018,40176465,"5,270.48",Caretech Community Services Ltd,10791,Peoples Services Directorate,Residential Care - Ext Provider,G310,,
http://opendatacommunities.org/id/london-borough-council/sutton,London Borough of Sutton,22/03/2018,40176517,"5,270.48",Caretech Community Services Ltd,10791,Peoples Services Directorate,Residential Care - Ext Provider,G310,,
http://opendatacommunities.org/id/london-borough-council/sutton,London Borough of Sutton,22/03/2018,40176518,"5,270.48",Caretech Community Services Ltd,10791,Peoples Services Directorate,Residential Care - Ext Provider,G310,,
http://opendatacommunities.org/id/london-borough-council/sutton,London Borough of Sutton,15/02/2018,1250880,"1,508.00",Carew Academy,25284,Peoples Services Directorate,Education Equipment,F009,,
http://opendatacommunities.org/id/london-borough-council/sutton,London Borough of Sutton,15/02/2018,1250881,"3,464.00",Carew Academy,25284,Peoples Services Directorate,Education Equipment,F009,,
http://opendatacommunities.org/id/london-borough-council/sutton,London Borough of Sutton,12/03/2018,1251066,780,Carew Academy,25284,Peoples Services Directorate,Miscellaneous Costs,G499,,
http://opendatacommunities.org/id/london-borough-council/sutton,London Borough of Sutton,12/03/2018,1251143,"-6,254.00",Carew Academy,25284,Peoples Services Directorate,Place Funding,G063,,
http://opendatacommunities.org/id/london-borough-council/sutton,London Borough of Sutton,12/03/2018,1251144,"13,250.00",Carew Academy,25284,Peoples Services Directorate,Top-up Funding,G064,,
http://opendatacommunities.org/id/london-borough-council/sutton,London Borough of Sutton,12/03/2018,1251145,-833.33,Carew Academy,25284,Peoples Services Directorate,Payments to Schools,G065,,
http://opendatacommunities.org/id/london-borough-council/sutton,London Borough of Sutton,27/02/2018,40169147,999.88,Carlene House,10763,Peoples Services Directorate,Day Care,G337,,
http://opendatacommunities.org/id/london-borough-council/sutton,London Borough of Sutton,27/02/2018,40169148,999.88,Carlene House,10763,Peoples Services Directorate,Day Care,G337,,
http://opendatacommunities.org/id/london-borough-council/sutton,London Borough of Sutton,27/02/2018,40169149,999.88,Carlene House,10763,Peoples Services Directorate,Day Care,G337,,
http://opendatacommunities.org/id/london-borough-council/sutton,London Borough of Sutton,27/02/2018,40169150,999.88,Carlene House,10763,Peoples Services Directorate,Day Care,G337,,
http://opendatacommunities.org/id/london-borough-council/sutton,London Borough of Sutton,27/02/2018,40169151,999.88,Carlene House,10763,Peoples Services Directorate,Day Care,G337,,
http://opendatacommunities.org/id/london-borough-council/sutton,London Borough of Sutton,22/03/2018,40176449,"2,682.68",Carlene House,10763,Peoples Services Directorate,Residential Care - Ext Provider,G310,,
http://opendatacommunities.org/id/london-borough-council/sutton,London Borough of Sutton,22/03/2018,40176498,"2,625.28",Carlene House,10763,Peoples Services Directorate,Residential Care - Ext Provider,G310,,
http://opendatacommunities.org/id/london-borough-council/sutton,London Borough of Sutton,22/03/2018,40176596,"2,740.64",Carlene House,10763,Peoples Services Directorate,Residential Care - Ext Provider,G310,,
http://opendatacommunities.org/id/london-borough-council/sutton,London Borough of Sutton,22/03/2018,40176597,"2,654.68",Carlene House,10763,Peoples Services Directorate,Residential Care - Ext Provider,G310,,
http://opendatacommunities.org/id/london-borough-council/sutton,London Borough of Sutton,22/03/2018,40176598,"2,630.60",Carlene House,10763,Peoples Services Directorate,Residential Care - Ext Provider,G310,,
http://opendatacommunities.org/id/london-borough-council/sutton,London Borough of Sutton,22/03/2018,40176599,"4,440.00",Carlene House,10763,Peoples Services Directorate,Residential Care - Ext Provider,G310,,
http://opendatacommunities.org/id/london-borough-council/sutton,London Borough of Sutton,22/03/2018,40176697,"2,625.28",Carlene House,10763,Peoples Services Directorate,Residential Care - Ext Provider,G310,,
http://opendatacommunities.org/id/london-borough-council/sutton,London Borough of Sutton,06/03/2018,40178559,"1,340.00",Carlene House,10763,Peoples Services Directorate,Supported Living - Ext Provider,G306,,
http://opendatacommunities.org/id/london-borough-council/sutton,London Borough of Sutton,06/03/2018,40178560,"1,340.00",Carlene House,10763,Peoples Services Directorate,Supported Living - Ext Provider,G306,,
http://opendatacommunities.org/id/london-borough-council/sutton,London Borough of Sutton,27/02/2018,40178585,"1,340.00",Carlene House,10763,Peoples Services Directorate,Supported Living - Ext Provider,G306,,
http://opendatacommunities.org/id/london-borough-council/sutton,London Borough of Sutton,01/02/2018,40178587,"1,340.00",Carlene House,10763,Peoples Services Directorate,Supported Living - Ext Provider,G306,,
http://opendatacommunities.org/id/london-borough-council/sutton,London Borough of Sutton,05/03/2018,6926616,"1,500.00",Carole Martin,28288,Peoples Services Directorate,Non-Maintained Childrens' Nurseries - 3 & 4 yr olds,G405,,
http://opendatacommunities.org/id/london-borough-council/sutton,London Borough of Sutton,02/03/2018,6926497,"27,500.00",Carpenter& Co Solicitors,99827,Peoples Services Directorate,Purchase Price,Y010,,
http://opendatacommunities.org/id/london-borough-council/sutton,London Borough of Sutton,12/03/2018,1251146,-708,Carshalton Boys Sports College (Academy),23984,Peoples Services Directorate,Top-up Funding,G064,,
http://opendatacommunities.org/id/london-borough-council/sutton,London Borough of Sutton,26/02/2018,1250382,580,Carshalton High School for Girls (Academy),23995,Peoples Services Directorate,Payments to Schools,G065,,
http://opendatacommunities.org/id/london-borough-council/sutton,London Borough of Sutton,12/03/2018,1251147,417,Carshalton High School for Girls (Academy),23995,Peoples Services Directorate,Top-up Funding,G064,,
http://opendatacommunities.org/id/london-borough-council/sutton,London Borough of Sutton,27/03/2018,6928279,"2,255.97",Carter Jonas LLP,30103,"Environment, Housing & Regeneration Directorate",Surveyors Fees,Y030,,
http://opendatacommunities.org/id/london-borough-council/sutton,London Borough of Sutton,22/02/2018,6926312,"1,981.59",Castle Water Ltd (collection account - Thames (other),27112,"Environment, Housing & Regeneration Directorate",Sewerage - Metered,D695,,
http://opendatacommunities.org/id/london-borough-council/sutton,London Borough of Sutton,18/10/2017,6926765,845.09,Castle Water Ltd (collection account - Thames (other),27112,"Environment, Housing & Regeneration Directorate",Sewerage - Metered,D695,,
http://opendatacommunities.org/id/london-borough-council/sutton,London Borough of Sutton,31/07/2017,6926766,"1,353.15",Castle Water Ltd (collection account - Thames (other),27112,"Environment, Housing & Regeneration Directorate",Sewerage - Metered,D695,,
http://opendatacommunities.org/id/london-borough-council/sutton,London Borough of Sutton,21/08/2017,6926767,"1,123.96",Castle Water Ltd (collection account - Thames (other),27112,"Environment, Housing & Regeneration Directorate",Sewerage - Metered,D695,,
http://opendatacommunities.org/id/london-borough-council/sutton,London Borough of Sutton,26/07/2017,6926770,"1,207.91",Castle Water Ltd (collection account - Thames (other),27112,"Environment, Housing & Regeneration Directorate",Sewerage - Metered,D695,,
http://opendatacommunities.org/id/london-borough-council/sutton,London Borough of Sutton,18/10/2017,6926771,669.38,Castle Water Ltd (collection account - Thames (other),27112,"Environment, Housing & Regeneration Directorate",Sewerage - Metered,D695,,
http://opendatacommunities.org/id/london-borough-council/sutton,London Borough of Sutton,07/03/2018,6927159,420.05,Castle Water Ltd (collection account - Thames (other),27112,Peoples Services Directorate,Sewerage - Metered,D695,,
http://opendatacommunities.org/id/london-borough-council/sutton,London Borough of Sutton,12/03/2018,6926977,"1,055.95",Caysh Enterprise Cic,28016,Peoples Services Directorate,Approved Lodgings,H323,,
http://opendatacommunities.org/id/london-borough-council/sutton,London Borough of Sutton,26/01/2018,1250449,"29,666.67",Caysh Housing Project,23133,"Environment, Housing & Regeneration Directorate",Supporting People - Teenage Parent Services,H247,,
http://opendatacommunities.org/id/london-borough-council/sutton,London Borough of Sutton,29/03/2018,1251503,"29,666.67",Caysh Housing Project,23133,"Environment, Housing & Regeneration Directorate",Supporting People - Teenage Parent Services,H247,,
http://opendatacommunities.org/id/london-borough-council/sutton,London Borough of Sutton,28/02/2018,6926296,"1,233.40",Caysh Housing Project,23133,Peoples Services Directorate,Approved Lodgings,H323,,
http://opendatacommunities.org/id/london-borough-council/sutton,London Borough of Sutton,28/02/2018,6926301,"1,233.40",Caysh Housing Project,23133,Peoples Services Directorate,Approved Lodgings,H323,,
http://opendatacommunities.org/id/london-borough-council/sutton,London Borough of Sutton,28/02/2018,6926302,"1,134.36",Caysh Housing Project,23133,Peoples Services Directorate,Approved Lodgings,H323,,
http://opendatacommunities.org/id/london-borough-council/sutton,London Borough of Sutton,28/02/2018,6926303,"1,110.76",Caysh Housing Project,23133,Peoples Services Directorate,Approved Lodgings,H323,,
http://opendatacommunities.org/id/london-borough-council/sutton,London Borough of Sutton,28/02/2018,6926304,"1,170.96",Caysh Housing Project,23133,Peoples Services Directorate,Approved Lodgings,H323,,
http://opendatacommunities.org/id/london-borough-council/sutton,London Borough of Sutton,28/02/2018,6926305,"1,088.08",Caysh Housing Project,23133,Peoples Services Directorate,Approved Lodgings,H323,,
http://opendatacommunities.org/id/london-borough-council/sutton,London Borough of Sutton,28/02/2018,6926306,"1,233.24",Caysh Housing Project,23133,Peoples Services Directorate,Approved Lodgings,H323,,
http://opendatacommunities.org/id/london-borough-council/sutton,London Borough of Sutton,28/02/2018,6926307,"1,120.28",Caysh Housing Project,23133,Peoples Services Directorate,Approved Lodgings,H323,,
http://opendatacommunities.org/id/london-borough-council/sutton,London Borough of Sutton,27/02/2018,6928293,436.41,Cellmark,16994,Peoples Services Directorate,Children Assessments,G329,,
http://opendatacommunities.org/id/london-borough-council/sutton,London Borough of Sutton,09/03/2018,6926951,"4,624.01",Central London Community Healthcare NHS Trust,29865,Chief Executive's Directorate,Provider Contract Payments,F470,,
http://opendatacommunities.org/id/london-borough-council/sutton,London Borough of Sutton,01/02/2018,40170095,"5,400.08",Channels & Choices Theraputic Fostering Ltd,25665,Peoples Services Directorate,Foster Parents,G326,,
http://opendatacommunities.org/id/london-borough-council/sutton,London Borough of Sutton,01/02/2018,40170171,"5,400.08",Channels & Choices Theraputic Fostering Ltd,25665,Peoples Services Directorate,Foster Parents,G326,,
http://opendatacommunities.org/id/london-borough-council/sutton,London Borough of Sutton,01/03/2018,40177104,"5,978.66",Channels & Choices Theraputic Fostering Ltd,25665,Peoples Services Directorate,Foster Parents,G326,,
http://opendatacommunities.org/id/london-borough-council/sutton,London Borough of Sutton,01/03/2018,40177105,"5,978.66",Channels & Choices Theraputic Fostering Ltd,25665,Peoples Services Directorate,Foster Parents,G326,,
http://opendatacommunities.org/id/london-borough-council/sutton,London Borough of Sutton,18/01/2018,6927809,"2,610.00",Cheam Chamber of Trade,28321,"Environment, Housing & Regeneration Directorate",Assistance to Voluntary Organisations,F471,,
http://opendatacommunities.org/id/london-borough-council/sutton,London Borough of Sutton,18/01/2018,6927810,700,Cheam Chamber of Trade,28321,"Environment, Housing & Regeneration Directorate",Assistance to Voluntary Organisations,F471,,
http://opendatacommunities.org/id/london-borough-council/sutton,London Borough of Sutton,26/02/2018,1250386,500,Cheam Park Farm Primary School (LEO Academy Trust),23882,Peoples Services Directorate,Payments to Schools,G065,,
http://opendatacommunities.org/id/london-borough-council/sutton,London Borough of Sutton,12/03/2018,1251148,"1,554.00",Cheam Park Farm Primary School (LEO Academy Trust),23882,Peoples Services Directorate,Top-up Funding,G064,,
http://opendatacommunities.org/id/london-borough-council/sutton,London Borough of Sutton,28/02/2018,1251175,650,Cheam Station Cars,15604,Peoples Services Directorate,Hired Peoples Transport (Children),E072,,
http://opendatacommunities.org/id/london-borough-council/sutton,London Borough of Sutton,28/02/2018,1251177,"2,128.00",Cheam Station Cars,15604,Peoples Services Directorate,Hired Peoples Transport (Children),E072,,
http://opendatacommunities.org/id/london-borough-council/sutton,London Borough of Sutton,28/02/2018,1251178,762,Cheam Station Cars,15604,Peoples Services Directorate,Hired Peoples Transport (Children),E072,,
http://opendatacommunities.org/id/london-borough-council/sutton,London Borough of Sutton,28/02/2018,1251179,"2,550.00",Cheam Station Cars,15604,Peoples Services Directorate,Hired Peoples Transport (Children),E072,,
http://opendatacommunities.org/id/london-borough-council/sutton,London Borough of Sutton,28/02/2018,1251180,899,Cheam Station Cars,15604,Peoples Services Directorate,Hired Peoples Transport (Children),E072,,
http://opendatacommunities.org/id/london-borough-council/sutton,London Borough of Sutton,28/02/2018,1251181,500,Cheam Station Cars,15604,Peoples Services Directorate,Hired Peoples Transport (Children),E072,,
http://opendatacommunities.org/id/london-borough-council/sutton,London Borough of Sutton,28/02/2018,1251182,"1,740.00",Cheam Station Cars,15604,Peoples Services Directorate,Hired Peoples Transport (Children),E072,,
http://opendatacommunities.org/id/london-borough-council/sutton,London Borough of Sutton,28/02/2018,1251183,"2,415.00",Cheam Station Cars,15604,Peoples Services Directorate,Hired Peoples Transport (Children),E072,,
http://opendatacommunities.org/id/london-borough-council/sutton,London Borough of Sutton,28/02/2018,1251185,455,Cheam Station Cars,15604,Peoples Services Directorate,Hired Peoples Transport (Children),E072,,
http://opendatacommunities.org/id/london-borough-council/sutton,London Borough of Sutton,28/02/2018,1251186,"1,345.00",Cheam Station Cars,15604,Peoples Services Directorate,Hired Peoples Transport (Children),E072,,
http://opendatacommunities.org/id/london-borough-council/sutton,London Borough of Sutton,28/02/2018,1251187,870,Cheam Station Cars,15604,Peoples Services Directorate,Hired Peoples Transport (Children),E072,,
http://opendatacommunities.org/id/london-borough-council/sutton,London Borough of Sutton,28/02/2018,1251188,"2,340.00",Cheam Station Cars,15604,Peoples Services Directorate,Hired Peoples Transport (Children),E072,,
http://opendatacommunities.org/id/london-borough-council/sutton,London Borough of Sutton,28/02/2018,1251189,"1,400.00",Cheam Station Cars,15604,Peoples Services Directorate,Hired Peoples Transport (Children),E072,,
http://opendatacommunities.org/id/london-borough-council/sutton,London Borough of Sutton,28/02/2018,1251190,"1,576.00",Cheam Station Cars,15604,Peoples Services Directorate,Hired Peoples Transport (Children),E072,,
http://opendatacommunities.org/id/london-borough-council/sutton,London Borough of Sutton,28/02/2018,1251191,490,Cheam Station Cars,15604,Peoples Services Directorate,Hired Peoples Transport (Children),E072,,
http://opendatacommunities.org/id/london-borough-council/sutton,London Borough of Sutton,28/02/2018,1251192,625,Cheam Station Cars,15604,Peoples Services Directorate,Hired Peoples Transport (Children),E072,,
http://opendatacommunities.org/id/london-borough-council/sutton,London Borough of Sutton,28/02/2018,1251193,"2,025.00",Cheam Station Cars,15604,Peoples Services Directorate,Hired Peoples Transport (Children),E072,,
http://opendatacommunities.org/id/london-borough-council/sutton,London Borough of Sutton,28/02/2018,1251194,700,Cheam Station Cars,15604,Peoples Services Directorate,Hired Peoples Transport (Children),E072,,
http://opendatacommunities.org/id/london-borough-council/sutton,London Borough of Sutton,28/02/2018,1251195,840,Cheam Station Cars,15604,Peoples Services Directorate,Hired Peoples Transport (Children),E072,,
http://opendatacommunities.org/id/london-borough-council/sutton,London Borough of Sutton,28/02/2018,1251196,"1,750.00",Cheam Station Cars,15604,Peoples Services Directorate,Hired Peoples Transport (Children),E072,,
http://opendatacommunities.org/id/london-borough-council/sutton,London Borough of Sutton,28/02/2018,1251197,"2,925.00",Cheam Station Cars,15604,Peoples Services Directorate,Hired Peoples Transport (Children),E072,,
http://opendatacommunities.org/id/london-borough-council/sutton,London Borough of Sutton,28/02/2018,1251198,550,Cheam Station Cars,15604,Peoples Services Directorate,Hired Peoples Transport (Children),E072,,
http://opendatacommunities.org/id/london-borough-council/sutton,London Borough of Sutton,28/02/2018,1251199,580,Cheam Station Cars,15604,Peoples Services Directorate,Hired Peoples Transport (Children),E072,,
http://opendatacommunities.org/id/london-borough-council/sutton,London Borough of Sutton,28/02/2018,1251201,690,Cheam Station Cars,15604,Peoples Services Directorate,Hired Peoples Transport (Children),E072,,
http://opendatacommunities.org/id/london-borough-council/sutton,London Borough of Sutton,28/02/2018,1251202,"1,540.00",Cheam Station Cars,15604,Peoples Services Directorate,Hired Peoples Transport (Children),E072,,
http://opendatacommunities.org/id/london-borough-council/sutton,London Borough of Sutton,28/02/2018,1251203,"1,155.00",Cheam Station Cars,15604,Peoples Services Directorate,Hired Peoples Transport (Children),E072,,
http://opendatacommunities.org/id/london-borough-council/sutton,London Borough of Sutton,28/02/2018,1251203,760,Cheam Station Cars,15604,Peoples Services Directorate,Hired Peoples Transport (Children),E072,,
http://opendatacommunities.org/id/london-borough-council/sutton,London Borough of Sutton,22/03/2018,40176363,"18,385.71",Chegworth Nursing Home Bayswift Ltd,10908,Peoples Services Directorate,Nursing Care - Short Term Placements,G328,,
http://opendatacommunities.org/id/london-borough-council/sutton,London Borough of Sutton,22/03/2018,40176384,"3,200.00",Chegworth Nursing Home Bayswift Ltd,10908,Peoples Services Directorate,Nursing Care - Ext Provider,G311,,
http://opendatacommunities.org/id/london-borough-council/sutton,London Borough of Sutton,22/03/2018,40176487,"3,400.00",Chegworth Nursing Home Bayswift Ltd,10908,Peoples Services Directorate,Nursing Care - Ext Provider,G311,,
http://opendatacommunities.org/id/london-borough-council/sutton,London Borough of Sutton,22/03/2018,40176582,"2,550.00",Chegworth Nursing Home Bayswift Ltd,10908,Peoples Services Directorate,Nursing Care - Ext Provider,G311,,
http://opendatacommunities.org/id/london-borough-council/sutton,London Borough of Sutton,22/03/2018,40176665,"8,475.00",Chegworth Nursing Home Bayswift Ltd,10908,Peoples Services Directorate,Nursing Care - Short Term Placements,G328,,
http://opendatacommunities.org/id/london-borough-council/sutton,London Borough of Sutton,22/03/2018,40176687,"3,400.00",Chegworth Nursing Home Bayswift Ltd,10908,Peoples Services Directorate,Nursing Care - Ext Provider,G311,,
http://opendatacommunities.org/id/london-borough-council/sutton,London Borough of Sutton,22/03/2018,40176688,"2,781.64",Chegworth Nursing Home Bayswift Ltd,10908,Peoples Services Directorate,Nursing Care - Ext Provider,G311,,
http://opendatacommunities.org/id/london-borough-council/sutton,London Borough of Sutton,22/03/2018,40176689,"1,928.24",Chegworth Nursing Home Bayswift Ltd,10908,Peoples Services Directorate,Nursing Care - Ext Provider,G311,,
http://opendatacommunities.org/id/london-borough-council/sutton,London Borough of Sutton,01/03/2018,6927124,"6,219.58",Chelsea and Westminster NHS ft,28891,Chief Executive's Directorate,Provider Contract Payments,F470,,
http://opendatacommunities.org/id/london-borough-council/sutton,London Borough of Sutton,01/03/2018,6927125,"9,513.61",Chelsea and Westminster NHS ft,28891,Chief Executive's Directorate,Provider Contract Payments,F470,,
http://opendatacommunities.org/id/london-borough-council/sutton,London Borough of Sutton,26/02/2018,6927133,"-1,723.71",Chelsea and Westminster NHS ft,28891,Chief Executive's Directorate,Provider Contract Payments,F470,,
http://opendatacommunities.org/id/london-borough-council/sutton,London Borough of Sutton,14/03/2018,6927999,"13,725.00",Chelsea Studios Ltd,32128,"Environment, Housing & Regeneration Directorate",Bed and Breakfast Accommodation,G400,,
http://opendatacommunities.org/id/london-borough-council/sutton,London Borough of Sutton,25/02/2018,40170723,425.79,Chenash Homecare Specialists And Care Agency,25667,Peoples Services Directorate,Home Care,G334,,
http://opendatacommunities.org/id/london-borough-council/sutton,London Borough of Sutton,22/03/2018,40176464,"2,725.00",Cherry Lodge,10934,Peoples Services Directorate,Residential Care - Ext Provider,G310,,
http://opendatacommunities.org/id/london-borough-council/sutton,London Borough of Sutton,22/03/2018,40176516,"3,360.00",Cherry Lodge,10934,Peoples Services Directorate,Residential Care - Ext Provider,G310,,
http://opendatacommunities.org/id/london-borough-council/sutton,London Borough of Sutton,06/02/2018,40170109,"3,120.04",Children First Fostering Agency,21215,Peoples Services Directorate,Foster Parents,G326,,
http://opendatacommunities.org/id/london-borough-council/sutton,London Borough of Sutton,06/02/2018,40170216,576.24,Children First Fostering Agency,21215,Peoples Services Directorate,Foster Parents,G326,,
http://opendatacommunities.org/id/london-borough-council/sutton,London Borough of Sutton,06/02/2018,40170217,"3,014.48",Children First Fostering Agency,21215,Peoples Services Directorate,Foster Parents,G326,,
http://opendatacommunities.org/id/london-borough-council/sutton,London Borough of Sutton,08/03/2018,40177040,"3,454.33",Children First Fostering Agency,21215,Peoples Services Directorate,Foster Parents,G326,,
http://opendatacommunities.org/id/london-borough-council/sutton,London Borough of Sutton,08/03/2018,40177041,"3,337.46",Children First Fostering Agency,21215,Peoples Services Directorate,Foster Parents,G326,,
http://opendatacommunities.org/id/london-borough-council/sutton,London Borough of Sutton,31/01/2018,40170164,"4,123.28",Children of All Nations,19625,Peoples Services Directorate,Foster Parents,G326,,
http://opendatacommunities.org/id/london-borough-council/sutton,London Borough of Sutton,28/02/2018,40177101,"4,565.06",Children of All Nations,19625,Peoples Services Directorate,Foster Parents,G326,,
http://opendatacommunities.org/id/london-borough-council/sutton,London Borough of Sutton,01/02/2018,40170156,"3,214.40",Children of Colour,16870,Peoples Services Directorate,Foster Parents,G326,,
http://opendatacommunities.org/id/london-borough-council/sutton,London Borough of Sutton,01/02/2018,40170157,"2,704.80",Children of Colour,16870,Peoples Services Directorate,Foster Parents,G326,,
http://opendatacommunities.org/id/london-borough-council/sutton,London Borough of Sutton,01/02/2018,40170158,"3,057.60",Children of Colour,16870,Peoples Services Directorate,Foster Parents,G326,,
http://opendatacommunities.org/id/london-borough-council/sutton,London Borough of Sutton,01/03/2018,40177069,"3,558.80",Children of Colour,16870,Peoples Services Directorate,Foster Parents,G326,,
http://opendatacommunities.org/id/london-borough-council/sutton,London Borough of Sutton,01/03/2018,40177070,"2,994.60",Children of Colour,16870,Peoples Services Directorate,Foster Parents,G326,,
http://opendatacommunities.org/id/london-borough-council/sutton,London Borough of Sutton,01/03/2018,40177071,"3,385.20",Children of Colour,16870,Peoples Services Directorate,Foster Parents,G326,,
http://opendatacommunities.org/id/london-borough-council/sutton,London Borough of Sutton,22/02/2018,6928212,660,Children's Trust,10927,Peoples Services Directorate,Payments to Schools,G065,,
http://opendatacommunities.org/id/london-borough-council/sutton,London Borough of Sutton,22/03/2018,40176663,"7,682.20",Choice Care Group (Surrey) Ltd,22029,Peoples Services Directorate,Residential Care - Ext Provider,G310,,
http://opendatacommunities.org/id/london-borough-council/sutton,London Borough of Sutton,22/03/2018,40176711,"7,511.00",Choice Care Group (Surrey) Ltd,22029,Peoples Services Directorate,Residential Care - Ext Provider,G310,,
http://opendatacommunities.org/id/london-borough-council/sutton,London Borough of Sutton,26/01/2018,40178577,"2,080.00",Choice Care Group (Surrey) Ltd,22029,Peoples Services Directorate,Supported Living - Ext Provider,G306,,
http://opendatacommunities.org/id/london-borough-council/sutton,London Borough of Sutton,26/01/2018,40178578,"1,120.00",Choice Care Group (Surrey) Ltd,22029,Peoples Services Directorate,Supported Living - Ext Provider,G306,,
http://opendatacommunities.org/id/london-borough-council/sutton,London Borough of Sutton,01/02/2018,40178561,724.4,Choice Support,22320,Peoples Services Directorate,Supported Living - Ext Provider,G306,,
http://opendatacommunities.org/id/london-borough-council/sutton,London Borough of Sutton,01/02/2018,40178561,"4,666.72",Choice Support,22320,Peoples Services Directorate,Supported Living - Ext Provider,G306,,
http://opendatacommunities.org/id/london-borough-council/sutton,London Borough of Sutton,01/02/2018,40178562,724.4,Choice Support,22320,Peoples Services Directorate,Supported Living - Ext Provider,G306,,
http://opendatacommunities.org/id/london-borough-council/sutton,London Borough of Sutton,01/02/2018,40178562,"5,914.96",Choice Support,22320,Peoples Services Directorate,Supported Living - Ext Provider,G306,,
http://opendatacommunities.org/id/london-borough-council/sutton,London Borough of Sutton,01/02/2018,40178563,724.4,Choice Support,22320,Peoples Services Directorate,Supported Living - Ext Provider,G306,,
http://opendatacommunities.org/id/london-borough-council/sutton,London Borough of Sutton,01/02/2018,40178563,"4,776.76",Choice Support,22320,Peoples Services Directorate,Supported Living - Ext Provider,G306,,
http://opendatacommunities.org/id/london-borough-council/sutton,London Borough of Sutton,01/02/2018,40178564,724.4,Choice Support,22320,Peoples Services Directorate,Supported Living - Ext Provider,G306,,
http://opendatacommunities.org/id/london-borough-council/sutton,London Borough of Sutton,01/02/2018,40178564,"5,391.08",Choice Support,22320,Peoples Services Directorate,Supported Living - Ext Provider,G306,,
http://opendatacommunities.org/id/london-borough-council/sutton,London Borough of Sutton,01/02/2018,40178565,724.4,Choice Support,22320,Peoples Services Directorate,Supported Living - Ext Provider,G306,,
http://opendatacommunities.org/id/london-borough-council/sutton,London Borough of Sutton,01/02/2018,40178565,"4,278.64",Choice Support,22320,Peoples Services Directorate,Supported Living - Ext Provider,G306,,
http://opendatacommunities.org/id/london-borough-council/sutton,London Borough of Sutton,01/02/2018,40178566,724.4,Choice Support,22320,Peoples Services Directorate,Supported Living - Ext Provider,G306,,
http://opendatacommunities.org/id/london-borough-council/sutton,London Borough of Sutton,01/02/2018,40178566,"4,990.12",Choice Support,22320,Peoples Services Directorate,Supported Living - Ext Provider,G306,,
http://opendatacommunities.org/id/london-borough-council/sutton,London Borough of Sutton,01/02/2018,40178567,724.4,Choice Support,22320,Peoples Services Directorate,Supported Living - Ext Provider,G306,,
http://opendatacommunities.org/id/london-borough-council/sutton,London Borough of Sutton,01/02/2018,40178567,"4,673.16",Choice Support,22320,Peoples Services Directorate,Supported Living - Ext Provider,G306,,
http://opendatacommunities.org/id/london-borough-council/sutton,London Borough of Sutton,01/02/2018,40178568,724.4,Choice Support,22320,Peoples Services Directorate,Supported Living - Ext Provider,G306,,
http://opendatacommunities.org/id/london-borough-council/sutton,London Borough of Sutton,01/02/2018,40178568,"5,009.44",Choice Support,22320,Peoples Services Directorate,Supported Living - Ext Provider,G306,,
http://opendatacommunities.org/id/london-borough-council/sutton,London Borough of Sutton,01/02/2018,40178569,"3,072.56",Choice Support,22320,Peoples Services Directorate,Supported Living - Ext Provider,G306,,
http://opendatacommunities.org/id/london-borough-council/sutton,London Borough of Sutton,01/02/2018,40178569,517.44,Choice Support,22320,Peoples Services Directorate,Supported Living - Ext Provider,G306,,
http://opendatacommunities.org/id/london-borough-council/sutton,London Borough of Sutton,01/02/2018,40178569,"2,690.68",Choice Support,22320,Peoples Services Directorate,Supported Living - Ext Provider,G306,,
http://opendatacommunities.org/id/london-borough-council/sutton,London Borough of Sutton,01/02/2018,40178570,"2,414.72",Choice Support,22320,Peoples Services Directorate,Supported Living - Ext Provider,G306,,
http://opendatacommunities.org/id/london-borough-council/sutton,London Borough of Sutton,01/02/2018,40178570,517.44,Choice Support,22320,Peoples Services Directorate,Supported Living - Ext Provider,G306,,
http://opendatacommunities.org/id/london-borough-council/sutton,London Borough of Sutton,01/02/2018,40178570,"1,293.60",Choice Support,22320,Peoples Services Directorate,Supported Living - Ext Provider,G306,,
http://opendatacommunities.org/id/london-borough-council/sutton,London Borough of Sutton,01/02/2018,40178571,"1,455.32",Choice Support,22320,Peoples Services Directorate,Supported Living - Ext Provider,G306,,
http://opendatacommunities.org/id/london-borough-council/sutton,London Borough of Sutton,01/02/2018,40178571,517.44,Choice Support,22320,Peoples Services Directorate,Supported Living - Ext Provider,G306,,
http://opendatacommunities.org/id/london-borough-council/sutton,London Borough of Sutton,01/02/2018,40178571,"1,519.96",Choice Support,22320,Peoples Services Directorate,Supported Living - Ext Provider,G306,,
http://opendatacommunities.org/id/london-borough-council/sutton,London Borough of Sutton,01/02/2018,40178572,"2,005.08",Choice Support,22320,Peoples Services Directorate,Supported Living - Ext Provider,G306,,
http://opendatacommunities.org/id/london-borough-council/sutton,London Borough of Sutton,01/02/2018,40178572,517.44,Choice Support,22320,Peoples Services Directorate,Supported Living - Ext Provider,G306,,
http://opendatacommunities.org/id/london-borough-council/sutton,London Borough of Sutton,01/02/2018,40178572,"1,293.60",Choice Support,22320,Peoples Services Directorate,Supported Living - Ext Provider,G306,,
http://opendatacommunities.org/id/london-borough-council/sutton,London Borough of Sutton,01/02/2018,40178573,517.44,Choice Support,22320,Peoples Services Directorate,Supported Living - Ext Provider,G306,,
http://opendatacommunities.org/id/london-borough-council/sutton,London Borough of Sutton,01/02/2018,40178573,"3,699.64",Choice Support,22320,Peoples Services Directorate,Supported Living - Ext Provider,G306,,
http://opendatacommunities.org/id/london-borough-council/sutton,London Borough of Sutton,01/02/2018,40178574,"1,416.48",Choice Support,22320,Peoples Services Directorate,Supported Living - Ext Provider,G306,,
http://opendatacommunities.org/id/london-borough-council/sutton,London Borough of Sutton,01/02/2018,40178574,517.44,Choice Support,22320,Peoples Services Directorate,Supported Living - Ext Provider,G306,,
http://opendatacommunities.org/id/london-borough-council/sutton,London Borough of Sutton,01/02/2018,40178574,"1,713.92",Choice Support,22320,Peoples Services Directorate,Supported Living - Ext Provider,G306,,
http://opendatacommunities.org/id/london-borough-council/sutton,London Borough of Sutton,01/02/2018,40178575,"1,177.16",Choice Support,22320,Peoples Services Directorate,Supported Living - Ext Provider,G306,,
http://opendatacommunities.org/id/london-borough-council/sutton,London Borough of Sutton,01/02/2018,40178575,517.44,Choice Support,22320,Peoples Services Directorate,Supported Living - Ext Provider,G306,,
http://opendatacommunities.org/id/london-borough-council/sutton,London Borough of Sutton,01/02/2018,40178575,"1,591.20",Choice Support,22320,Peoples Services Directorate,Supported Living - Ext Provider,G306,,
http://opendatacommunities.org/id/london-borough-council/sutton,London Borough of Sutton,02/02/2018,40178576,802.96,Choice Support,22320,Peoples Services Directorate,Supported Living - Ext Provider,G306,,
http://opendatacommunities.org/id/london-borough-council/sutton,London Borough of Sutton,02/03/2018,6926493,840,Chroma Vision Limited,20351,"Environment, Housing & Regeneration Directorate",IT Equipment - Repair and Maintenance,F382,,
http://opendatacommunities.org/id/london-borough-council/sutton,London Borough of Sutton,01/03/2018,6926520,"120,245.75",Citizens Advice Bureau,10969,Chief Executive's Directorate,Provider Contract Payments,F470,,
http://opendatacommunities.org/id/london-borough-council/sutton,London Borough of Sutton,31/01/2018,6926311,"5,572.52",City of London Corporation,22388,"Environment, Housing & Regeneration Directorate",Asbestos CA Disposal,G173,,
http://opendatacommunities.org/id/london-borough-council/sutton,London Borough of Sutton,28/02/2018,6926594,"3,040.00",City Sprint UK (Excel) Ltd,26267,Peoples Services Directorate,Hired Vehicles,E070,,
http://opendatacommunities.org/id/london-borough-council/sutton,London Borough of Sutton,02/10/2017,6917653,"5,110.00",City Suburban Tree Surgeons,24817,"Environment, Housing & Regeneration Directorate",Highway Trees - Maintenance,D560,,
http://opendatacommunities.org/id/london-borough-council/sutton,London Borough of Sutton,02/10/2017,6917654,"10,018.92",City Suburban Tree Surgeons,24817,"Environment, Housing & Regeneration Directorate",Trees,G401,,
http://opendatacommunities.org/id/london-borough-council/sutton,London Borough of Sutton,30/11/2017,6921060,"2,435.45",City Suburban Tree Surgeons,24817,"Environment, Housing & Regeneration Directorate",Trees,G401,,
http://opendatacommunities.org/id/london-borough-council/sutton,London Borough of Sutton,30/11/2017,6921061,"5,127.96",City Suburban Tree Surgeons,24817,"Environment, Housing & Regeneration Directorate",Trees,G401,,
http://opendatacommunities.org/id/london-borough-council/sutton,London Borough of Sutton,29/01/2018,6924271,"1,007.00",City Suburban Tree Surgeons,24817,"Environment, Housing & Regeneration Directorate",Trees,G401,,
http://opendatacommunities.org/id/london-borough-council/sutton,London Borough of Sutton,29/01/2018,6924602,"12,189.46",City Suburban Tree Surgeons,24817,"Environment, Housing & Regeneration Directorate",Highway Trees - Maintenance,D560,,
http://opendatacommunities.org/id/london-borough-council/sutton,London Borough of Sutton,30/11/2017,6925747,"5,749.50",City Suburban Tree Surgeons,24817,"Environment, Housing & Regeneration Directorate",Highway Trees - Maintenance,D560,,
http://opendatacommunities.org/id/london-borough-council/sutton,London Borough of Sutton,20/02/2018,6925778,"13,201.34",City Suburban Tree Surgeons,24817,"Environment, Housing & Regeneration Directorate",Highway Trees - Maintenance,D560,,
http://opendatacommunities.org/id/london-borough-council/sutton,London Borough of Sutton,20/02/2018,6925779,"14,880.50",City Suburban Tree Surgeons,24817,"Environment, Housing & Regeneration Directorate",Highway Trees - Maintenance,D560,,
http://opendatacommunities.org/id/london-borough-council/sutton,London Borough of Sutton,20/02/2018,6925780,"1,529.00",City Suburban Tree Surgeons,24817,"Environment, Housing & Regeneration Directorate",Highway Trees - Maintenance,D560,,
http://opendatacommunities.org/id/london-borough-council/sutton,London Borough of Sutton,28/02/2018,6926319,780,City Suburban Tree Surgeons,24817,"Environment, Housing & Regeneration Directorate",Other-Materials,F115,,
http://opendatacommunities.org/id/london-borough-council/sutton,London Borough of Sutton,28/02/2018,6926320,"1,400.00",City Suburban Tree Surgeons,24817,"Environment, Housing & Regeneration Directorate",Other-Materials,F115,,
http://opendatacommunities.org/id/london-borough-council/sutton,London Borough of Sutton,28/02/2018,6926321,"1,525.00",City Suburban Tree Surgeons,24817,"Environment, Housing & Regeneration Directorate",Plant,Y570,,
http://opendatacommunities.org/id/london-borough-council/sutton,London Borough of Sutton,28/02/2018,6926322,"3,080.00",City Suburban Tree Surgeons,24817,"Environment, Housing & Regeneration Directorate",Other-Materials,F115,,
http://opendatacommunities.org/id/london-borough-council/sutton,London Borough of Sutton,28/02/2018,6926323,915,City Suburban Tree Surgeons,24817,"Environment, Housing & Regeneration Directorate",Emergency Repairs,D540,,
http://opendatacommunities.org/id/london-borough-council/sutton,London Borough of Sutton,28/02/2018,6926324,"1,440.00",City Suburban Tree Surgeons,24817,"Environment, Housing & Regeneration Directorate",Other-Materials,F115,,
http://opendatacommunities.org/id/london-borough-council/sutton,London Borough of Sutton,28/02/2018,6926326,915,City Suburban Tree Surgeons,24817,"Environment, Housing & Regeneration Directorate",Plant,Y570,,
http://opendatacommunities.org/id/london-borough-council/sutton,London Borough of Sutton,28/02/2018,6926327,"1,740.00",City Suburban Tree Surgeons,24817,"Environment, Housing & Regeneration Directorate",Emergency Repairs,D540,,
http://opendatacommunities.org/id/london-borough-council/sutton,London Borough of Sutton,28/02/2018,6926330,640,City Suburban Tree Surgeons,24817,"Environment, Housing & Regeneration Directorate",Other-Materials,F115,,
http://opendatacommunities.org/id/london-borough-council/sutton,London Borough of Sutton,28/02/2018,6926331,"1,400.00",City Suburban Tree Surgeons,24817,"Environment, Housing & Regeneration Directorate",Other-Materials,F115,,
http://opendatacommunities.org/id/london-borough-council/sutton,London Borough of Sutton,30/11/2017,6927097,"2,727.00",City Suburban Tree Surgeons,24817,"Environment, Housing & Regeneration Directorate",Trees,G401,,
http://opendatacommunities.org/id/london-borough-council/sutton,London Borough of Sutton,20/02/2018,6927098,"1,474.00",City Suburban Tree Surgeons,24817,"Environment, Housing & Regeneration Directorate",Highway Trees - Maintenance,D560,,
http://opendatacommunities.org/id/london-borough-council/sutton,London Borough of Sutton,15/03/2018,6927322,"1,375.00",City Suburban Tree Surgeons,24817,"Environment, Housing & Regeneration Directorate",Other-Materials,F115,,
http://opendatacommunities.org/id/london-borough-council/sutton,London Borough of Sutton,20/03/2018,6927765,"2,225.00",City Suburban Tree Surgeons,24817,"Environment, Housing & Regeneration Directorate",Highway Trees - Maintenance,D560,,
http://opendatacommunities.org/id/london-borough-council/sutton,London Borough of Sutton,20/03/2018,6927766,556.92,City Suburban Tree Surgeons,24817,"Environment, Housing & Regeneration Directorate",Trees,G401,,
http://opendatacommunities.org/id/london-borough-council/sutton,London Borough of Sutton,20/03/2018,6927767,900,City Suburban Tree Surgeons,24817,"Environment, Housing & Regeneration Directorate",Highway Trees - Maintenance,D560,,
http://opendatacommunities.org/id/london-borough-council/sutton,London Borough of Sutton,20/03/2018,6927768,"4,118.50",City Suburban Tree Surgeons,24817,"Environment, Housing & Regeneration Directorate",Highway Trees - Maintenance,D560,,
http://opendatacommunities.org/id/london-borough-council/sutton,London Borough of Sutton,20/03/2018,6927770,"3,750.00",City Suburban Tree Surgeons,24817,"Environment, Housing & Regeneration Directorate",Site Clearance,Y210,,
http://opendatacommunities.org/id/london-borough-council/sutton,London Borough of Sutton,20/03/2018,6927771,"4,110.26",City Suburban Tree Surgeons,24817,"Environment, Housing & Regeneration Directorate",Trees,G401,,
http://opendatacommunities.org/id/london-borough-council/sutton,London Borough of Sutton,20/03/2018,6927772,"3,585.00",City Suburban Tree Surgeons,24817,"Environment, Housing & Regeneration Directorate",Highway Trees - Maintenance,D560,,
http://opendatacommunities.org/id/london-borough-council/sutton,London Borough of Sutton,20/03/2018,6927773,505,City Suburban Tree Surgeons,24817,"Environment, Housing & Regeneration Directorate",Highway Trees - Maintenance,D560,,
http://opendatacommunities.org/id/london-borough-council/sutton,London Borough of Sutton,20/03/2018,6927774,"4,439.72",City Suburban Tree Surgeons,24817,"Environment, Housing & Regeneration Directorate",Trees,G401,,
http://opendatacommunities.org/id/london-borough-council/sutton,London Borough of Sutton,20/03/2018,6927776,"6,804.08",City Suburban Tree Surgeons,24817,"Environment, Housing & Regeneration Directorate",Emergency Repairs,D540,,
http://opendatacommunities.org/id/london-borough-council/sutton,London Borough of Sutton,20/03/2018,6927780,"3,671.24",City Suburban Tree Surgeons,24817,"Environment, Housing & Regeneration Directorate",Trees - SCH,D875,,
http://opendatacommunities.org/id/london-borough-council/sutton,London Borough of Sutton,20/03/2018,6927781,"12,394.00",City Suburban Tree Surgeons,24817,"Environment, Housing & Regeneration Directorate",Highway Trees - Maintenance,D560,,
http://opendatacommunities.org/id/london-borough-council/sutton,London Borough of Sutton,20/03/2018,6927783,840.4,City Suburban Tree Surgeons,24817,"Environment, Housing & Regeneration Directorate",Trees - SCH,D875,,
http://opendatacommunities.org/id/london-borough-council/sutton,London Borough of Sutton,20/03/2018,6927784,"3,000.00",City Suburban Tree Surgeons,24817,"Environment, Housing & Regeneration Directorate",Trees - SCH,D875,,
http://opendatacommunities.org/id/london-borough-council/sutton,London Borough of Sutton,20/03/2018,6927785,"8,197.50",City Suburban Tree Surgeons,24817,"Environment, Housing & Regeneration Directorate",Highway Trees - Maintenance,D560,,
http://opendatacommunities.org/id/london-borough-council/sutton,London Borough of Sutton,20/03/2018,6927786,886.72,City Suburban Tree Surgeons,24817,"Environment, Housing & Regeneration Directorate",Trees - SCH,D875,,
http://opendatacommunities.org/id/london-borough-council/sutton,London Borough of Sutton,22/03/2018,6927903,675,City Suburban Tree Surgeons,24817,"Environment, Housing & Regeneration Directorate",Other-Materials,F115,,
http://opendatacommunities.org/id/london-borough-council/sutton,London Borough of Sutton,23/03/2018,6928021,"1,375.00",City Suburban Tree Surgeons,24817,"Environment, Housing & Regeneration Directorate",Other-Materials,F115,,
http://opendatacommunities.org/id/london-borough-council/sutton,London Borough of Sutton,01/03/2018,6927686,"9,792.00",Cityglen Ltd T/A Hytyme ltd,24115,"Environment, Housing & Regeneration Directorate",Bed and Breakfast Accommodation,G400,,
http://opendatacommunities.org/id/london-borough-council/sutton,London Borough of Sutton,16/02/2018,6925671,"12,000.00",Civica UK Ltd,10978,Resources Directorate,IT Licences,F385,,
http://opendatacommunities.org/id/london-borough-council/sutton,London Borough of Sutton,21/03/2018,6927969,438.6,Civica UK Ltd,10978,Resources Directorate,IT Licences,F385,,
http://opendatacommunities.org/id/london-borough-council/sutton,London Borough of Sutton,22/03/2018,40176423,"3,200.00",Claremont Care Svs Ltd,18724,Peoples Services Directorate,Interim Placements - Ext Provider,G317,,
http://opendatacommunities.org/id/london-borough-council/sutton,London Borough of Sutton,22/03/2018,40176539,"2,805.00",Claremont Care Svs Ltd,18724,Peoples Services Directorate,Nursing Care - Ext Provider,G311,,
http://opendatacommunities.org/id/london-borough-council/sutton,London Borough of Sutton,22/03/2018,40176540,"4,000.00",Claremont Care Svs Ltd,18724,Peoples Services Directorate,Nursing Care - Ext Provider,G311,,
http://opendatacommunities.org/id/london-borough-council/sutton,London Borough of Sutton,22/03/2018,40176636,"4,025.00",Claremont Care Svs Ltd,18724,Peoples Services Directorate,Nursing Care - Ext Provider,G311,,
http://opendatacommunities.org/id/london-borough-council/sutton,London Borough of Sutton,22/03/2018,40176637,"4,200.00",Claremont Care Svs Ltd,18724,Peoples Services Directorate,Nursing Care - Ext Provider,G311,,
http://opendatacommunities.org/id/london-borough-council/sutton,London Borough of Sutton,05/02/2018,6924813,"5,400.00",Cleaner Greener Safer Happier Ltd,29981,"Environment, Housing & Regeneration Directorate",Materials - General,F100,,
http://opendatacommunities.org/id/london-borough-council/sutton,London Borough of Sutton,07/03/2018,6926817,"3,575.00",Cleaner Greener Safer Happier Ltd,29981,"Environment, Housing & Regeneration Directorate",Fees - Consultants (Ad Hoc),F283,,
http://opendatacommunities.org/id/london-borough-council/sutton,London Borough of Sutton,07/03/2018,6926837,"5,700.00",Cleaner Greener Safer Happier Ltd,29981,"Environment, Housing & Regeneration Directorate",Fees - Consultants (Ad Hoc),F283,,
http://opendatacommunities.org/id/london-borough-council/sutton,London Borough of Sutton,22/03/2018,40176524,"2,000.00",Cloyda Limited,20402,Peoples Services Directorate,Residential Care - Ext Provider,G310,,
http://opendatacommunities.org/id/london-borough-council/sutton,London Borough of Sutton,22/03/2018,40176560,"2,600.00",Cloyda Limited,20402,Peoples Services Directorate,Residential Care - Ext Provider,G310,,
http://opendatacommunities.org/id/london-borough-council/sutton,London Borough of Sutton,13/03/2018,40171566,510,Cmg Homes Ltd,11026,Peoples Services Directorate,Supported Living - Ext Provider,G306,,
http://opendatacommunities.org/id/london-borough-council/sutton,London Borough of Sutton,13/03/2018,40171572,614.28,Cmg Homes Ltd,11026,Peoples Services Directorate,Supported Living - Ext Provider,G306,,
http://opendatacommunities.org/id/london-borough-council/sutton,London Borough of Sutton,13/03/2018,40171582,740.72,Cmg Homes Ltd,11026,Peoples Services Directorate,Supported Living - Ext Provider,G306,,
http://opendatacommunities.org/id/london-borough-council/sutton,London Borough of Sutton,13/03/2018,40171595,645.75,Cmg Homes Ltd,11026,Peoples Services Directorate,Supported Living - Ext Provider,G306,,
http://opendatacommunities.org/id/london-borough-council/sutton,London Borough of Sutton,22/03/2018,40176373,"7,000.00",Cmg Homes Ltd,11026,Peoples Services Directorate,Residential Care - Ext Provider,G310,,
http://opendatacommunities.org/id/london-borough-council/sutton,London Borough of Sutton,22/03/2018,40176466,"5,416.92",Cmg Homes Ltd,11026,Peoples Services Directorate,Residential Care - Ext Provider,G310,,
http://opendatacommunities.org/id/london-borough-council/sutton,London Borough of Sutton,22/03/2018,40176709,"7,036.00",Cmg Homes Ltd,11026,Peoples Services Directorate,Residential Care - Ext Provider,G310,,
http://opendatacommunities.org/id/london-borough-council/sutton,London Borough of Sutton,28/02/2018,6926584,"2,391.24",Cobalt Telephone Technologies,15645,"Environment, Housing & Regeneration Directorate",Credit Card Commission,F460,,
http://opendatacommunities.org/id/london-borough-council/sutton,London Borough of Sutton,01/02/2018,40169144,"1,632.00",Cognithan Ltd,29938,Peoples Services Directorate,Supported Living - Ext Provider,G306,,
http://opendatacommunities.org/id/london-borough-council/sutton,London Borough of Sutton,13/03/2018,40171590,607.15,Cognithan Ltd,29938,Peoples Services Directorate,Supported Living - Ext Provider,G306,,
http://opendatacommunities.org/id/london-borough-council/sutton,London Borough of Sutton,14/03/2018,1251873,"1,530.00",Cognus Ltd,26829,Peoples Services Directorate,Special Educational Needs,G331,,
http://opendatacommunities.org/id/london-borough-council/sutton,London Borough of Sutton,26/03/2018,1251883,585,Cognus Ltd,26829,Peoples Services Directorate,Special Educational Needs,G331,,
http://opendatacommunities.org/id/london-borough-council/sutton,London Borough of Sutton,09/02/2018,6925862,"24,797.00",Cognus Ltd,26829,Peoples Services Directorate,Agency Services,G431,,
http://opendatacommunities.org/id/london-borough-council/sutton,London Borough of Sutton,02/03/2018,6926523,"1,184.80",Cognus Ltd,26829,Peoples Services Directorate,Other Services,F340,,
http://opendatacommunities.org/id/london-borough-council/sutton,London Borough of Sutton,05/03/2018,6926670,840,Cognus Ltd,26829,Peoples Services Directorate,Child Care Review,F273,,
http://opendatacommunities.org/id/london-borough-council/sutton,London Borough of Sutton,26/03/2018,6928148,"40,184.37",Cognus Ltd,26829,Peoples Services Directorate,Recharge - Other,T991,,
http://opendatacommunities.org/id/london-borough-council/sutton,London Borough of Sutton,22/03/2018,40176623,"5,574.23",Coleg Elidyr Camphill Communities,28764,Peoples Services Directorate,Interim Placements - Ext Provider,G317,,
http://opendatacommunities.org/id/london-borough-council/sutton,London Borough of Sutton,15/03/2018,6927627,"19,275.90",Collaboratei,26296,Chief Executive's Directorate,Fees - Consultants (Ad Hoc),F283,,
http://opendatacommunities.org/id/london-borough-council/sutton,London Borough of Sutton,09/10/2017,6926292,"2,622.00",Come and Play Childcare Ltd,26926,Peoples Services Directorate,Children Assessments,G329,,
http://opendatacommunities.org/id/london-borough-council/sutton,London Borough of Sutton,13/03/2018,6928204,"2,090.00",Come and Play Childcare Ltd,26926,Peoples Services Directorate,Children Assessments,G329,,
http://opendatacommunities.org/id/london-borough-council/sutton,London Borough of Sutton,26/02/2018,40168202,567,Community Home Care Provider,11097,Peoples Services Directorate,Home Care,G334,,
http://opendatacommunities.org/id/london-borough-council/sutton,London Borough of Sutton,26/02/2018,40168204,476,Community Home Care Provider,11097,Peoples Services Directorate,Home Care,G334,,
http://opendatacommunities.org/id/london-borough-council/sutton,London Borough of Sutton,26/02/2018,40168213,472.5,Community Home Care Provider,11097,Peoples Services Directorate,Home Care,G334,,
http://opendatacommunities.org/id/london-borough-council/sutton,London Borough of Sutton,26/02/2018,40170910,476,Community Home Care Provider,11097,Peoples Services Directorate,Home Care,G334,,
http://opendatacommunities.org/id/london-borough-council/sutton,London Borough of Sutton,12/03/2018,40172130,476,Community Home Care Provider,11097,Peoples Services Directorate,Home Care,G334,,
http://opendatacommunities.org/id/london-borough-council/sutton,London Borough of Sutton,26/02/2018,40172362,486,Community Home Care Provider,11097,Peoples Services Directorate,Home Care,G334,,
http://opendatacommunities.org/id/london-borough-council/sutton,London Borough of Sutton,26/02/2018,40172919,476,Community Home Care Provider,11097,Peoples Services Directorate,Home Care,G334,,
http://opendatacommunities.org/id/london-borough-council/sutton,London Borough of Sutton,26/02/2018,40172928,472.5,Community Home Care Provider,11097,Peoples Services Directorate,Home Care,G334,,
http://opendatacommunities.org/id/london-borough-council/sutton,London Borough of Sutton,22/03/2018,40178841,476,Community Home Care Provider,11097,Peoples Services Directorate,Home Care,G334,,
http://opendatacommunities.org/id/london-borough-council/sutton,London Borough of Sutton,22/03/2018,40178849,432,Community Home Care Provider,11097,Peoples Services Directorate,Home Care,G334,,
http://opendatacommunities.org/id/london-borough-council/sutton,London Borough of Sutton,01/02/2018,40170092,"3,119.76",Compass Fostering London Ltd,25848,Peoples Services Directorate,Foster Parents,G326,,
http://opendatacommunities.org/id/london-borough-council/sutton,London Borough of Sutton,01/02/2018,40170121,"3,319.96",Compass Fostering London Ltd,25848,Peoples Services Directorate,Foster Parents,G326,,
http://opendatacommunities.org/id/london-borough-council/sutton,London Borough of Sutton,01/02/2018,40170172,"3,319.96",Compass Fostering London Ltd,25848,Peoples Services Directorate,Foster Parents,G326,,
http://opendatacommunities.org/id/london-borough-council/sutton,London Borough of Sutton,01/02/2018,40170173,"2,865.24",Compass Fostering London Ltd,25848,Peoples Services Directorate,Foster Parents,G326,,
http://opendatacommunities.org/id/london-borough-council/sutton,London Borough of Sutton,01/02/2018,40170174,"2,955.96",Compass Fostering London Ltd,25848,Peoples Services Directorate,Foster Parents,G326,,
http://opendatacommunities.org/id/london-borough-council/sutton,London Borough of Sutton,01/03/2018,40177086,"3,454.02",Compass Fostering London Ltd,25848,Peoples Services Directorate,Foster Parents,G326,,
http://opendatacommunities.org/id/london-borough-council/sutton,London Borough of Sutton,01/03/2018,40177087,"3,172.23",Compass Fostering London Ltd,25848,Peoples Services Directorate,Foster Parents,G326,,
http://opendatacommunities.org/id/london-borough-council/sutton,London Borough of Sutton,01/03/2018,40177115,"3,675.67",Compass Fostering London Ltd,25848,Peoples Services Directorate,Foster Parents,G326,,
http://opendatacommunities.org/id/london-borough-council/sutton,London Borough of Sutton,01/03/2018,40177145,"3,272.67",Compass Fostering London Ltd,25848,Peoples Services Directorate,Foster Parents,G326,,
http://opendatacommunities.org/id/london-borough-council/sutton,London Borough of Sutton,01/02/2018,40170170,"3,119.76",Compass Fostering South Ltd,27957,Peoples Services Directorate,Foster Parents,G326,,
http://opendatacommunities.org/id/london-borough-council/sutton,London Borough of Sutton,01/03/2018,40177085,"3,454.02",Compass Fostering South Ltd,27957,Peoples Services Directorate,Foster Parents,G326,,
http://opendatacommunities.org/id/london-borough-council/sutton,London Borough of Sutton,05/03/2018,6926678,"2,257.49",Compass Minerals,13961,"Environment, Housing & Regeneration Directorate",Materials - General,F100,,
http://opendatacommunities.org/id/london-borough-council/sutton,London Borough of Sutton,07/03/2018,6927336,"3,387.09",Compass Minerals,13961,"Environment, Housing & Regeneration Directorate",Materials - General,F100,,
http://opendatacommunities.org/id/london-borough-council/sutton,London Borough of Sutton,08/03/2018,6927337,"5,687.11",Compass Minerals,13961,"Environment, Housing & Regeneration Directorate",Materials - General,F100,,
http://opendatacommunities.org/id/london-borough-council/sutton,London Borough of Sutton,06/03/2018,6927464,"1,132.15",Compass Minerals,13961,"Environment, Housing & Regeneration Directorate",Materials - General,F100,,
http://opendatacommunities.org/id/london-borough-council/sutton,London Borough of Sutton,15/03/2018,6927395,"9,600.00",Contender Systems Ltd,27768,"Environment, Housing & Regeneration Directorate",Purchase of IT Equipment,F380,,
http://opendatacommunities.org/id/london-borough-council/sutton,London Borough of Sutton,08/03/2018,6927984,"1,219.52",Contract Security Services,23827,Chief Executive's Directorate,General Office Expenses,F235,,
http://opendatacommunities.org/id/london-borough-council/sutton,London Borough of Sutton,28/02/2018,6926689,"2,500.00",Core Assets Children's Services Ltd,27511,Peoples Services Directorate,Provider Contract Payments,F470,,
http://opendatacommunities.org/id/london-borough-council/sutton,London Borough of Sutton,28/12/2017,6926703,"2,425.00",Core Assets Children's Services Ltd,27511,Peoples Services Directorate,Provider Contract Payments,F470,,
http://opendatacommunities.org/id/london-borough-council/sutton,London Borough of Sutton,01/03/2018,6926847,"6,908.26",Core Assets Children's Services Ltd,27511,Peoples Services Directorate,Provider Contract Payments,F470,,
http://opendatacommunities.org/id/london-borough-council/sutton,London Borough of Sutton,05/03/2018,6926652,"15,910.66",Corelogic Ltd,24747,Peoples Services Directorate,Fees - Computer Software,F384,,
http://opendatacommunities.org/id/london-borough-council/sutton,London Borough of Sutton,05/03/2018,6926653,"15,910.66",Corelogic Ltd,24747,Peoples Services Directorate,Fees - Computer Software,F384,,
http://opendatacommunities.org/id/london-borough-council/sutton,London Borough of Sutton,26/01/2018,40170152,"12,400.08",Cornerways Childrens Services Ltd,18435,Peoples Services Directorate,Residential Care-Children,G330,,
http://opendatacommunities.org/id/london-borough-council/sutton,London Borough of Sutton,26/02/2018,40177073,"13,728.66",Cornerways Childrens Services Ltd,18435,Peoples Services Directorate,Residential Care-Children,G330,,
http://opendatacommunities.org/id/london-borough-council/sutton,London Borough of Sutton,04/02/2018,6927273,800,Craig Barlow Consultancy & Training Ltd,29915,Peoples Services Directorate,Training - Course Fees,A520,,
http://opendatacommunities.org/id/london-borough-council/sutton,London Borough of Sutton,08/10/2017,6927274,800,Craig Barlow Consultancy & Training Ltd,29915,Peoples Services Directorate,Training - Course Fees,A520,,
http://opendatacommunities.org/id/london-borough-council/sutton,London Borough of Sutton,28/02/2018,6926294,"10,064.25",Cranstoun,11184,"Environment, Housing & Regeneration Directorate",Provider Contract Payments,F470,,
http://opendatacommunities.org/id/london-borough-council/sutton,London Borough of Sutton,12/03/2018,6927089,"90,000.00",Cranstoun,11184,Chief Executive's Directorate,Provider Contract Payments,F470,,
http://opendatacommunities.org/id/london-borough-council/sutton,London Borough of Sutton,01/03/2018,6927151,"166,565.17",Cranstoun,11184,Chief Executive's Directorate,Provider Contract Payments,F470,,
http://opendatacommunities.org/id/london-borough-council/sutton,London Borough of Sutton,26/02/2018,1251871,"7,741.04",Cressey Oasis Education Ltd,27626,Peoples Services Directorate,Independent Schools,G325,,
http://opendatacommunities.org/id/london-borough-council/sutton,London Borough of Sutton,22/02/2018,6928208,"1,127.50",Cressey Oasis Education Ltd,27626,Peoples Services Directorate,Payments to Schools,G065,,
http://opendatacommunities.org/id/london-borough-council/sutton,London Borough of Sutton,15/02/2018,6926442,"1,736.00",Crest Manor Ltd,25469,Peoples Services Directorate,C.C.A Rent & Utilities,H211,,
http://opendatacommunities.org/id/london-borough-council/sutton,London Borough of Sutton,15/02/2018,6926522,577.71,Crest Manor Ltd,25469,Peoples Services Directorate,Approved Lodgings,H323,,
http://opendatacommunities.org/id/london-borough-council/sutton,London Borough of Sutton,15/02/2018,6926524,975,Crest Manor Ltd,25469,Peoples Services Directorate,Approved Lodgings,H323,,
http://opendatacommunities.org/id/london-borough-council/sutton,London Borough of Sutton,15/02/2018,6926525,"1,995.00",Crest Manor Ltd,25469,Peoples Services Directorate,Approved Lodgings,H323,,
http://opendatacommunities.org/id/london-borough-council/sutton,London Borough of Sutton,15/02/2018,6926526,"2,204.00",Crest Manor Ltd,25469,Peoples Services Directorate,Approved Lodgings,H323,,
http://opendatacommunities.org/id/london-borough-council/sutton,London Borough of Sutton,15/02/2018,6926527,"1,695.00",Crest Manor Ltd,25469,Peoples Services Directorate,Approved Lodgings,H323,,
http://opendatacommunities.org/id/london-borough-council/sutton,London Borough of Sutton,15/02/2018,6926530,"1,695.00",Crest Manor Ltd,25469,Peoples Services Directorate,Approved Lodgings,H323,,
http://opendatacommunities.org/id/london-borough-council/sutton,London Borough of Sutton,15/02/2018,6926531,736.5,Crest Manor Ltd,25469,Peoples Services Directorate,Approved Lodgings,H323,,
http://opendatacommunities.org/id/london-borough-council/sutton,London Borough of Sutton,22/03/2018,40176393,"3,400.00",CRNH Ltd T/A St Judes Nursing Home,14297,Peoples Services Directorate,Nursing Care - Ext Provider,G311,,
http://opendatacommunities.org/id/london-borough-council/sutton,London Borough of Sutton,22/03/2018,40176394,"3,799.04",CRNH Ltd T/A St Judes Nursing Home,14297,Peoples Services Directorate,Nursing Care - Ext Provider,G311,,
http://opendatacommunities.org/id/london-borough-council/sutton,London Borough of Sutton,22/03/2018,40176592,"3,984.00",CRNH Ltd T/A St Judes Nursing Home,14297,Peoples Services Directorate,Nursing Care - Ext Provider,G311,,
http://opendatacommunities.org/id/london-borough-council/sutton,London Borough of Sutton,22/03/2018,40176593,"3,700.00",CRNH Ltd T/A St Judes Nursing Home,14297,Peoples Services Directorate,Nursing Care - Ext Provider,G311,,
http://opendatacommunities.org/id/london-borough-council/sutton,London Borough of Sutton,13/03/2018,6927425,935,Croham Services for Children Limited,20855,Peoples Services Directorate,Personal Requisites,F106,,
http://opendatacommunities.org/id/london-borough-council/sutton,London Borough of Sutton,09/02/2018,40170091,"2,898.84",Croham Services for Children Limited,20855,Peoples Services Directorate,Foster Parents,G326,,
http://opendatacommunities.org/id/london-borough-council/sutton,London Borough of Sutton,09/02/2018,40170179,"2,898.84",Croham Services for Children Limited,20855,Peoples Services Directorate,Foster Parents,G326,,
http://opendatacommunities.org/id/london-borough-council/sutton,London Borough of Sutton,09/02/2018,40170180,"2,898.84",Croham Services for Children Limited,20855,Peoples Services Directorate,Foster Parents,G326,,
http://opendatacommunities.org/id/london-borough-council/sutton,London Borough of Sutton,09/02/2018,40170181,"2,898.84",Croham Services for Children Limited,20855,Peoples Services Directorate,Foster Parents,G326,,
http://opendatacommunities.org/id/london-borough-council/sutton,London Borough of Sutton,09/02/2018,40170182,"2,898.84",Croham Services for Children Limited,20855,Peoples Services Directorate,Foster Parents,G326,,
http://opendatacommunities.org/id/london-borough-council/sutton,London Borough of Sutton,09/02/2018,40170183,"2,898.84",Croham Services for Children Limited,20855,Peoples Services Directorate,Foster Parents,G326,,
http://opendatacommunities.org/id/london-borough-council/sutton,London Borough of Sutton,09/03/2018,40177042,"3,209.43",Croham Services for Children Limited,20855,Peoples Services Directorate,Foster Parents,G326,,
http://opendatacommunities.org/id/london-borough-council/sutton,London Borough of Sutton,09/03/2018,40177138,"3,209.43",Croham Services for Children Limited,20855,Peoples Services Directorate,Foster Parents,G326,,
http://opendatacommunities.org/id/london-borough-council/sutton,London Borough of Sutton,09/03/2018,40177139,"3,209.43",Croham Services for Children Limited,20855,Peoples Services Directorate,Foster Parents,G326,,
http://opendatacommunities.org/id/london-borough-council/sutton,London Borough of Sutton,09/03/2018,40177140,"3,209.43",Croham Services for Children Limited,20855,Peoples Services Directorate,Foster Parents,G326,,
http://opendatacommunities.org/id/london-borough-council/sutton,London Borough of Sutton,09/03/2018,40177141,"3,209.43",Croham Services for Children Limited,20855,Peoples Services Directorate,Foster Parents,G326,,
http://opendatacommunities.org/id/london-borough-council/sutton,London Borough of Sutton,09/03/2018,40177142,"3,209.43",Croham Services for Children Limited,20855,Peoples Services Directorate,Foster Parents,G326,,
http://opendatacommunities.org/id/london-borough-council/sutton,London Borough of Sutton,22/03/2018,40176396,"2,404.28",Crossways Community,11187,Peoples Services Directorate,Residential Care - Ext Provider,G310,,
http://opendatacommunities.org/id/london-borough-council/sutton,London Borough of Sutton,22/03/2018,40176452,"4,168.24",Crossways Community,11187,Peoples Services Directorate,Residential Care - Ext Provider,G310,,
http://opendatacommunities.org/id/london-borough-council/sutton,London Borough of Sutton,23/03/2018,1251890,"1,004.09",Croydon College,11192,Peoples Services Directorate,Top-up Funding,G064,,
http://opendatacommunities.org/id/london-borough-council/sutton,London Borough of Sutton,14/03/2018,6927457,"36,145.62",Croydon Council,11227,"Environment, Housing & Regeneration Directorate",Civic Amenity,G172,,
